{"text_format":"1","workbook":"xlsx","n_sheets":5,"sheets":["Fordeling af omkostninger","Vandløbsnære arealer","Kalkuler","Fordeling af arbejdsopgaver","Ark4"],"not_rendered":{"charts":2,"images":0,"macros":1,"external_links":0,"defined_names":117,"comments":0,"pivot_tables":0},"unopened":[],"bounds":{"document_bytes":16777216,"sheet_cells":100000,"rows_first":2000,"rows_last":500,"rows_between":2000,"halvings":0,"cell_chars":16384,"cell_head_chars":4096},"cells_cut":0,"cells_raw":0,"read":"whole","date_system":"1900"}

{"sheet":"Fordeling af omkostninger","index":0,"n_rows":65,"n_cols":29,"rows_kept":65,"cut":false,"hidden":true,"merged":[[37,0,42,0],[44,0,49,0],[51,0,56,0],[58,0,63,0],[2,0,7,0],[9,0,14,0],[16,0,21,0],[23,0,28,0],[30,0,35,0]]}
[]
["Afgrøde","Aktivitet","Året før","Start jan.","Slut jan.","Start feb.","Slut feb.","Start mar.","Slut mar.","Start apr.","Slut apr.","Start maj","Slut maj","Start jun","Slut jun","Start jul.","Slut jul.","Start Aug.","Slut Aug.","Start sep.","Slut sep.","Start okt.","Slut okt.","Start nov.","Slut nov.","Start dec.","Slut dec."]
["Frøgræs (Rajgræs)","Pløjning"]
[null,"Jorbearb. Før såning"]
[null,"Afgrødeetabl. (såning, lægning o.l.)",{"$f":"'Fordeling af arbejdsopgaver'!D4*(Kalkuler!$Q$15+Kalkuler!$Q$29)*2","v":-1240},{"$f":"'Fordeling af arbejdsopgaver'!E4*(Kalkuler!$Q$15+Kalkuler!$Q$29)*2","v":0},{"$f":"'Fordeling af arbejdsopgaver'!F4*(Kalkuler!$Q$15+Kalkuler!$Q$29)*2","v":0},{"$f":"'Fordeling af arbejdsopgaver'!G4*(Kalkuler!$Q$15+Kalkuler!$Q$29)*2","v":0},{"$f":"'Fordeling af arbejdsopgaver'!H4*(Kalkuler!$Q$15+Kalkuler!$Q$29)*2","v":0},{"$f":"'Fordeling af arbejdsopgaver'!I4*(Kalkuler!$Q$15+Kalkuler!$Q$29)*2","v":0},{"$f":"'Fordeling af arbejdsopgaver'!J4*(Kalkuler!$Q$15+Kalkuler!$Q$29)*2","v":0},{"$f":"'Fordeling af arbejdsopgaver'!K4*(Kalkuler!$Q$15+Kalkuler!$Q$29)*2","v":0},{"$f":"'Fordeling af arbejdsopgaver'!L4*(Kalkuler!$Q$15+Kalkuler!$Q$29)*2","v":0},{"$f":"'Fordeling af arbejdsopgaver'!M4*(Kalkuler!$Q$15+Kalkuler!$Q$29)*2","v":0},{"$f":"'Fordeling af arbejdsopgaver'!N4*(Kalkuler!$Q$15+Kalkuler!$Q$29)*2","v":0},{"$f":"'Fordeling af arbejdsopgaver'!O4*(Kalkuler!$Q$15+Kalkuler!$Q$29)*2","v":0},{"$f":"'Fordeling af arbejdsopgaver'!P4*(Kalkuler!$Q$15+Kalkuler!$Q$29)*2","v":0},{"$f":"'Fordeling af arbejdsopgaver'!Q4*(Kalkuler!$Q$15+Kalkuler!$Q$29)*2","v":0},{"$f":"'Fordeling af arbejdsopgaver'!R4*(Kalkuler!$Q$15+Kalkuler!$Q$29)*2","v":0},null,{"$f":"'Fordeling af arbejdsopgaver'!T4*(Kalkuler!$Q$15+Kalkuler!$Q$29)*2","v":0},{"$f":"'Fordeling af arbejdsopgaver'!U4*(Kalkuler!$Q$15+Kalkuler!$Q$29)*2","v":0},{"$f":"'Fordeling af arbejdsopgaver'!V4*(Kalkuler!$Q$15+Kalkuler!$Q$29)*2","v":0},{"$f":"'Fordeling af arbejdsopgaver'!W4*(Kalkuler!$Q$15+Kalkuler!$Q$29)*2","v":0},{"$f":"'Fordeling af arbejdsopgaver'!X4*(Kalkuler!$Q$15+Kalkuler!$Q$29)*2","v":0},{"$f":"'Fordeling af arbejdsopgaver'!Y4*(Kalkuler!$Q$15+Kalkuler!$Q$29)*2","v":0},{"$f":"'Fordeling af arbejdsopgaver'!Z4*(Kalkuler!$Q$15+Kalkuler!$Q$29)*2","v":0},{"$f":"'Fordeling af arbejdsopgaver'!AA4*(Kalkuler!$Q$15+Kalkuler!$Q$29)*2","v":0},{"$f":"'Fordeling af arbejdsopgaver'!AB4*(Kalkuler!$Q$15+Kalkuler!$Q$29)*2","v":0}]
[null,"Gødskning (handelsgødning)",null,{"$f":"('Fordeling af arbejdsopgaver'!E5*Kalkuler!$Q$28)+('Fordeling af arbejdsopgaver'!E5*(Kalkuler!$Q$15+Kalkuler!$Q$16+Kalkuler!$Q$17+Kalkuler!$Q$18))","v":0},{"$f":"('Fordeling af arbejdsopgaver'!F5*Kalkuler!$Q$28)+('Fordeling af arbejdsopgaver'!F5*(Kalkuler!$Q$15+Kalkuler!$Q$16+Kalkuler!$Q$17+Kalkuler!$Q$18))","v":0},{"$f":"('Fordeling af arbejdsopgaver'!G5*Kalkuler!$Q$28)+('Fordeling af arbejdsopgaver'!G5*(Kalkuler!$Q$15+Kalkuler!$Q$16+Kalkuler!$Q$17+Kalkuler!$Q$18))","v":0},{"$f":"('Fordeling af arbejdsopgaver'!H5*Kalkuler!$Q$28)+('Fordeling af arbejdsopgaver'!H5*(Kalkuler!$Q$15+Kalkuler!$Q$16+Kalkuler!$Q$17+Kalkuler!$Q$18))","v":0},{"$f":"('Fordeling af arbejdsopgaver'!I5*Kalkuler!$Q$28)+('Fordeling af arbejdsopgaver'!I5*(Kalkuler!$Q$15+Kalkuler!$Q$16+Kalkuler!$Q$17+Kalkuler!$Q$18))","v":0},{"$f":"('Fordeling af arbejdsopgaver'!J5*Kalkuler!$Q$28)+('Fordeling af arbejdsopgaver'!J5*(Kalkuler!$Q$15+Kalkuler!$Q$16+Kalkuler!$Q$17+Kalkuler!$Q$18))","v":-3310.5},{"$f":"('Fordeling af arbejdsopgaver'!K5*Kalkuler!$Q$28)+('Fordeling af arbejdsopgaver'!K5*(Kalkuler!$Q$15+Kalkuler!$Q$16+Kalkuler!$Q$17+Kalkuler!$Q$18))","v":0},{"$f":"('Fordeling af arbejdsopgaver'!L5*Kalkuler!$Q$28)+('Fordeling af arbejdsopgaver'!L5*(Kalkuler!$Q$15+Kalkuler!$Q$16+Kalkuler!$Q$17+Kalkuler!$Q$18))","v":0},{"$f":"('Fordeling af arbejdsopgaver'!M5*Kalkuler!$Q$28)+('Fordeling af arbejdsopgaver'!M5*(Kalkuler!$Q$15+Kalkuler!$Q$16+Kalkuler!$Q$17+Kalkuler!$Q$18))","v":0},{"$f":"('Fordeling af arbejdsopgaver'!N5*Kalkuler!$Q$28)+('Fordeling af arbejdsopgaver'!N5*(Kalkuler!$Q$15+Kalkuler!$Q$16+Kalkuler!$Q$17+Kalkuler!$Q$18))","v":0},{"$f":"('Fordeling af arbejdsopgaver'!O5*Kalkuler!$Q$28)+('Fordeling af arbejdsopgaver'!O5*(Kalkuler!$Q$15+Kalkuler!$Q$16+Kalkuler!$Q$17+Kalkuler!$Q$18))","v":0},{"$f":"('Fordeling af arbejdsopgaver'!P5*Kalkuler!$Q$28)+('Fordeling af arbejdsopgaver'!P5*(Kalkuler!$Q$15+Kalkuler!$Q$16+Kalkuler!$Q$17+Kalkuler!$Q$18))","v":0},{"$f":"('Fordeling af arbejdsopgaver'!Q5*Kalkuler!$Q$28)+('Fordeling af arbejdsopgaver'!Q5*(Kalkuler!$Q$15+Kalkuler!$Q$16+Kalkuler!$Q$17+Kalkuler!$Q$18))","v":0},{"$f":"('Fordeling af arbejdsopgaver'!R5*Kalkuler!$Q$28)+('Fordeling af arbejdsopgaver'!R5*(Kalkuler!$Q$15+Kalkuler!$Q$16+Kalkuler!$Q$17+Kalkuler!$Q$18))","v":0},{"$f":"('Fordeling af arbejdsopgaver'!S5*Kalkuler!$Q$28)+('Fordeling af arbejdsopgaver'!S5*(Kalkuler!$Q$15+Kalkuler!$Q$16+Kalkuler!$Q$17+Kalkuler!$Q$18))","v":0},{"$f":"('Fordeling af arbejdsopgaver'!T5*Kalkuler!$Q$28)+('Fordeling af arbejdsopgaver'!T5*(Kalkuler!$Q$15+Kalkuler!$Q$16+Kalkuler!$Q$17+Kalkuler!$Q$18))","v":0},{"$f":"('Fordeling af arbejdsopgaver'!U5*Kalkuler!$Q$28)+('Fordeling af arbejdsopgaver'!U5*(Kalkuler!$Q$15+Kalkuler!$Q$16+Kalkuler!$Q$17+Kalkuler!$Q$18))","v":0},{"$f":"('Fordeling af arbejdsopgaver'!V5*Kalkuler!$Q$28)+('Fordeling af arbejdsopgaver'!V5*(Kalkuler!$Q$15+Kalkuler!$Q$16+Kalkuler!$Q$17+Kalkuler!$Q$18))","v":-3310.5},{"$f":"('Fordeling af arbejdsopgaver'!W5*Kalkuler!$Q$28)+('Fordeling af arbejdsopgaver'!W5*(Kalkuler!$Q$15+Kalkuler!$Q$16+Kalkuler!$Q$17+Kalkuler!$Q$18))","v":0},{"$f":"('Fordeling af arbejdsopgaver'!X5*Kalkuler!$Q$28)+('Fordeling af arbejdsopgaver'!X5*(Kalkuler!$Q$15+Kalkuler!$Q$16+Kalkuler!$Q$17+Kalkuler!$Q$18))","v":0},{"$f":"('Fordeling af arbejdsopgaver'!Y5*Kalkuler!$Q$28)+('Fordeling af arbejdsopgaver'!Y5*(Kalkuler!$Q$15+Kalkuler!$Q$16+Kalkuler!$Q$17+Kalkuler!$Q$18))","v":0},{"$f":"('Fordeling af arbejdsopgaver'!Z5*Kalkuler!$Q$28)+('Fordeling af arbejdsopgaver'!Z5*(Kalkuler!$Q$15+Kalkuler!$Q$16+Kalkuler!$Q$17+Kalkuler!$Q$18))","v":0},{"$f":"('Fordeling af arbejdsopgaver'!AA5*Kalkuler!$Q$28)+('Fordeling af arbejdsopgaver'!AA5*(Kalkuler!$Q$15+Kalkuler!$Q$16+Kalkuler!$Q$17+Kalkuler!$Q$18))","v":0},{"$f":"('Fordeling af arbejdsopgaver'!AB5*Kalkuler!$Q$28)+('Fordeling af arbejdsopgaver'!AB5*(Kalkuler!$Q$15+Kalkuler!$Q$16+Kalkuler!$Q$17+Kalkuler!$Q$18))","v":0}]
[null,"Planteværn",null,{"$f":"('Fordeling af arbejdsopgaver'!E6*Kalkuler!$Q$30)+('Fordeling af arbejdsopgaver'!E6*(Kalkuler!$Q$19+Kalkuler!$Q$20+Kalkuler!$Q$21))","v":0},{"$f":"('Fordeling af arbejdsopgaver'!F6*Kalkuler!$Q$30)+('Fordeling af arbejdsopgaver'!F6*(Kalkuler!$Q$19+Kalkuler!$Q$20+Kalkuler!$Q$21))","v":0},{"$f":"('Fordeling af arbejdsopgaver'!G6*Kalkuler!$Q$30)+('Fordeling af arbejdsopgaver'!G6*(Kalkuler!$Q$19+Kalkuler!$Q$20+Kalkuler!$Q$21))","v":0},{"$f":"('Fordeling af arbejdsopgaver'!H6*Kalkuler!$Q$30)+('Fordeling af arbejdsopgaver'!H6*(Kalkuler!$Q$19+Kalkuler!$Q$20+Kalkuler!$Q$21))","v":0},{"$f":"('Fordeling af arbejdsopgaver'!I6*Kalkuler!$Q$30)+('Fordeling af arbejdsopgaver'!I6*(Kalkuler!$Q$19+Kalkuler!$Q$20+Kalkuler!$Q$21))","v":0},{"$f":"('Fordeling af arbejdsopgaver'!J6*Kalkuler!$Q$30)+('Fordeling af arbejdsopgaver'!J6*(Kalkuler!$Q$19+Kalkuler!$Q$20+Kalkuler!$Q$21))","v":0},{"$f":"('Fordeling af arbejdsopgaver'!K6*Kalkuler!$Q$30)+('Fordeling af arbejdsopgaver'!K6*(Kalkuler!$Q$19+Kalkuler!$Q$20+Kalkuler!$Q$21))","v":-223},{"$f":"('Fordeling af arbejdsopgaver'!L6*Kalkuler!$Q$30)+('Fordeling af arbejdsopgaver'!L6*(Kalkuler!$Q$19+Kalkuler!$Q$20+Kalkuler!$Q$21))","v":-223},{"$f":"('Fordeling af arbejdsopgaver'!M6*Kalkuler!$Q$30)+('Fordeling af arbejdsopgaver'!M6*(Kalkuler!$Q$19+Kalkuler!$Q$20+Kalkuler!$Q$21))","v":-223},{"$f":"('Fordeling af arbejdsopgaver'!N6*Kalkuler!$Q$30)+('Fordeling af arbejdsopgaver'!N6*(Kalkuler!$Q$19+Kalkuler!$Q$20+Kalkuler!$Q$21))","v":-223},{"$f":"('Fordeling af arbejdsopgaver'!O6*Kalkuler!$Q$30)+('Fordeling af arbejdsopgaver'!O6*(Kalkuler!$Q$19+Kalkuler!$Q$20+Kalkuler!$Q$21))","v":0},{"$f":"('Fordeling af arbejdsopgaver'!P6*Kalkuler!$Q$30)+('Fordeling af arbejdsopgaver'!P6*(Kalkuler!$Q$19+Kalkuler!$Q$20+Kalkuler!$Q$21))","v":0},{"$f":"('Fordeling af arbejdsopgaver'!Q6*Kalkuler!$Q$30)+('Fordeling af arbejdsopgaver'!Q6*(Kalkuler!$Q$19+Kalkuler!$Q$20+Kalkuler!$Q$21))","v":0},{"$f":"('Fordeling af arbejdsopgaver'!R6*Kalkuler!$Q$30)+('Fordeling af arbejdsopgaver'!R6*(Kalkuler!$Q$19+Kalkuler!$Q$20+Kalkuler!$Q$21))","v":0},{"$f":"('Fordeling af arbejdsopgaver'!S6*Kalkuler!$Q$30)+('Fordeling af arbejdsopgaver'!S6*(Kalkuler!$Q$19+Kalkuler!$Q$20+Kalkuler!$Q$21))","v":0},{"$f":"('Fordeling af arbejdsopgaver'!T6*Kalkuler!$Q$30)+('Fordeling af arbejdsopgaver'!T6*(Kalkuler!$Q$19+Kalkuler!$Q$20+Kalkuler!$Q$21))","v":-223},{"$f":"('Fordeling af arbejdsopgaver'!U6*Kalkuler!$Q$30)+('Fordeling af arbejdsopgaver'!U6*(Kalkuler!$Q$19+Kalkuler!$Q$20+Kalkuler!$Q$21))","v":-223},{"$f":"('Fordeling af arbejdsopgaver'!V6*Kalkuler!$Q$30)+('Fordeling af arbejdsopgaver'!V6*(Kalkuler!$Q$19+Kalkuler!$Q$20+Kalkuler!$Q$21))","v":0},{"$f":"('Fordeling af arbejdsopgaver'!W6*Kalkuler!$Q$30)+('Fordeling af arbejdsopgaver'!W6*(Kalkuler!$Q$19+Kalkuler!$Q$20+Kalkuler!$Q$21))","v":0},{"$f":"('Fordeling af arbejdsopgaver'!X6*Kalkuler!$Q$30)+('Fordeling af arbejdsopgaver'!X6*(Kalkuler!$Q$19+Kalkuler!$Q$20+Kalkuler!$Q$21))","v":0},{"$f":"('Fordeling af arbejdsopgaver'!Y6*Kalkuler!$Q$30)+('Fordeling af arbejdsopgaver'!Y6*(Kalkuler!$Q$19+Kalkuler!$Q$20+Kalkuler!$Q$21))","v":0},{"$f":"('Fordeling af arbejdsopgaver'!Z6*Kalkuler!$Q$30)+('Fordeling af arbejdsopgaver'!Z6*(Kalkuler!$Q$19+Kalkuler!$Q$20+Kalkuler!$Q$21))","v":0},{"$f":"('Fordeling af arbejdsopgaver'!AA6*Kalkuler!$Q$30)+('Fordeling af arbejdsopgaver'!AA6*(Kalkuler!$Q$19+Kalkuler!$Q$20+Kalkuler!$Q$21))","v":0},{"$f":"('Fordeling af arbejdsopgaver'!AB6*Kalkuler!$Q$30)+('Fordeling af arbejdsopgaver'!AB6*(Kalkuler!$Q$19+Kalkuler!$Q$20+Kalkuler!$Q$21))","v":0}]
[null,"I alt",{"$f":"SUM(C3:C7)","v":-1240},0,0,0,0,0,-3310.5,-223,-223,-223,-223,0,0,0,0,0,-223,-223,-3310.5,0,0,0,0,0,0]
[null,"År til dato",null,{"$f":"SUM($D8:D8)","v":0},{"$f":"SUM($D8:E8)","v":0},{"$f":"SUM($D8:F8)","v":0},{"$f":"SUM($D8:G8)","v":0},{"$f":"SUM($D8:H8)","v":0},{"$f":"SUM($D8:I8)","v":-3310.5},{"$f":"SUM($D8:J8)","v":-3533.5},{"$f":"SUM($D8:K8)","v":-3756.5},{"$f":"SUM($D8:L8)","v":-3979.5},{"$f":"SUM($D8:M8)","v":-4202.5},{"$f":"SUM($D8:N8)","v":-4202.5},{"$f":"SUM($D8:O8)","v":-4202.5},{"$f":"SUM($D8:P8)","v":-4202.5},{"$f":"SUM($D8:Q8)","v":-4202.5},{"$f":"SUM($D8:R8)","v":-4202.5},{"$f":"SUM($D8:S8)","v":-4425.5},{"$f":"SUM($D8:T8)","v":-4648.5},{"$f":"SUM($D8:U8)","v":-7959},{"$f":"SUM($D8:V8)","v":-7959},{"$f":"SUM($D8:W8)","v":-7959},{"$f":"SUM($D8:X8)","v":-7959},{"$f":"SUM($D8:Y8)","v":-7959},{"$f":"SUM($D8:Z8)","v":-7959},{"$f":"SUM($D8:AA8)","v":-7959}]
["Stivelsekartofler","Pløjning",null,{"$f":"SUM($D9:D9)","v":0},{"$f":"'Fordeling af arbejdsopgaver'!F9*Kalkuler!$AC$31","v":0},{"$f":"'Fordeling af arbejdsopgaver'!G9*Kalkuler!$AC$31","v":0},{"$f":"'Fordeling af arbejdsopgaver'!H9*Kalkuler!$AC$31","v":-362.5},{"$f":"'Fordeling af arbejdsopgaver'!I9*Kalkuler!$AC$31","v":-362.5},{"$f":"'Fordeling af arbejdsopgaver'!J9*Kalkuler!$AC$31","v":0},{"$f":"'Fordeling af arbejdsopgaver'!K9*Kalkuler!$AC$31","v":0},{"$f":"'Fordeling af arbejdsopgaver'!L9*Kalkuler!$AC$31","v":0},{"$f":"'Fordeling af arbejdsopgaver'!M9*Kalkuler!$AC$31","v":0},{"$f":"'Fordeling af arbejdsopgaver'!N9*Kalkuler!$AC$31","v":0},{"$f":"'Fordeling af arbejdsopgaver'!O9*Kalkuler!$AC$31","v":0},{"$f":"'Fordeling af arbejdsopgaver'!P9*Kalkuler!$AC$31","v":0},{"$f":"'Fordeling af arbejdsopgaver'!Q9*Kalkuler!$AC$31","v":0},{"$f":"'Fordeling af arbejdsopgaver'!R9*Kalkuler!$AC$31","v":0},{"$f":"'Fordeling af arbejdsopgaver'!S9*Kalkuler!$AC$31","v":0},{"$f":"'Fordeling af arbejdsopgaver'!T9*Kalkuler!$AC$31","v":0},{"$f":"'Fordeling af arbejdsopgaver'!U9*Kalkuler!$AC$31","v":0},{"$f":"'Fordeling af arbejdsopgaver'!V9*Kalkuler!$AC$31","v":0},{"$f":"'Fordeling af arbejdsopgaver'!W9*Kalkuler!$AC$31","v":0},{"$f":"'Fordeling af arbejdsopgaver'!X9*Kalkuler!$AC$31","v":0},{"$f":"'Fordeling af arbejdsopgaver'!Y9*Kalkuler!$AC$31","v":0},{"$f":"'Fordeling af arbejdsopgaver'!Z9*Kalkuler!$AC$31","v":0},{"$f":"'Fordeling af arbejdsopgaver'!AA9*Kalkuler!$AC$31","v":0},{"$f":"'Fordeling af arbejdsopgaver'!AB9*Kalkuler!$AC$31","v":0}]
[null,"Jorbearb. Før såning",null,{"$f":"SUM($D10:D10)","v":0},{"$f":"'Fordeling af arbejdsopgaver'!F10*(Kalkuler!$AC$32+Kalkuler!$AC$34)","v":0},{"$f":"'Fordeling af arbejdsopgaver'!G10*(Kalkuler!$AC$32+Kalkuler!$AC$34)","v":0},{"$f":"'Fordeling af arbejdsopgaver'!H10*(Kalkuler!$AC$32+Kalkuler!$AC$34)","v":0},{"$f":"'Fordeling af arbejdsopgaver'!I10*(Kalkuler!$AC$32+Kalkuler!$AC$34)","v":0},{"$f":"'Fordeling af arbejdsopgaver'!J10*(Kalkuler!$AC$32+Kalkuler!$AC$34)","v":0},{"$f":"'Fordeling af arbejdsopgaver'!K10*(Kalkuler!$AC$32+Kalkuler!$AC$34)","v":-1387.5},{"$f":"'Fordeling af arbejdsopgaver'!L10*(Kalkuler!$AC$32+Kalkuler!$AC$34)","v":-1387.5},{"$f":"'Fordeling af arbejdsopgaver'!M10*(Kalkuler!$AC$32+Kalkuler!$AC$34)","v":0},{"$f":"'Fordeling af arbejdsopgaver'!N10*(Kalkuler!$AC$32+Kalkuler!$AC$34)","v":0},{"$f":"'Fordeling af arbejdsopgaver'!O10*(Kalkuler!$AC$32+Kalkuler!$AC$34)","v":0},{"$f":"'Fordeling af arbejdsopgaver'!P10*(Kalkuler!$AC$32+Kalkuler!$AC$34)","v":0},{"$f":"'Fordeling af arbejdsopgaver'!Q10*(Kalkuler!$AC$32+Kalkuler!$AC$34)","v":0},{"$f":"'Fordeling af arbejdsopgaver'!R10*(Kalkuler!$AC$32+Kalkuler!$AC$34)","v":0},{"$f":"'Fordeling af arbejdsopgaver'!S10*(Kalkuler!$AC$32+Kalkuler!$AC$34)","v":0},{"$f":"'Fordeling af arbejdsopgaver'!T10*(Kalkuler!$AC$32+Kalkuler!$AC$34)","v":0},{"$f":"'Fordeling af arbejdsopgaver'!U10*(Kalkuler!$AC$32+Kalkuler!$AC$34)","v":0},{"$f":"'Fordeling af arbejdsopgaver'!V10*(Kalkuler!$AC$32+Kalkuler!$AC$34)","v":0},{"$f":"'Fordeling af arbejdsopgaver'!W10*(Kalkuler!$AC$32+Kalkuler!$AC$34)","v":0},{"$f":"'Fordeling af arbejdsopgaver'!X10*(Kalkuler!$AC$32+Kalkuler!$AC$34)","v":0},{"$f":"'Fordeling af arbejdsopgaver'!Y10*(Kalkuler!$AC$32+Kalkuler!$AC$34)","v":0},{"$f":"'Fordeling af arbejdsopgaver'!Z10*(Kalkuler!$AC$32+Kalkuler!$AC$34)","v":0},{"$f":"'Fordeling af arbejdsopgaver'!AA10*(Kalkuler!$AC$32+Kalkuler!$AC$34)","v":0},{"$f":"'Fordeling af arbejdsopgaver'!AB10*(Kalkuler!$AC$32+Kalkuler!$AC$34)","v":0}]
[null,"Afgrødeetabl. (såning, lægning o.l.)",null,{"$f":"SUM($D11:D11)","v":0},{"$f":"'Fordeling af arbejdsopgaver'!F11*(Kalkuler!$AC$15+Kalkuler!$AC$16+Kalkuler!$AC$34+Kalkuler!$AC$35)","v":0},{"$f":"'Fordeling af arbejdsopgaver'!G11*(Kalkuler!$AC$15+Kalkuler!$AC$16+Kalkuler!$AC$34+Kalkuler!$AC$35)","v":0},{"$f":"'Fordeling af arbejdsopgaver'!H11*(Kalkuler!$AC$15+Kalkuler!$AC$16+Kalkuler!$AC$34+Kalkuler!$AC$35)","v":0},{"$f":"'Fordeling af arbejdsopgaver'!I11*(Kalkuler!$AC$15+Kalkuler!$AC$16+Kalkuler!$AC$34+Kalkuler!$AC$35)","v":0},{"$f":"'Fordeling af arbejdsopgaver'!J11*(Kalkuler!$AC$15+Kalkuler!$AC$16+Kalkuler!$AC$34+Kalkuler!$AC$35)","v":0},{"$f":"'Fordeling af arbejdsopgaver'!K11*(Kalkuler!$AC$15+Kalkuler!$AC$16+Kalkuler!$AC$34+Kalkuler!$AC$35)","v":-3656},{"$f":"'Fordeling af arbejdsopgaver'!L11*(Kalkuler!$AC$15+Kalkuler!$AC$16+Kalkuler!$AC$34+Kalkuler!$AC$35)","v":-3656},{"$f":"'Fordeling af arbejdsopgaver'!M11*(Kalkuler!$AC$15+Kalkuler!$AC$16+Kalkuler!$AC$34+Kalkuler!$AC$35)","v":0},{"$f":"'Fordeling af arbejdsopgaver'!N11*(Kalkuler!$AC$15+Kalkuler!$AC$16+Kalkuler!$AC$34+Kalkuler!$AC$35)","v":0},{"$f":"'Fordeling af arbejdsopgaver'!O11*(Kalkuler!$AC$15+Kalkuler!$AC$16+Kalkuler!$AC$34+Kalkuler!$AC$35)","v":0},{"$f":"'Fordeling af arbejdsopgaver'!P11*(Kalkuler!$AC$15+Kalkuler!$AC$16+Kalkuler!$AC$34+Kalkuler!$AC$35)","v":0},{"$f":"'Fordeling af arbejdsopgaver'!Q11*(Kalkuler!$AC$15+Kalkuler!$AC$16+Kalkuler!$AC$34+Kalkuler!$AC$35)","v":0},{"$f":"'Fordeling af arbejdsopgaver'!R11*(Kalkuler!$AC$15+Kalkuler!$AC$16+Kalkuler!$AC$34+Kalkuler!$AC$35)","v":0},{"$f":"'Fordeling af arbejdsopgaver'!S11*(Kalkuler!$AC$15+Kalkuler!$AC$16+Kalkuler!$AC$34+Kalkuler!$AC$35)","v":0},{"$f":"'Fordeling af arbejdsopgaver'!T11*(Kalkuler!$AC$15+Kalkuler!$AC$16+Kalkuler!$AC$34+Kalkuler!$AC$35)","v":0},{"$f":"'Fordeling af arbejdsopgaver'!U11*(Kalkuler!$AC$15+Kalkuler!$AC$16+Kalkuler!$AC$34+Kalkuler!$AC$35)","v":0},{"$f":"'Fordeling af arbejdsopgaver'!V11*(Kalkuler!$AC$15+Kalkuler!$AC$16+Kalkuler!$AC$34+Kalkuler!$AC$35)","v":0},{"$f":"'Fordeling af arbejdsopgaver'!W11*(Kalkuler!$AC$15+Kalkuler!$AC$16+Kalkuler!$AC$34+Kalkuler!$AC$35)","v":0},{"$f":"'Fordeling af arbejdsopgaver'!X11*(Kalkuler!$AC$15+Kalkuler!$AC$16+Kalkuler!$AC$34+Kalkuler!$AC$35)","v":0},{"$f":"'Fordeling af arbejdsopgaver'!Y11*(Kalkuler!$AC$15+Kalkuler!$AC$16+Kalkuler!$AC$34+Kalkuler!$AC$35)","v":0},{"$f":"'Fordeling af arbejdsopgaver'!Z11*(Kalkuler!$AC$15+Kalkuler!$AC$16+Kalkuler!$AC$34+Kalkuler!$AC$35)","v":0},{"$f":"'Fordeling af arbejdsopgaver'!AA11*(Kalkuler!$AC$15+Kalkuler!$AC$16+Kalkuler!$AC$34+Kalkuler!$AC$35)","v":0},{"$f":"'Fordeling af arbejdsopgaver'!AB11*(Kalkuler!$AC$15+Kalkuler!$AC$16+Kalkuler!$AC$34+Kalkuler!$AC$35)","v":0}]
[null,"Gødskning (handelsgødning)",null,{"$f":"SUM($D12:D12)","v":0},{"$f":"'Fordeling af arbejdsopgaver'!F12*(Kalkuler!$AC$17+Kalkuler!$AC$18+Kalkuler!$AC$19+Kalkuler!$AC$33)","v":0},{"$f":"'Fordeling af arbejdsopgaver'!G12*(Kalkuler!$AC$17+Kalkuler!$AC$18+Kalkuler!$AC$19+Kalkuler!$AC$33)","v":0},{"$f":"'Fordeling af arbejdsopgaver'!H12*(Kalkuler!$AC$17+Kalkuler!$AC$18+Kalkuler!$AC$19+Kalkuler!$AC$33)","v":0},{"$f":"'Fordeling af arbejdsopgaver'!I12*(Kalkuler!$AC$17+Kalkuler!$AC$18+Kalkuler!$AC$19+Kalkuler!$AC$33)","v":0},{"$f":"'Fordeling af arbejdsopgaver'!J12*(Kalkuler!$AC$17+Kalkuler!$AC$18+Kalkuler!$AC$19+Kalkuler!$AC$33)","v":0},{"$f":"'Fordeling af arbejdsopgaver'!K12*(Kalkuler!$AC$17+Kalkuler!$AC$18+Kalkuler!$AC$19+Kalkuler!$AC$33)","v":-4260},{"$f":"'Fordeling af arbejdsopgaver'!L12*(Kalkuler!$AC$17+Kalkuler!$AC$18+Kalkuler!$AC$19+Kalkuler!$AC$33)","v":-4260},{"$f":"'Fordeling af arbejdsopgaver'!M12*(Kalkuler!$AC$17+Kalkuler!$AC$18+Kalkuler!$AC$19+Kalkuler!$AC$33)","v":0},{"$f":"'Fordeling af arbejdsopgaver'!N12*(Kalkuler!$AC$17+Kalkuler!$AC$18+Kalkuler!$AC$19+Kalkuler!$AC$33)","v":0},{"$f":"'Fordeling af arbejdsopgaver'!O12*(Kalkuler!$AC$17+Kalkuler!$AC$18+Kalkuler!$AC$19+Kalkuler!$AC$33)","v":0},{"$f":"'Fordeling af arbejdsopgaver'!P12*(Kalkuler!$AC$17+Kalkuler!$AC$18+Kalkuler!$AC$19+Kalkuler!$AC$33)","v":0},{"$f":"'Fordeling af arbejdsopgaver'!Q12*(Kalkuler!$AC$17+Kalkuler!$AC$18+Kalkuler!$AC$19+Kalkuler!$AC$33)","v":0},{"$f":"'Fordeling af arbejdsopgaver'!R12*(Kalkuler!$AC$17+Kalkuler!$AC$18+Kalkuler!$AC$19+Kalkuler!$AC$33)","v":0},{"$f":"'Fordeling af arbejdsopgaver'!S12*(Kalkuler!$AC$17+Kalkuler!$AC$18+Kalkuler!$AC$19+Kalkuler!$AC$33)","v":0},{"$f":"'Fordeling af arbejdsopgaver'!T12*(Kalkuler!$AC$17+Kalkuler!$AC$18+Kalkuler!$AC$19+Kalkuler!$AC$33)","v":0},{"$f":"'Fordeling af arbejdsopgaver'!U12*(Kalkuler!$AC$17+Kalkuler!$AC$18+Kalkuler!$AC$19+Kalkuler!$AC$33)","v":0},{"$f":"'Fordeling af arbejdsopgaver'!V12*(Kalkuler!$AC$17+Kalkuler!$AC$18+Kalkuler!$AC$19+Kalkuler!$AC$33)","v":0},{"$f":"'Fordeling af arbejdsopgaver'!W12*(Kalkuler!$AC$17+Kalkuler!$AC$18+Kalkuler!$AC$19+Kalkuler!$AC$33)","v":0},{"$f":"'Fordeling af arbejdsopgaver'!X12*(Kalkuler!$AC$17+Kalkuler!$AC$18+Kalkuler!$AC$19+Kalkuler!$AC$33)","v":0},{"$f":"'Fordeling af arbejdsopgaver'!Y12*(Kalkuler!$AC$17+Kalkuler!$AC$18+Kalkuler!$AC$19+Kalkuler!$AC$33)","v":0},{"$f":"'Fordeling af arbejdsopgaver'!Z12*(Kalkuler!$AC$17+Kalkuler!$AC$18+Kalkuler!$AC$19+Kalkuler!$AC$33)","v":0},{"$f":"'Fordeling af arbejdsopgaver'!AA12*(Kalkuler!$AC$17+Kalkuler!$AC$18+Kalkuler!$AC$19+Kalkuler!$AC$33)","v":0},{"$f":"'Fordeling af arbejdsopgaver'!AB12*(Kalkuler!$AC$17+Kalkuler!$AC$18+Kalkuler!$AC$19+Kalkuler!$AC$33)","v":0}]
[null,"Planteværn",null,{"$f":"SUM($D13:D13)","v":0},{"$f":"'Fordeling af arbejdsopgaver'!F13*(Kalkuler!$AC$20+Kalkuler!$AC$21+Kalkuler!$AC$22+Kalkuler!$AC$36)","v":0},{"$f":"'Fordeling af arbejdsopgaver'!G13*(Kalkuler!$AC$20+Kalkuler!$AC$21+Kalkuler!$AC$22+Kalkuler!$AC$36)","v":0},{"$f":"'Fordeling af arbejdsopgaver'!H13*(Kalkuler!$AC$20+Kalkuler!$AC$21+Kalkuler!$AC$22+Kalkuler!$AC$36)","v":0},{"$f":"'Fordeling af arbejdsopgaver'!I13*(Kalkuler!$AC$20+Kalkuler!$AC$21+Kalkuler!$AC$22+Kalkuler!$AC$36)","v":0},{"$f":"'Fordeling af arbejdsopgaver'!J13*(Kalkuler!$AC$20+Kalkuler!$AC$21+Kalkuler!$AC$22+Kalkuler!$AC$36)","v":0},{"$f":"'Fordeling af arbejdsopgaver'!K13*(Kalkuler!$AC$20+Kalkuler!$AC$21+Kalkuler!$AC$22+Kalkuler!$AC$36)","v":0},{"$f":"'Fordeling af arbejdsopgaver'!L13*(Kalkuler!$AC$20+Kalkuler!$AC$21+Kalkuler!$AC$22+Kalkuler!$AC$36)","v":0},{"$f":"'Fordeling af arbejdsopgaver'!M13*(Kalkuler!$AC$20+Kalkuler!$AC$21+Kalkuler!$AC$22+Kalkuler!$AC$36)","v":-444.75},{"$f":"'Fordeling af arbejdsopgaver'!N13*(Kalkuler!$AC$20+Kalkuler!$AC$21+Kalkuler!$AC$22+Kalkuler!$AC$36)","v":-444.75},{"$f":"'Fordeling af arbejdsopgaver'!O13*(Kalkuler!$AC$20+Kalkuler!$AC$21+Kalkuler!$AC$22+Kalkuler!$AC$36)","v":-889.5},{"$f":"'Fordeling af arbejdsopgaver'!P13*(Kalkuler!$AC$20+Kalkuler!$AC$21+Kalkuler!$AC$22+Kalkuler!$AC$36)","v":-889.5},{"$f":"'Fordeling af arbejdsopgaver'!Q13*(Kalkuler!$AC$20+Kalkuler!$AC$21+Kalkuler!$AC$22+Kalkuler!$AC$36)","v":-889.5},{"$f":"'Fordeling af arbejdsopgaver'!R13*(Kalkuler!$AC$20+Kalkuler!$AC$21+Kalkuler!$AC$22+Kalkuler!$AC$36)","v":-889.5},{"$f":"'Fordeling af arbejdsopgaver'!S13*(Kalkuler!$AC$20+Kalkuler!$AC$21+Kalkuler!$AC$22+Kalkuler!$AC$36)","v":-889.5},{"$f":"'Fordeling af arbejdsopgaver'!T13*(Kalkuler!$AC$20+Kalkuler!$AC$21+Kalkuler!$AC$22+Kalkuler!$AC$36)","v":-889.5},{"$f":"'Fordeling af arbejdsopgaver'!U13*(Kalkuler!$AC$20+Kalkuler!$AC$21+Kalkuler!$AC$22+Kalkuler!$AC$36)","v":-889.5},{"$f":"'Fordeling af arbejdsopgaver'!V13*(Kalkuler!$AC$20+Kalkuler!$AC$21+Kalkuler!$AC$22+Kalkuler!$AC$36)","v":0},{"$f":"'Fordeling af arbejdsopgaver'!W13*(Kalkuler!$AC$20+Kalkuler!$AC$21+Kalkuler!$AC$22+Kalkuler!$AC$36)","v":0},{"$f":"'Fordeling af arbejdsopgaver'!X13*(Kalkuler!$AC$20+Kalkuler!$AC$21+Kalkuler!$AC$22+Kalkuler!$AC$36)","v":0},{"$f":"'Fordeling af arbejdsopgaver'!Y13*(Kalkuler!$AC$20+Kalkuler!$AC$21+Kalkuler!$AC$22+Kalkuler!$AC$36)","v":0},{"$f":"'Fordeling af arbejdsopgaver'!Z13*(Kalkuler!$AC$20+Kalkuler!$AC$21+Kalkuler!$AC$22+Kalkuler!$AC$36)","v":0},{"$f":"'Fordeling af arbejdsopgaver'!AA13*(Kalkuler!$AC$20+Kalkuler!$AC$21+Kalkuler!$AC$22+Kalkuler!$AC$36)","v":0},{"$f":"'Fordeling af arbejdsopgaver'!AB13*(Kalkuler!$AC$20+Kalkuler!$AC$21+Kalkuler!$AC$22+Kalkuler!$AC$36)","v":0}]
[null,"I alt",{"$f":"SUM(C10:C14)","v":0},{"$f":"SUM(D9:D14)","v":0},{"$f":"SUM(E10:E14)","v":0},0,-362.5,-362.5,0,-9303.5,-9303.5,-444.75,-444.75,-889.5,-889.5,-889.5,-889.5,-889.5,-889.5,-889.5,0,0,0,0,0,0,0]
[null,"År til dato"]
["Kløvergræs til slæt","Pløjning"]
[null,"Jorbearb. Før såning"]
[null,"Afgrødeetabl. (såning, lægning o.l.)",{"$f":"'Fordeling af arbejdsopgaver'!D17*(Kalkuler!$BA$15+Kalkuler!$BA$25)*3","v":-1278},{"$f":"'Fordeling af arbejdsopgaver'!E17*(Kalkuler!$BA$15+Kalkuler!$BA$25)*3","v":0},{"$f":"'Fordeling af arbejdsopgaver'!F17*(Kalkuler!$BA$15+Kalkuler!$BA$25)*3","v":0},{"$f":"'Fordeling af arbejdsopgaver'!G17*(Kalkuler!$BA$15+Kalkuler!$BA$25)*3","v":0},{"$f":"'Fordeling af arbejdsopgaver'!H17*(Kalkuler!$BA$15+Kalkuler!$BA$25)*3","v":0},{"$f":"'Fordeling af arbejdsopgaver'!I17*(Kalkuler!$BA$15+Kalkuler!$BA$25)*3","v":0},{"$f":"'Fordeling af arbejdsopgaver'!J17*(Kalkuler!$BA$15+Kalkuler!$BA$25)*3","v":0},{"$f":"'Fordeling af arbejdsopgaver'!K17*(Kalkuler!$BA$15+Kalkuler!$BA$25)*3","v":0},{"$f":"'Fordeling af arbejdsopgaver'!L17*(Kalkuler!$BA$15+Kalkuler!$BA$25)*3","v":0},{"$f":"'Fordeling af arbejdsopgaver'!M17*(Kalkuler!$BA$15+Kalkuler!$BA$25)*3","v":0},{"$f":"'Fordeling af arbejdsopgaver'!N17*(Kalkuler!$BA$15+Kalkuler!$BA$25)*3","v":0},{"$f":"'Fordeling af arbejdsopgaver'!O17*(Kalkuler!$BA$15+Kalkuler!$BA$25)*3","v":0},{"$f":"'Fordeling af arbejdsopgaver'!P17*(Kalkuler!$BA$15+Kalkuler!$BA$25)*3","v":0},{"$f":"'Fordeling af arbejdsopgaver'!Q17*(Kalkuler!$BA$15+Kalkuler!$BA$25)*3","v":0},{"$f":"'Fordeling af arbejdsopgaver'!R17*(Kalkuler!$BA$15+Kalkuler!$BA$25)*3","v":0},{"$f":"'Fordeling af arbejdsopgaver'!S17*(Kalkuler!$BA$15+Kalkuler!$BA$25)*3","v":-1278},{"$f":"'Fordeling af arbejdsopgaver'!T17*(Kalkuler!$BA$15+Kalkuler!$BA$25)*3","v":0},{"$f":"'Fordeling af arbejdsopgaver'!U17*(Kalkuler!$BA$15+Kalkuler!$BA$25)*3","v":0},{"$f":"'Fordeling af arbejdsopgaver'!V17*(Kalkuler!$BA$15+Kalkuler!$BA$25)*3","v":0},{"$f":"'Fordeling af arbejdsopgaver'!W17*(Kalkuler!$BA$15+Kalkuler!$BA$25)*3","v":0},{"$f":"'Fordeling af arbejdsopgaver'!X17*(Kalkuler!$BA$15+Kalkuler!$BA$25)*3","v":0},{"$f":"'Fordeling af arbejdsopgaver'!Y17*(Kalkuler!$BA$15+Kalkuler!$BA$25)*3","v":0},{"$f":"'Fordeling af arbejdsopgaver'!Z17*(Kalkuler!$BA$15+Kalkuler!$BA$25)*3","v":0},{"$f":"'Fordeling af arbejdsopgaver'!AA17*(Kalkuler!$BA$15+Kalkuler!$BA$25)*3","v":0},{"$f":"'Fordeling af arbejdsopgaver'!AB17*(Kalkuler!$BA$15+Kalkuler!$BA$25)*3","v":0}]
[null,"Gødskning (handelsgødning)",null,{"$f":"'Fordeling af arbejdsopgaver'!E18*(Kalkuler!$BA$16+Kalkuler!$BA$17+Kalkuler!$BA$18+Kalkuler!$BA$24)","v":0},{"$f":"'Fordeling af arbejdsopgaver'!F18*(Kalkuler!$BA$16+Kalkuler!$BA$17+Kalkuler!$BA$18+Kalkuler!$BA$24)","v":0},{"$f":"'Fordeling af arbejdsopgaver'!G18*(Kalkuler!$BA$16+Kalkuler!$BA$17+Kalkuler!$BA$18+Kalkuler!$BA$24)","v":0},{"$f":"'Fordeling af arbejdsopgaver'!H18*(Kalkuler!$BA$16+Kalkuler!$BA$17+Kalkuler!$BA$18+Kalkuler!$BA$24)","v":0},{"$f":"'Fordeling af arbejdsopgaver'!I18*(Kalkuler!$BA$16+Kalkuler!$BA$17+Kalkuler!$BA$18+Kalkuler!$BA$24)","v":0},{"$f":"'Fordeling af arbejdsopgaver'!J18*(Kalkuler!$BA$16+Kalkuler!$BA$17+Kalkuler!$BA$18+Kalkuler!$BA$24)","v":-3814},{"$f":"'Fordeling af arbejdsopgaver'!K18*(Kalkuler!$BA$16+Kalkuler!$BA$17+Kalkuler!$BA$18+Kalkuler!$BA$24)","v":0},{"$f":"'Fordeling af arbejdsopgaver'!L18*(Kalkuler!$BA$16+Kalkuler!$BA$17+Kalkuler!$BA$18+Kalkuler!$BA$24)","v":0},{"$f":"'Fordeling af arbejdsopgaver'!M18*(Kalkuler!$BA$16+Kalkuler!$BA$17+Kalkuler!$BA$18+Kalkuler!$BA$24)","v":0},{"$f":"'Fordeling af arbejdsopgaver'!N18*(Kalkuler!$BA$16+Kalkuler!$BA$17+Kalkuler!$BA$18+Kalkuler!$BA$24)","v":-3814},{"$f":"'Fordeling af arbejdsopgaver'!O18*(Kalkuler!$BA$16+Kalkuler!$BA$17+Kalkuler!$BA$18+Kalkuler!$BA$24)","v":0},{"$f":"'Fordeling af arbejdsopgaver'!P18*(Kalkuler!$BA$16+Kalkuler!$BA$17+Kalkuler!$BA$18+Kalkuler!$BA$24)","v":0},{"$f":"'Fordeling af arbejdsopgaver'!Q18*(Kalkuler!$BA$16+Kalkuler!$BA$17+Kalkuler!$BA$18+Kalkuler!$BA$24)","v":-3814},{"$f":"'Fordeling af arbejdsopgaver'!R18*(Kalkuler!$BA$16+Kalkuler!$BA$17+Kalkuler!$BA$18+Kalkuler!$BA$24)","v":0},{"$f":"'Fordeling af arbejdsopgaver'!S18*(Kalkuler!$BA$16+Kalkuler!$BA$17+Kalkuler!$BA$18+Kalkuler!$BA$24)","v":0},{"$f":"'Fordeling af arbejdsopgaver'!T18*(Kalkuler!$BA$16+Kalkuler!$BA$17+Kalkuler!$BA$18+Kalkuler!$BA$24)","v":0},{"$f":"'Fordeling af arbejdsopgaver'!U18*(Kalkuler!$BA$16+Kalkuler!$BA$17+Kalkuler!$BA$18+Kalkuler!$BA$24)","v":0},{"$f":"'Fordeling af arbejdsopgaver'!V18*(Kalkuler!$BA$16+Kalkuler!$BA$17+Kalkuler!$BA$18+Kalkuler!$BA$24)","v":0},{"$f":"'Fordeling af arbejdsopgaver'!W18*(Kalkuler!$BA$16+Kalkuler!$BA$17+Kalkuler!$BA$18+Kalkuler!$BA$24)","v":0},{"$f":"'Fordeling af arbejdsopgaver'!X18*(Kalkuler!$BA$16+Kalkuler!$BA$17+Kalkuler!$BA$18+Kalkuler!$BA$24)","v":0},{"$f":"'Fordeling af arbejdsopgaver'!Y18*(Kalkuler!$BA$16+Kalkuler!$BA$17+Kalkuler!$BA$18+Kalkuler!$BA$24)","v":0},{"$f":"'Fordeling af arbejdsopgaver'!Z18*(Kalkuler!$BA$16+Kalkuler!$BA$17+Kalkuler!$BA$18+Kalkuler!$BA$24)","v":0},{"$f":"'Fordeling af arbejdsopgaver'!AA18*(Kalkuler!$BA$16+Kalkuler!$BA$17+Kalkuler!$BA$18+Kalkuler!$BA$24)","v":0},{"$f":"'Fordeling af arbejdsopgaver'!AB18*(Kalkuler!$BA$16+Kalkuler!$BA$17+Kalkuler!$BA$18+Kalkuler!$BA$24)","v":0}]
[null,"Planteværn"]
[null,"I alt",{"$f":"SUM(C17:C21)","v":-1278},0,0,0,0,0,-3814,0,0,0,-3814,0,0,-3814,0,-1278,0,0,0,0,0,0,0,0,0]
[null,"År til dato"]
["Majs til helsæd","Pløjning",null,{"$f":"'Fordeling af arbejdsopgaver'!E21*Kalkuler!$AU$26","v":0},{"$f":"'Fordeling af arbejdsopgaver'!F21*Kalkuler!$AU$26","v":0},{"$f":"'Fordeling af arbejdsopgaver'!G21*Kalkuler!$AU$26","v":0},{"$f":"'Fordeling af arbejdsopgaver'!H21*Kalkuler!$AU$26","v":0},{"$f":"'Fordeling af arbejdsopgaver'!I21*Kalkuler!$AU$26","v":0},{"$f":"'Fordeling af arbejdsopgaver'!J21*Kalkuler!$AU$26","v":-362.5},{"$f":"'Fordeling af arbejdsopgaver'!K21*Kalkuler!$AU$26","v":-362.5},{"$f":"'Fordeling af arbejdsopgaver'!L21*Kalkuler!$AU$26","v":0},{"$f":"'Fordeling af arbejdsopgaver'!M21*Kalkuler!$AU$26","v":0},{"$f":"'Fordeling af arbejdsopgaver'!N21*Kalkuler!$AU$26","v":0},{"$f":"'Fordeling af arbejdsopgaver'!O21*Kalkuler!$AU$26","v":0},{"$f":"'Fordeling af arbejdsopgaver'!P21*Kalkuler!$AU$26","v":0},{"$f":"'Fordeling af arbejdsopgaver'!Q21*Kalkuler!$AU$26","v":0},{"$f":"'Fordeling af arbejdsopgaver'!R21*Kalkuler!$AU$26","v":0},{"$f":"'Fordeling af arbejdsopgaver'!S21*Kalkuler!$AU$26","v":0},{"$f":"'Fordeling af arbejdsopgaver'!T21*Kalkuler!$AU$26","v":0},{"$f":"'Fordeling af arbejdsopgaver'!U21*Kalkuler!$AU$26","v":0},{"$f":"'Fordeling af arbejdsopgaver'!V21*Kalkuler!$AU$26","v":0},{"$f":"'Fordeling af arbejdsopgaver'!W21*Kalkuler!$AU$26","v":0},{"$f":"'Fordeling af arbejdsopgaver'!X21*Kalkuler!$AU$26","v":0},{"$f":"'Fordeling af arbejdsopgaver'!Y21*Kalkuler!$AU$26","v":0},{"$f":"'Fordeling af arbejdsopgaver'!Z21*Kalkuler!$AU$26","v":0},{"$f":"'Fordeling af arbejdsopgaver'!AA21*Kalkuler!$AU$26","v":0},{"$f":"'Fordeling af arbejdsopgaver'!AB21*Kalkuler!$AU$26","v":0}]
[null,"Jorbearb. Før såning",null,{"$f":"'Fordeling af arbejdsopgaver'!E22*Kalkuler!$AU$28","v":0},{"$f":"'Fordeling af arbejdsopgaver'!F22*Kalkuler!$AU$28","v":0},{"$f":"'Fordeling af arbejdsopgaver'!G22*Kalkuler!$AU$28","v":0},{"$f":"'Fordeling af arbejdsopgaver'!H22*Kalkuler!$AU$28","v":0},{"$f":"'Fordeling af arbejdsopgaver'!I22*Kalkuler!$AU$28","v":0},{"$f":"'Fordeling af arbejdsopgaver'!J22*Kalkuler!$AU$28","v":0},{"$f":"'Fordeling af arbejdsopgaver'!K22*Kalkuler!$AU$28","v":-200},{"$f":"'Fordeling af arbejdsopgaver'!L22*Kalkuler!$AU$28","v":0},{"$f":"'Fordeling af arbejdsopgaver'!M22*Kalkuler!$AU$28","v":0},{"$f":"'Fordeling af arbejdsopgaver'!N22*Kalkuler!$AU$28","v":0},{"$f":"'Fordeling af arbejdsopgaver'!O22*Kalkuler!$AU$28","v":0},{"$f":"'Fordeling af arbejdsopgaver'!P22*Kalkuler!$AU$28","v":0},{"$f":"'Fordeling af arbejdsopgaver'!Q22*Kalkuler!$AU$28","v":0},{"$f":"'Fordeling af arbejdsopgaver'!R22*Kalkuler!$AU$28","v":0},{"$f":"'Fordeling af arbejdsopgaver'!S22*Kalkuler!$AU$28","v":0},{"$f":"'Fordeling af arbejdsopgaver'!T22*Kalkuler!$AU$28","v":0},{"$f":"'Fordeling af arbejdsopgaver'!U22*Kalkuler!$AU$28","v":0},{"$f":"'Fordeling af arbejdsopgaver'!V22*Kalkuler!$AU$28","v":0},{"$f":"'Fordeling af arbejdsopgaver'!W22*Kalkuler!$AU$28","v":0},{"$f":"'Fordeling af arbejdsopgaver'!X22*Kalkuler!$AU$28","v":0},{"$f":"'Fordeling af arbejdsopgaver'!Y22*Kalkuler!$AU$28","v":0},{"$f":"'Fordeling af arbejdsopgaver'!Z22*Kalkuler!$AU$28","v":0},{"$f":"'Fordeling af arbejdsopgaver'!AA22*Kalkuler!$AU$28","v":0},{"$f":"'Fordeling af arbejdsopgaver'!AB22*Kalkuler!$AU$28","v":0}]
[null,"Afgrødeetabl. (såning, lægning o.l.)",null,{"$f":"'Fordeling af arbejdsopgaver'!E23*(Kalkuler!$AU$15+Kalkuler!$AU$29+Kalkuler!$AU$30)","v":0},{"$f":"'Fordeling af arbejdsopgaver'!F23*(Kalkuler!$AU$15+Kalkuler!$AU$29+Kalkuler!$AU$30)","v":0},{"$f":"'Fordeling af arbejdsopgaver'!G23*(Kalkuler!$AU$15+Kalkuler!$AU$29+Kalkuler!$AU$30)","v":0},{"$f":"'Fordeling af arbejdsopgaver'!H23*(Kalkuler!$AU$15+Kalkuler!$AU$29+Kalkuler!$AU$30)","v":0},{"$f":"'Fordeling af arbejdsopgaver'!I23*(Kalkuler!$AU$15+Kalkuler!$AU$29+Kalkuler!$AU$30)","v":0},{"$f":"'Fordeling af arbejdsopgaver'!J23*(Kalkuler!$AU$15+Kalkuler!$AU$29+Kalkuler!$AU$30)","v":0},{"$f":"'Fordeling af arbejdsopgaver'!K23*(Kalkuler!$AU$15+Kalkuler!$AU$29+Kalkuler!$AU$30)","v":0},{"$f":"'Fordeling af arbejdsopgaver'!L23*(Kalkuler!$AU$15+Kalkuler!$AU$29+Kalkuler!$AU$30)","v":-2575},{"$f":"'Fordeling af arbejdsopgaver'!M23*(Kalkuler!$AU$15+Kalkuler!$AU$29+Kalkuler!$AU$30)","v":0},{"$f":"'Fordeling af arbejdsopgaver'!N23*(Kalkuler!$AU$15+Kalkuler!$AU$29+Kalkuler!$AU$30)","v":0},{"$f":"'Fordeling af arbejdsopgaver'!O23*(Kalkuler!$AU$15+Kalkuler!$AU$29+Kalkuler!$AU$30)","v":0},{"$f":"'Fordeling af arbejdsopgaver'!P23*(Kalkuler!$AU$15+Kalkuler!$AU$29+Kalkuler!$AU$30)","v":0},{"$f":"'Fordeling af arbejdsopgaver'!Q23*(Kalkuler!$AU$15+Kalkuler!$AU$29+Kalkuler!$AU$30)","v":0},{"$f":"'Fordeling af arbejdsopgaver'!R23*(Kalkuler!$AU$15+Kalkuler!$AU$29+Kalkuler!$AU$30)","v":0},{"$f":"'Fordeling af arbejdsopgaver'!S23*(Kalkuler!$AU$15+Kalkuler!$AU$29+Kalkuler!$AU$30)","v":0},{"$f":"'Fordeling af arbejdsopgaver'!T23*(Kalkuler!$AU$15+Kalkuler!$AU$29+Kalkuler!$AU$30)","v":0},{"$f":"'Fordeling af arbejdsopgaver'!U23*(Kalkuler!$AU$15+Kalkuler!$AU$29+Kalkuler!$AU$30)","v":0},{"$f":"'Fordeling af arbejdsopgaver'!V23*(Kalkuler!$AU$15+Kalkuler!$AU$29+Kalkuler!$AU$30)","v":0},{"$f":"'Fordeling af arbejdsopgaver'!W23*(Kalkuler!$AU$15+Kalkuler!$AU$29+Kalkuler!$AU$30)","v":0},{"$f":"'Fordeling af arbejdsopgaver'!X23*(Kalkuler!$AU$15+Kalkuler!$AU$29+Kalkuler!$AU$30)","v":0},{"$f":"'Fordeling af arbejdsopgaver'!Y23*(Kalkuler!$AU$15+Kalkuler!$AU$29+Kalkuler!$AU$30)","v":0},{"$f":"'Fordeling af arbejdsopgaver'!Z23*(Kalkuler!$AU$15+Kalkuler!$AU$29+Kalkuler!$AU$30)","v":0},{"$f":"'Fordeling af arbejdsopgaver'!AA23*(Kalkuler!$AU$15+Kalkuler!$AU$29+Kalkuler!$AU$30)","v":0},{"$f":"'Fordeling af arbejdsopgaver'!AB23*(Kalkuler!$AU$15+Kalkuler!$AU$29+Kalkuler!$AU$30)","v":0},null,"Udsæd, Såning med gødningsplacering"]
[null,"Gødskning (handelsgødning)",null,{"$f":"'Fordeling af arbejdsopgaver'!E24*(Kalkuler!$AU$16+Kalkuler!$AU$17+Kalkuler!$AU$18+Kalkuler!$AU$27)","v":0},{"$f":"'Fordeling af arbejdsopgaver'!F24*(Kalkuler!$AU$16+Kalkuler!$AU$17+Kalkuler!$AU$18+Kalkuler!$AU$27)","v":0},{"$f":"'Fordeling af arbejdsopgaver'!G24*(Kalkuler!$AU$16+Kalkuler!$AU$17+Kalkuler!$AU$18+Kalkuler!$AU$27)","v":0},{"$f":"'Fordeling af arbejdsopgaver'!H24*(Kalkuler!$AU$16+Kalkuler!$AU$17+Kalkuler!$AU$18+Kalkuler!$AU$27)","v":0},{"$f":"'Fordeling af arbejdsopgaver'!I24*(Kalkuler!$AU$16+Kalkuler!$AU$17+Kalkuler!$AU$18+Kalkuler!$AU$27)","v":0},{"$f":"'Fordeling af arbejdsopgaver'!J24*(Kalkuler!$AU$16+Kalkuler!$AU$17+Kalkuler!$AU$18+Kalkuler!$AU$27)","v":0},{"$f":"'Fordeling af arbejdsopgaver'!K24*(Kalkuler!$AU$16+Kalkuler!$AU$17+Kalkuler!$AU$18+Kalkuler!$AU$27)","v":-6624},{"$f":"'Fordeling af arbejdsopgaver'!L24*(Kalkuler!$AU$16+Kalkuler!$AU$17+Kalkuler!$AU$18+Kalkuler!$AU$27)","v":0},{"$f":"'Fordeling af arbejdsopgaver'!M24*(Kalkuler!$AU$16+Kalkuler!$AU$17+Kalkuler!$AU$18+Kalkuler!$AU$27)","v":0},{"$f":"'Fordeling af arbejdsopgaver'!N24*(Kalkuler!$AU$16+Kalkuler!$AU$17+Kalkuler!$AU$18+Kalkuler!$AU$27)","v":0},{"$f":"'Fordeling af arbejdsopgaver'!O24*(Kalkuler!$AU$16+Kalkuler!$AU$17+Kalkuler!$AU$18+Kalkuler!$AU$27)","v":0},{"$f":"'Fordeling af arbejdsopgaver'!P24*(Kalkuler!$AU$16+Kalkuler!$AU$17+Kalkuler!$AU$18+Kalkuler!$AU$27)","v":0},{"$f":"'Fordeling af arbejdsopgaver'!Q24*(Kalkuler!$AU$16+Kalkuler!$AU$17+Kalkuler!$AU$18+Kalkuler!$AU$27)","v":0},{"$f":"'Fordeling af arbejdsopgaver'!R24*(Kalkuler!$AU$16+Kalkuler!$AU$17+Kalkuler!$AU$18+Kalkuler!$AU$27)","v":0},{"$f":"'Fordeling af arbejdsopgaver'!S24*(Kalkuler!$AU$16+Kalkuler!$AU$17+Kalkuler!$AU$18+Kalkuler!$AU$27)","v":0},{"$f":"'Fordeling af arbejdsopgaver'!T24*(Kalkuler!$AU$16+Kalkuler!$AU$17+Kalkuler!$AU$18+Kalkuler!$AU$27)","v":0},{"$f":"'Fordeling af arbejdsopgaver'!U24*(Kalkuler!$AU$16+Kalkuler!$AU$17+Kalkuler!$AU$18+Kalkuler!$AU$27)","v":0},{"$f":"'Fordeling af arbejdsopgaver'!V24*(Kalkuler!$AU$16+Kalkuler!$AU$17+Kalkuler!$AU$18+Kalkuler!$AU$27)","v":0},{"$f":"'Fordeling af arbejdsopgaver'!W24*(Kalkuler!$AU$16+Kalkuler!$AU$17+Kalkuler!$AU$18+Kalkuler!$AU$27)","v":0},{"$f":"'Fordeling af arbejdsopgaver'!X24*(Kalkuler!$AU$16+Kalkuler!$AU$17+Kalkuler!$AU$18+Kalkuler!$AU$27)","v":0},{"$f":"'Fordeling af arbejdsopgaver'!Y24*(Kalkuler!$AU$16+Kalkuler!$AU$17+Kalkuler!$AU$18+Kalkuler!$AU$27)","v":0},{"$f":"'Fordeling af arbejdsopgaver'!Z24*(Kalkuler!$AU$16+Kalkuler!$AU$17+Kalkuler!$AU$18+Kalkuler!$AU$27)","v":0},{"$f":"'Fordeling af arbejdsopgaver'!AA24*(Kalkuler!$AU$16+Kalkuler!$AU$17+Kalkuler!$AU$18+Kalkuler!$AU$27)","v":0},{"$f":"'Fordeling af arbejdsopgaver'!AB24*(Kalkuler!$AU$16+Kalkuler!$AU$17+Kalkuler!$AU$18+Kalkuler!$AU$27)","v":0}]
[null,"Planteværn",null,{"$f":"'Fordeling af arbejdsopgaver'!E25*(Kalkuler!$AU$19+Kalkuler!$AU$20+Kalkuler!$AU$31)","v":0},{"$f":"'Fordeling af arbejdsopgaver'!F25*(Kalkuler!$AU$19+Kalkuler!$AU$20+Kalkuler!$AU$31)","v":0},{"$f":"'Fordeling af arbejdsopgaver'!G25*(Kalkuler!$AU$19+Kalkuler!$AU$20+Kalkuler!$AU$31)","v":0},{"$f":"'Fordeling af arbejdsopgaver'!H25*(Kalkuler!$AU$19+Kalkuler!$AU$20+Kalkuler!$AU$31)","v":0},{"$f":"'Fordeling af arbejdsopgaver'!I25*(Kalkuler!$AU$19+Kalkuler!$AU$20+Kalkuler!$AU$31)","v":0},{"$f":"'Fordeling af arbejdsopgaver'!J25*(Kalkuler!$AU$19+Kalkuler!$AU$20+Kalkuler!$AU$31)","v":0},{"$f":"'Fordeling af arbejdsopgaver'!K25*(Kalkuler!$AU$19+Kalkuler!$AU$20+Kalkuler!$AU$31)","v":0},{"$f":"'Fordeling af arbejdsopgaver'!L25*(Kalkuler!$AU$19+Kalkuler!$AU$20+Kalkuler!$AU$31)","v":0},{"$f":"'Fordeling af arbejdsopgaver'!M25*(Kalkuler!$AU$19+Kalkuler!$AU$20+Kalkuler!$AU$31)","v":0},{"$f":"'Fordeling af arbejdsopgaver'!N25*(Kalkuler!$AU$19+Kalkuler!$AU$20+Kalkuler!$AU$31)","v":-460.5},{"$f":"'Fordeling af arbejdsopgaver'!O25*(Kalkuler!$AU$19+Kalkuler!$AU$20+Kalkuler!$AU$31)","v":-460.5},{"$f":"'Fordeling af arbejdsopgaver'!P25*(Kalkuler!$AU$19+Kalkuler!$AU$20+Kalkuler!$AU$31)","v":0},{"$f":"'Fordeling af arbejdsopgaver'!Q25*(Kalkuler!$AU$19+Kalkuler!$AU$20+Kalkuler!$AU$31)","v":0},{"$f":"'Fordeling af arbejdsopgaver'!R25*(Kalkuler!$AU$19+Kalkuler!$AU$20+Kalkuler!$AU$31)","v":0},{"$f":"'Fordeling af arbejdsopgaver'!S25*(Kalkuler!$AU$19+Kalkuler!$AU$20+Kalkuler!$AU$31)","v":0},{"$f":"'Fordeling af arbejdsopgaver'!T25*(Kalkuler!$AU$19+Kalkuler!$AU$20+Kalkuler!$AU$31)","v":0},{"$f":"'Fordeling af arbejdsopgaver'!U25*(Kalkuler!$AU$19+Kalkuler!$AU$20+Kalkuler!$AU$31)","v":0},{"$f":"'Fordeling af arbejdsopgaver'!V25*(Kalkuler!$AU$19+Kalkuler!$AU$20+Kalkuler!$AU$31)","v":0},{"$f":"'Fordeling af arbejdsopgaver'!W25*(Kalkuler!$AU$19+Kalkuler!$AU$20+Kalkuler!$AU$31)","v":0},{"$f":"'Fordeling af arbejdsopgaver'!X25*(Kalkuler!$AU$19+Kalkuler!$AU$20+Kalkuler!$AU$31)","v":0},{"$f":"'Fordeling af arbejdsopgaver'!Y25*(Kalkuler!$AU$19+Kalkuler!$AU$20+Kalkuler!$AU$31)","v":0},{"$f":"'Fordeling af arbejdsopgaver'!Z25*(Kalkuler!$AU$19+Kalkuler!$AU$20+Kalkuler!$AU$31)","v":0},{"$f":"'Fordeling af arbejdsopgaver'!AA25*(Kalkuler!$AU$19+Kalkuler!$AU$20+Kalkuler!$AU$31)","v":0},{"$f":"'Fordeling af arbejdsopgaver'!AB25*(Kalkuler!$AU$19+Kalkuler!$AU$20+Kalkuler!$AU$31)","v":0}]
[null,"I alt",{"$f":"SUM(C24:C28)","v":0},0,0,0,0,0,-362.5,-7186.5,-2575,0,-460.5,-460.5,0,0,0,0,0,0,0,0,0,0,0,0,0]
[null,"År til dato"]
["Sukkerroer","Pløjning",null,{"$f":"'Fordeling af arbejdsopgaver'!E27*Kalkuler!$AI$27","v":0},{"$f":"'Fordeling af arbejdsopgaver'!F27*Kalkuler!$AI$27","v":0},{"$f":"'Fordeling af arbejdsopgaver'!G27*Kalkuler!$AI$27","v":0},{"$f":"'Fordeling af arbejdsopgaver'!H27*Kalkuler!$AI$27","v":0},{"$f":"'Fordeling af arbejdsopgaver'!I27*Kalkuler!$AI$27","v":0},{"$f":"'Fordeling af arbejdsopgaver'!J27*Kalkuler!$AI$27","v":0},{"$f":"'Fordeling af arbejdsopgaver'!K27*Kalkuler!$AI$27","v":0},{"$f":"'Fordeling af arbejdsopgaver'!L27*Kalkuler!$AI$27","v":0},{"$f":"'Fordeling af arbejdsopgaver'!M27*Kalkuler!$AI$27","v":0},{"$f":"'Fordeling af arbejdsopgaver'!N27*Kalkuler!$AI$27","v":0},{"$f":"'Fordeling af arbejdsopgaver'!O27*Kalkuler!$AI$27","v":0},{"$f":"'Fordeling af arbejdsopgaver'!P27*Kalkuler!$AI$27","v":0},{"$f":"'Fordeling af arbejdsopgaver'!Q27*Kalkuler!$AI$27","v":0},{"$f":"'Fordeling af arbejdsopgaver'!R27*Kalkuler!$AI$27","v":0},{"$f":"'Fordeling af arbejdsopgaver'!S27*Kalkuler!$AI$27","v":0},{"$f":"'Fordeling af arbejdsopgaver'!T27*Kalkuler!$AI$27","v":0},{"$f":"'Fordeling af arbejdsopgaver'!U27*Kalkuler!$AI$27","v":0},{"$f":"'Fordeling af arbejdsopgaver'!V27*Kalkuler!$AI$27","v":0},{"$f":"'Fordeling af arbejdsopgaver'!W27*Kalkuler!$AI$27","v":0},{"$f":"'Fordeling af arbejdsopgaver'!X27*Kalkuler!$AI$27","v":0},{"$f":"'Fordeling af arbejdsopgaver'!Y27*Kalkuler!$AI$27","v":-181.25},{"$f":"'Fordeling af arbejdsopgaver'!Z27*Kalkuler!$AI$27","v":-181.25},{"$f":"'Fordeling af arbejdsopgaver'!AA27*Kalkuler!$AI$27","v":-181.25},{"$f":"'Fordeling af arbejdsopgaver'!AB27*Kalkuler!$AI$27","v":-181.25}]
[null,"Jorbearb. Før såning",null,{"$f":"'Fordeling af arbejdsopgaver'!E28*Kalkuler!$AI$29","v":0},{"$f":"'Fordeling af arbejdsopgaver'!F28*Kalkuler!$AI$29","v":0},{"$f":"'Fordeling af arbejdsopgaver'!G28*Kalkuler!$AI$29","v":0},{"$f":"'Fordeling af arbejdsopgaver'!H28*Kalkuler!$AI$29","v":0},{"$f":"'Fordeling af arbejdsopgaver'!I28*Kalkuler!$AI$29","v":0},{"$f":"'Fordeling af arbejdsopgaver'!J28*Kalkuler!$AI$29","v":-400},{"$f":"'Fordeling af arbejdsopgaver'!K28*Kalkuler!$AI$29","v":0},{"$f":"'Fordeling af arbejdsopgaver'!L28*Kalkuler!$AI$29","v":0},{"$f":"'Fordeling af arbejdsopgaver'!M28*Kalkuler!$AI$29","v":0},{"$f":"'Fordeling af arbejdsopgaver'!N28*Kalkuler!$AI$29","v":0},{"$f":"'Fordeling af arbejdsopgaver'!O28*Kalkuler!$AI$29","v":0},{"$f":"'Fordeling af arbejdsopgaver'!P28*Kalkuler!$AI$29","v":0},{"$f":"'Fordeling af arbejdsopgaver'!Q28*Kalkuler!$AI$29","v":0},{"$f":"'Fordeling af arbejdsopgaver'!R28*Kalkuler!$AI$29","v":0},{"$f":"'Fordeling af arbejdsopgaver'!S28*Kalkuler!$AI$29","v":0},{"$f":"'Fordeling af arbejdsopgaver'!T28*Kalkuler!$AI$29","v":0},{"$f":"'Fordeling af arbejdsopgaver'!U28*Kalkuler!$AI$29","v":0},{"$f":"'Fordeling af arbejdsopgaver'!V28*Kalkuler!$AI$29","v":0},{"$f":"'Fordeling af arbejdsopgaver'!W28*Kalkuler!$AI$29","v":0},{"$f":"'Fordeling af arbejdsopgaver'!X28*Kalkuler!$AI$29","v":0},{"$f":"'Fordeling af arbejdsopgaver'!Y28*Kalkuler!$AI$29","v":0},{"$f":"'Fordeling af arbejdsopgaver'!Z28*Kalkuler!$AI$29","v":0},{"$f":"'Fordeling af arbejdsopgaver'!AA28*Kalkuler!$AI$29","v":0},{"$f":"'Fordeling af arbejdsopgaver'!AB28*Kalkuler!$AI$29","v":0}]
[null,"Afgrødeetabl. (såning, lægning o.l.)",null,{"$f":"'Fordeling af arbejdsopgaver'!E29*(Kalkuler!$AI$16+Kalkuler!$AI$30)","v":0},{"$f":"'Fordeling af arbejdsopgaver'!F29*(Kalkuler!$AI$16+Kalkuler!$AI$30)","v":0},{"$f":"'Fordeling af arbejdsopgaver'!G29*(Kalkuler!$AI$16+Kalkuler!$AI$30)","v":0},{"$f":"'Fordeling af arbejdsopgaver'!H29*(Kalkuler!$AI$16+Kalkuler!$AI$30)","v":0},{"$f":"'Fordeling af arbejdsopgaver'!I29*(Kalkuler!$AI$16+Kalkuler!$AI$30)","v":0},{"$f":"'Fordeling af arbejdsopgaver'!J29*(Kalkuler!$AI$16+Kalkuler!$AI$30)","v":0},{"$f":"'Fordeling af arbejdsopgaver'!K29*(Kalkuler!$AI$16+Kalkuler!$AI$30)","v":-2350},{"$f":"'Fordeling af arbejdsopgaver'!L29*(Kalkuler!$AI$16+Kalkuler!$AI$30)","v":0},{"$f":"'Fordeling af arbejdsopgaver'!M29*(Kalkuler!$AI$16+Kalkuler!$AI$30)","v":0},{"$f":"'Fordeling af arbejdsopgaver'!N29*(Kalkuler!$AI$16+Kalkuler!$AI$30)","v":0},{"$f":"'Fordeling af arbejdsopgaver'!O29*(Kalkuler!$AI$16+Kalkuler!$AI$30)","v":0},{"$f":"'Fordeling af arbejdsopgaver'!P29*(Kalkuler!$AI$16+Kalkuler!$AI$30)","v":0},{"$f":"'Fordeling af arbejdsopgaver'!Q29*(Kalkuler!$AI$16+Kalkuler!$AI$30)","v":0},{"$f":"'Fordeling af arbejdsopgaver'!R29*(Kalkuler!$AI$16+Kalkuler!$AI$30)","v":0},{"$f":"'Fordeling af arbejdsopgaver'!S29*(Kalkuler!$AI$16+Kalkuler!$AI$30)","v":0},{"$f":"'Fordeling af arbejdsopgaver'!T29*(Kalkuler!$AI$16+Kalkuler!$AI$30)","v":0},{"$f":"'Fordeling af arbejdsopgaver'!U29*(Kalkuler!$AI$16+Kalkuler!$AI$30)","v":0},{"$f":"'Fordeling af arbejdsopgaver'!V29*(Kalkuler!$AI$16+Kalkuler!$AI$30)","v":0},{"$f":"'Fordeling af arbejdsopgaver'!W29*(Kalkuler!$AI$16+Kalkuler!$AI$30)","v":0},{"$f":"'Fordeling af arbejdsopgaver'!X29*(Kalkuler!$AI$16+Kalkuler!$AI$30)","v":0},{"$f":"'Fordeling af arbejdsopgaver'!Y29*(Kalkuler!$AI$16+Kalkuler!$AI$30)","v":0},{"$f":"'Fordeling af arbejdsopgaver'!Z29*(Kalkuler!$AI$16+Kalkuler!$AI$30)","v":0},{"$f":"'Fordeling af arbejdsopgaver'!AA29*(Kalkuler!$AI$16+Kalkuler!$AI$30)","v":0},{"$f":"'Fordeling af arbejdsopgaver'!AB29*(Kalkuler!$AI$16+Kalkuler!$AI$30)","v":0}]
[null,"Gødskning (handelsgødning)",null,{"$f":"'Fordeling af arbejdsopgaver'!E30*(Kalkuler!$AI$17+Kalkuler!$AI$18+Kalkuler!$AI$19+Kalkuler!$AI$28)","v":0},{"$f":"'Fordeling af arbejdsopgaver'!F30*(Kalkuler!$AI$17+Kalkuler!$AI$18+Kalkuler!$AI$19+Kalkuler!$AI$28)","v":0},{"$f":"'Fordeling af arbejdsopgaver'!G30*(Kalkuler!$AI$17+Kalkuler!$AI$18+Kalkuler!$AI$19+Kalkuler!$AI$28)","v":0},{"$f":"'Fordeling af arbejdsopgaver'!H30*(Kalkuler!$AI$17+Kalkuler!$AI$18+Kalkuler!$AI$19+Kalkuler!$AI$28)","v":0},{"$f":"'Fordeling af arbejdsopgaver'!I30*(Kalkuler!$AI$17+Kalkuler!$AI$18+Kalkuler!$AI$19+Kalkuler!$AI$28)","v":0},{"$f":"'Fordeling af arbejdsopgaver'!J30*(Kalkuler!$AI$17+Kalkuler!$AI$18+Kalkuler!$AI$19+Kalkuler!$AI$28)","v":0},{"$f":"'Fordeling af arbejdsopgaver'!K30*(Kalkuler!$AI$17+Kalkuler!$AI$18+Kalkuler!$AI$19+Kalkuler!$AI$28)","v":-5880},{"$f":"'Fordeling af arbejdsopgaver'!L30*(Kalkuler!$AI$17+Kalkuler!$AI$18+Kalkuler!$AI$19+Kalkuler!$AI$28)","v":0},{"$f":"'Fordeling af arbejdsopgaver'!M30*(Kalkuler!$AI$17+Kalkuler!$AI$18+Kalkuler!$AI$19+Kalkuler!$AI$28)","v":0},{"$f":"'Fordeling af arbejdsopgaver'!N30*(Kalkuler!$AI$17+Kalkuler!$AI$18+Kalkuler!$AI$19+Kalkuler!$AI$28)","v":0},{"$f":"'Fordeling af arbejdsopgaver'!O30*(Kalkuler!$AI$17+Kalkuler!$AI$18+Kalkuler!$AI$19+Kalkuler!$AI$28)","v":0},{"$f":"'Fordeling af arbejdsopgaver'!P30*(Kalkuler!$AI$17+Kalkuler!$AI$18+Kalkuler!$AI$19+Kalkuler!$AI$28)","v":0},{"$f":"'Fordeling af arbejdsopgaver'!Q30*(Kalkuler!$AI$17+Kalkuler!$AI$18+Kalkuler!$AI$19+Kalkuler!$AI$28)","v":0},{"$f":"'Fordeling af arbejdsopgaver'!R30*(Kalkuler!$AI$17+Kalkuler!$AI$18+Kalkuler!$AI$19+Kalkuler!$AI$28)","v":0},{"$f":"'Fordeling af arbejdsopgaver'!S30*(Kalkuler!$AI$17+Kalkuler!$AI$18+Kalkuler!$AI$19+Kalkuler!$AI$28)","v":0},{"$f":"'Fordeling af arbejdsopgaver'!T30*(Kalkuler!$AI$17+Kalkuler!$AI$18+Kalkuler!$AI$19+Kalkuler!$AI$28)","v":0},{"$f":"'Fordeling af arbejdsopgaver'!U30*(Kalkuler!$AI$17+Kalkuler!$AI$18+Kalkuler!$AI$19+Kalkuler!$AI$28)","v":0},{"$f":"'Fordeling af arbejdsopgaver'!V30*(Kalkuler!$AI$17+Kalkuler!$AI$18+Kalkuler!$AI$19+Kalkuler!$AI$28)","v":0},{"$f":"'Fordeling af arbejdsopgaver'!W30*(Kalkuler!$AI$17+Kalkuler!$AI$18+Kalkuler!$AI$19+Kalkuler!$AI$28)","v":0},{"$f":"'Fordeling af arbejdsopgaver'!X30*(Kalkuler!$AI$17+Kalkuler!$AI$18+Kalkuler!$AI$19+Kalkuler!$AI$28)","v":0},{"$f":"'Fordeling af arbejdsopgaver'!Y30*(Kalkuler!$AI$17+Kalkuler!$AI$18+Kalkuler!$AI$19+Kalkuler!$AI$28)","v":0},{"$f":"'Fordeling af arbejdsopgaver'!Z30*(Kalkuler!$AI$17+Kalkuler!$AI$18+Kalkuler!$AI$19+Kalkuler!$AI$28)","v":0},{"$f":"'Fordeling af arbejdsopgaver'!AA30*(Kalkuler!$AI$17+Kalkuler!$AI$18+Kalkuler!$AI$19+Kalkuler!$AI$28)","v":0},{"$f":"'Fordeling af arbejdsopgaver'!AB30*(Kalkuler!$AI$17+Kalkuler!$AI$18+Kalkuler!$AI$19+Kalkuler!$AI$28)","v":0}]
[null,"Planteværn",null,{"$f":"'Fordeling af arbejdsopgaver'!E31*(Kalkuler!$AI$20+Kalkuler!$AI$21+Kalkuler!$AI$31+Kalkuler!$AI$32)","v":0},{"$f":"'Fordeling af arbejdsopgaver'!F31*(Kalkuler!$AI$20+Kalkuler!$AI$21+Kalkuler!$AI$31+Kalkuler!$AI$32)","v":0},{"$f":"'Fordeling af arbejdsopgaver'!G31*(Kalkuler!$AI$20+Kalkuler!$AI$21+Kalkuler!$AI$31+Kalkuler!$AI$32)","v":0},{"$f":"'Fordeling af arbejdsopgaver'!H31*(Kalkuler!$AI$20+Kalkuler!$AI$21+Kalkuler!$AI$31+Kalkuler!$AI$32)","v":0},{"$f":"'Fordeling af arbejdsopgaver'!I31*(Kalkuler!$AI$20+Kalkuler!$AI$21+Kalkuler!$AI$31+Kalkuler!$AI$32)","v":0},{"$f":"'Fordeling af arbejdsopgaver'!J31*(Kalkuler!$AI$20+Kalkuler!$AI$21+Kalkuler!$AI$31+Kalkuler!$AI$32)","v":0},{"$f":"'Fordeling af arbejdsopgaver'!K31*(Kalkuler!$AI$20+Kalkuler!$AI$21+Kalkuler!$AI$31+Kalkuler!$AI$32)","v":0},{"$f":"'Fordeling af arbejdsopgaver'!L31*(Kalkuler!$AI$20+Kalkuler!$AI$21+Kalkuler!$AI$31+Kalkuler!$AI$32)","v":-1220.4000000000001},{"$f":"'Fordeling af arbejdsopgaver'!M31*(Kalkuler!$AI$20+Kalkuler!$AI$21+Kalkuler!$AI$31+Kalkuler!$AI$32)","v":0},{"$f":"'Fordeling af arbejdsopgaver'!N31*(Kalkuler!$AI$20+Kalkuler!$AI$21+Kalkuler!$AI$31+Kalkuler!$AI$32)","v":-610.20000000000005},{"$f":"'Fordeling af arbejdsopgaver'!O31*(Kalkuler!$AI$20+Kalkuler!$AI$21+Kalkuler!$AI$31+Kalkuler!$AI$32)","v":-610.20000000000005},{"$f":"'Fordeling af arbejdsopgaver'!P31*(Kalkuler!$AI$20+Kalkuler!$AI$21+Kalkuler!$AI$31+Kalkuler!$AI$32)","v":-610.20000000000005},{"$f":"'Fordeling af arbejdsopgaver'!Q31*(Kalkuler!$AI$20+Kalkuler!$AI$21+Kalkuler!$AI$31+Kalkuler!$AI$32)","v":0},{"$f":"'Fordeling af arbejdsopgaver'!R31*(Kalkuler!$AI$20+Kalkuler!$AI$21+Kalkuler!$AI$31+Kalkuler!$AI$32)","v":0},{"$f":"'Fordeling af arbejdsopgaver'!S31*(Kalkuler!$AI$20+Kalkuler!$AI$21+Kalkuler!$AI$31+Kalkuler!$AI$32)","v":0},{"$f":"'Fordeling af arbejdsopgaver'!T31*(Kalkuler!$AI$20+Kalkuler!$AI$21+Kalkuler!$AI$31+Kalkuler!$AI$32)","v":0},{"$f":"'Fordeling af arbejdsopgaver'!U31*(Kalkuler!$AI$20+Kalkuler!$AI$21+Kalkuler!$AI$31+Kalkuler!$AI$32)","v":0},{"$f":"'Fordeling af arbejdsopgaver'!V31*(Kalkuler!$AI$20+Kalkuler!$AI$21+Kalkuler!$AI$31+Kalkuler!$AI$32)","v":0},{"$f":"'Fordeling af arbejdsopgaver'!W31*(Kalkuler!$AI$20+Kalkuler!$AI$21+Kalkuler!$AI$31+Kalkuler!$AI$32)","v":0},{"$f":"'Fordeling af arbejdsopgaver'!X31*(Kalkuler!$AI$20+Kalkuler!$AI$21+Kalkuler!$AI$31+Kalkuler!$AI$32)","v":0},{"$f":"'Fordeling af arbejdsopgaver'!Y31*(Kalkuler!$AI$20+Kalkuler!$AI$21+Kalkuler!$AI$31+Kalkuler!$AI$32)","v":0},{"$f":"'Fordeling af arbejdsopgaver'!Z31*(Kalkuler!$AI$20+Kalkuler!$AI$21+Kalkuler!$AI$31+Kalkuler!$AI$32)","v":0},{"$f":"'Fordeling af arbejdsopgaver'!AA31*(Kalkuler!$AI$20+Kalkuler!$AI$21+Kalkuler!$AI$31+Kalkuler!$AI$32)","v":0},{"$f":"'Fordeling af arbejdsopgaver'!AB31*(Kalkuler!$AI$20+Kalkuler!$AI$21+Kalkuler!$AI$31+Kalkuler!$AI$32)","v":0},null,"Ukrudt, Sygdom, sprøjtning"]
[null,"I alt",{"$f":"SUM(C31:C35)","v":0},0,0,0,0,0,-400,-8230,-1220.4000000000001,0,-610.20000000000005,-610.20000000000005,-610.20000000000005,0,0,0,0,0,0,0,0,-181.25,-181.25,-181.25,-181.25]
[null,"År til dato"]
["Vinterraps","Pløjning",null,{"$f":"'Fordeling af arbejdsopgaver'!E33*Kalkuler!$W$28","v":0},{"$f":"'Fordeling af arbejdsopgaver'!F33*Kalkuler!$W$28","v":0},{"$f":"'Fordeling af arbejdsopgaver'!G33*Kalkuler!$W$28","v":0},{"$f":"'Fordeling af arbejdsopgaver'!H33*Kalkuler!$W$28","v":0},{"$f":"'Fordeling af arbejdsopgaver'!I33*Kalkuler!$W$28","v":0},{"$f":"'Fordeling af arbejdsopgaver'!J33*Kalkuler!$W$28","v":0},{"$f":"'Fordeling af arbejdsopgaver'!K33*Kalkuler!$W$28","v":0},{"$f":"'Fordeling af arbejdsopgaver'!L33*Kalkuler!$W$28","v":0},{"$f":"'Fordeling af arbejdsopgaver'!M33*Kalkuler!$W$28","v":0},{"$f":"'Fordeling af arbejdsopgaver'!N33*Kalkuler!$W$28","v":0},{"$f":"'Fordeling af arbejdsopgaver'!O33*Kalkuler!$W$28","v":0},{"$f":"'Fordeling af arbejdsopgaver'!P33*Kalkuler!$W$28","v":0},{"$f":"'Fordeling af arbejdsopgaver'!Q33*Kalkuler!$W$28","v":0},{"$f":"'Fordeling af arbejdsopgaver'!R33*Kalkuler!$W$28","v":0},{"$f":"'Fordeling af arbejdsopgaver'!S33*Kalkuler!$W$28","v":-543.75},{"$f":"'Fordeling af arbejdsopgaver'!T33*Kalkuler!$W$28","v":-181.25},{"$f":"'Fordeling af arbejdsopgaver'!U33*Kalkuler!$W$28","v":0},{"$f":"'Fordeling af arbejdsopgaver'!V33*Kalkuler!$W$28","v":0},{"$f":"'Fordeling af arbejdsopgaver'!W33*Kalkuler!$W$28","v":0},{"$f":"'Fordeling af arbejdsopgaver'!X33*Kalkuler!$W$28","v":0},{"$f":"'Fordeling af arbejdsopgaver'!Y33*Kalkuler!$W$28","v":0},{"$f":"'Fordeling af arbejdsopgaver'!Z33*Kalkuler!$W$28","v":0},{"$f":"'Fordeling af arbejdsopgaver'!AA33*Kalkuler!$W$28","v":0},{"$f":"'Fordeling af arbejdsopgaver'!AB33*Kalkuler!$W$28","v":0},null,"Pløjning med pakning"]
[null,"Jorbearb. Før såning",null,{"$f":"'Fordeling af arbejdsopgaver'!E34*Kalkuler!$W$30","v":0},null,null,null,null,null,null,null,null,null,null,null,null,null,0.75,0.25]
[null,"Afgrødeetabl. (såning, lægning o.l.)",null,{"$f":"'Fordeling af arbejdsopgaver'!E35*(Kalkuler!$W$14+Kalkuler!$W$30)","v":0},{"$f":"'Fordeling af arbejdsopgaver'!F35*(Kalkuler!$W$14+Kalkuler!$W$30)","v":0},{"$f":"'Fordeling af arbejdsopgaver'!G35*(Kalkuler!$W$14+Kalkuler!$W$30)","v":0},{"$f":"'Fordeling af arbejdsopgaver'!H35*(Kalkuler!$W$14+Kalkuler!$W$30)","v":0},{"$f":"'Fordeling af arbejdsopgaver'!I35*(Kalkuler!$W$14+Kalkuler!$W$30)","v":0},{"$f":"'Fordeling af arbejdsopgaver'!J35*(Kalkuler!$W$14+Kalkuler!$W$30)","v":0},{"$f":"'Fordeling af arbejdsopgaver'!K35*(Kalkuler!$W$14+Kalkuler!$W$30)","v":0},{"$f":"'Fordeling af arbejdsopgaver'!L35*(Kalkuler!$W$14+Kalkuler!$W$30)","v":0},{"$f":"'Fordeling af arbejdsopgaver'!M35*(Kalkuler!$W$14+Kalkuler!$W$30)","v":0},{"$f":"'Fordeling af arbejdsopgaver'!N35*(Kalkuler!$W$14+Kalkuler!$W$30)","v":0},{"$f":"'Fordeling af arbejdsopgaver'!O35*(Kalkuler!$W$14+Kalkuler!$W$30)","v":0},{"$f":"'Fordeling af arbejdsopgaver'!P35*(Kalkuler!$W$14+Kalkuler!$W$30)","v":0},{"$f":"'Fordeling af arbejdsopgaver'!Q35*(Kalkuler!$W$14+Kalkuler!$W$30)","v":0},{"$f":"'Fordeling af arbejdsopgaver'!R35*(Kalkuler!$W$14+Kalkuler!$W$30)","v":0},{"$f":"'Fordeling af arbejdsopgaver'!S35*(Kalkuler!$W$14+Kalkuler!$W$30)","v":-712.5},{"$f":"'Fordeling af arbejdsopgaver'!T35*(Kalkuler!$W$14+Kalkuler!$W$30)","v":-237.5},{"$f":"'Fordeling af arbejdsopgaver'!U35*(Kalkuler!$W$14+Kalkuler!$W$30)","v":0},{"$f":"'Fordeling af arbejdsopgaver'!V35*(Kalkuler!$W$14+Kalkuler!$W$30)","v":0},{"$f":"'Fordeling af arbejdsopgaver'!W35*(Kalkuler!$W$14+Kalkuler!$W$30)","v":0},{"$f":"'Fordeling af arbejdsopgaver'!X35*(Kalkuler!$W$14+Kalkuler!$W$30)","v":0},{"$f":"'Fordeling af arbejdsopgaver'!Y35*(Kalkuler!$W$14+Kalkuler!$W$30)","v":0},{"$f":"'Fordeling af arbejdsopgaver'!Z35*(Kalkuler!$W$14+Kalkuler!$W$30)","v":0},{"$f":"'Fordeling af arbejdsopgaver'!AA35*(Kalkuler!$W$14+Kalkuler!$W$30)","v":0},{"$f":"'Fordeling af arbejdsopgaver'!AB35*(Kalkuler!$W$14+Kalkuler!$W$30)","v":0},null,"Udsæd, Komb. harvning og såning"]
[null,"Gødskning (handelsgødning)",null,{"$f":"'Fordeling af arbejdsopgaver'!E36*(Kalkuler!$W$15+Kalkuler!$W$16+Kalkuler!$W$17+Kalkuler!$W$29)","v":0},{"$f":"'Fordeling af arbejdsopgaver'!F36*(Kalkuler!$W$15+Kalkuler!$W$16+Kalkuler!$W$17+Kalkuler!$W$29)","v":0},{"$f":"'Fordeling af arbejdsopgaver'!G36*(Kalkuler!$W$15+Kalkuler!$W$16+Kalkuler!$W$17+Kalkuler!$W$29)","v":0},{"$f":"'Fordeling af arbejdsopgaver'!H36*(Kalkuler!$W$15+Kalkuler!$W$16+Kalkuler!$W$17+Kalkuler!$W$29)","v":0},{"$f":"'Fordeling af arbejdsopgaver'!I36*(Kalkuler!$W$15+Kalkuler!$W$16+Kalkuler!$W$17+Kalkuler!$W$29)","v":-2186.333333333333},{"$f":"'Fordeling af arbejdsopgaver'!J36*(Kalkuler!$W$15+Kalkuler!$W$16+Kalkuler!$W$17+Kalkuler!$W$29)","v":0},{"$f":"'Fordeling af arbejdsopgaver'!K36*(Kalkuler!$W$15+Kalkuler!$W$16+Kalkuler!$W$17+Kalkuler!$W$29)","v":-2186.333333333333},{"$f":"'Fordeling af arbejdsopgaver'!L36*(Kalkuler!$W$15+Kalkuler!$W$16+Kalkuler!$W$17+Kalkuler!$W$29)","v":0},{"$f":"'Fordeling af arbejdsopgaver'!M36*(Kalkuler!$W$15+Kalkuler!$W$16+Kalkuler!$W$17+Kalkuler!$W$29)","v":0},{"$f":"'Fordeling af arbejdsopgaver'!N36*(Kalkuler!$W$15+Kalkuler!$W$16+Kalkuler!$W$17+Kalkuler!$W$29)","v":0},{"$f":"'Fordeling af arbejdsopgaver'!O36*(Kalkuler!$W$15+Kalkuler!$W$16+Kalkuler!$W$17+Kalkuler!$W$29)","v":0},{"$f":"'Fordeling af arbejdsopgaver'!P36*(Kalkuler!$W$15+Kalkuler!$W$16+Kalkuler!$W$17+Kalkuler!$W$29)","v":0},{"$f":"'Fordeling af arbejdsopgaver'!Q36*(Kalkuler!$W$15+Kalkuler!$W$16+Kalkuler!$W$17+Kalkuler!$W$29)","v":0},{"$f":"'Fordeling af arbejdsopgaver'!R36*(Kalkuler!$W$15+Kalkuler!$W$16+Kalkuler!$W$17+Kalkuler!$W$29)","v":0},{"$f":"'Fordeling af arbejdsopgaver'!S36*(Kalkuler!$W$15+Kalkuler!$W$16+Kalkuler!$W$17+Kalkuler!$W$29)","v":0},{"$f":"'Fordeling af arbejdsopgaver'!T36*(Kalkuler!$W$15+Kalkuler!$W$16+Kalkuler!$W$17+Kalkuler!$W$29)","v":0},{"$f":"'Fordeling af arbejdsopgaver'!U36*(Kalkuler!$W$15+Kalkuler!$W$16+Kalkuler!$W$17+Kalkuler!$W$29)","v":0},{"$f":"'Fordeling af arbejdsopgaver'!V36*(Kalkuler!$W$15+Kalkuler!$W$16+Kalkuler!$W$17+Kalkuler!$W$29)","v":-2186.333333333333},{"$f":"'Fordeling af arbejdsopgaver'!W36*(Kalkuler!$W$15+Kalkuler!$W$16+Kalkuler!$W$17+Kalkuler!$W$29)","v":0},{"$f":"'Fordeling af arbejdsopgaver'!X36*(Kalkuler!$W$15+Kalkuler!$W$16+Kalkuler!$W$17+Kalkuler!$W$29)","v":0},{"$f":"'Fordeling af arbejdsopgaver'!Y36*(Kalkuler!$W$15+Kalkuler!$W$16+Kalkuler!$W$17+Kalkuler!$W$29)","v":0},{"$f":"'Fordeling af arbejdsopgaver'!Z36*(Kalkuler!$W$15+Kalkuler!$W$16+Kalkuler!$W$17+Kalkuler!$W$29)","v":0},{"$f":"'Fordeling af arbejdsopgaver'!AA36*(Kalkuler!$W$15+Kalkuler!$W$16+Kalkuler!$W$17+Kalkuler!$W$29)","v":0},{"$f":"'Fordeling af arbejdsopgaver'!AB36*(Kalkuler!$W$15+Kalkuler!$W$16+Kalkuler!$W$17+Kalkuler!$W$29)","v":0},null,"Handelsgødning Kvælstof, Handelsgødning Fosfor, Handelsgødning Kalium, Gødningsspredning"]
[null,"Planteværn",null,{"$f":"'Fordeling af arbejdsopgaver'!E37*(Kalkuler!$W$18+Kalkuler!$W$19+Kalkuler!$W$20+Kalkuler!$W$21+Kalkuler!$W$31)","v":0},{"$f":"'Fordeling af arbejdsopgaver'!F37*(Kalkuler!$W$18+Kalkuler!$W$19+Kalkuler!$W$20+Kalkuler!$W$21+Kalkuler!$W$31)","v":0},{"$f":"'Fordeling af arbejdsopgaver'!G37*(Kalkuler!$W$18+Kalkuler!$W$19+Kalkuler!$W$20+Kalkuler!$W$21+Kalkuler!$W$31)","v":0},{"$f":"'Fordeling af arbejdsopgaver'!H37*(Kalkuler!$W$18+Kalkuler!$W$19+Kalkuler!$W$20+Kalkuler!$W$21+Kalkuler!$W$31)","v":0},{"$f":"'Fordeling af arbejdsopgaver'!I37*(Kalkuler!$W$18+Kalkuler!$W$19+Kalkuler!$W$20+Kalkuler!$W$21+Kalkuler!$W$31)","v":0},{"$f":"'Fordeling af arbejdsopgaver'!J37*(Kalkuler!$W$18+Kalkuler!$W$19+Kalkuler!$W$20+Kalkuler!$W$21+Kalkuler!$W$31)","v":0},{"$f":"'Fordeling af arbejdsopgaver'!K37*(Kalkuler!$W$18+Kalkuler!$W$19+Kalkuler!$W$20+Kalkuler!$W$21+Kalkuler!$W$31)","v":-168.75},{"$f":"'Fordeling af arbejdsopgaver'!L37*(Kalkuler!$W$18+Kalkuler!$W$19+Kalkuler!$W$20+Kalkuler!$W$21+Kalkuler!$W$31)","v":-168.75},{"$f":"'Fordeling af arbejdsopgaver'!M37*(Kalkuler!$W$18+Kalkuler!$W$19+Kalkuler!$W$20+Kalkuler!$W$21+Kalkuler!$W$31)","v":-337.5},{"$f":"'Fordeling af arbejdsopgaver'!N37*(Kalkuler!$W$18+Kalkuler!$W$19+Kalkuler!$W$20+Kalkuler!$W$21+Kalkuler!$W$31)","v":-337.5},{"$f":"'Fordeling af arbejdsopgaver'!O37*(Kalkuler!$W$18+Kalkuler!$W$19+Kalkuler!$W$20+Kalkuler!$W$21+Kalkuler!$W$31)","v":0},{"$f":"'Fordeling af arbejdsopgaver'!P37*(Kalkuler!$W$18+Kalkuler!$W$19+Kalkuler!$W$20+Kalkuler!$W$21+Kalkuler!$W$31)","v":0},{"$f":"'Fordeling af arbejdsopgaver'!Q37*(Kalkuler!$W$18+Kalkuler!$W$19+Kalkuler!$W$20+Kalkuler!$W$21+Kalkuler!$W$31)","v":0},{"$f":"'Fordeling af arbejdsopgaver'!R37*(Kalkuler!$W$18+Kalkuler!$W$19+Kalkuler!$W$20+Kalkuler!$W$21+Kalkuler!$W$31)","v":0},{"$f":"'Fordeling af arbejdsopgaver'!S37*(Kalkuler!$W$18+Kalkuler!$W$19+Kalkuler!$W$20+Kalkuler!$W$21+Kalkuler!$W$31)","v":0},{"$f":"'Fordeling af arbejdsopgaver'!T37*(Kalkuler!$W$18+Kalkuler!$W$19+Kalkuler!$W$20+Kalkuler!$W$21+Kalkuler!$W$31)","v":0},{"$f":"'Fordeling af arbejdsopgaver'!U37*(Kalkuler!$W$18+Kalkuler!$W$19+Kalkuler!$W$20+Kalkuler!$W$21+Kalkuler!$W$31)","v":-337.5},{"$f":"'Fordeling af arbejdsopgaver'!V37*(Kalkuler!$W$18+Kalkuler!$W$19+Kalkuler!$W$20+Kalkuler!$W$21+Kalkuler!$W$31)","v":0},{"$f":"'Fordeling af arbejdsopgaver'!W37*(Kalkuler!$W$18+Kalkuler!$W$19+Kalkuler!$W$20+Kalkuler!$W$21+Kalkuler!$W$31)","v":-337.5},{"$f":"'Fordeling af arbejdsopgaver'!X37*(Kalkuler!$W$18+Kalkuler!$W$19+Kalkuler!$W$20+Kalkuler!$W$21+Kalkuler!$W$31)","v":0},{"$f":"'Fordeling af arbejdsopgaver'!Y37*(Kalkuler!$W$18+Kalkuler!$W$19+Kalkuler!$W$20+Kalkuler!$W$21+Kalkuler!$W$31)","v":-337.5},{"$f":"'Fordeling af arbejdsopgaver'!Z37*(Kalkuler!$W$18+Kalkuler!$W$19+Kalkuler!$W$20+Kalkuler!$W$21+Kalkuler!$W$31)","v":0},{"$f":"'Fordeling af arbejdsopgaver'!AA37*(Kalkuler!$W$18+Kalkuler!$W$19+Kalkuler!$W$20+Kalkuler!$W$21+Kalkuler!$W$31)","v":0},{"$f":"'Fordeling af arbejdsopgaver'!AB37*(Kalkuler!$W$18+Kalkuler!$W$19+Kalkuler!$W$20+Kalkuler!$W$21+Kalkuler!$W$31)","v":0},null,"Ukrudt, sygdom, skadedyr, vækstregulering, sprøjtning"]
[null,"I alt",{"$f":"SUM(C38:C42)","v":0},0,0,0,0,-2186.333333333333,0,-2355.083333333333,-168.75,-337.5,-337.5,0,0,0,0,-1255.5,-418.5,-337.5,-2186.333333333333,-337.5,0,-337.5,0,0,0]
[null,"År til dato"]
["Vintersæd (byg)","Pløjning",null,{"$f":"'Fordeling af arbejdsopgaver'!E39*Kalkuler!$K$27","v":0},{"$f":"'Fordeling af arbejdsopgaver'!F39*Kalkuler!$K$27","v":0},{"$f":"'Fordeling af arbejdsopgaver'!G39*Kalkuler!$K$27","v":0},{"$f":"'Fordeling af arbejdsopgaver'!H39*Kalkuler!$K$27","v":0},{"$f":"'Fordeling af arbejdsopgaver'!I39*Kalkuler!$K$27","v":0},{"$f":"'Fordeling af arbejdsopgaver'!J39*Kalkuler!$K$27","v":0},{"$f":"'Fordeling af arbejdsopgaver'!K39*Kalkuler!$K$27","v":0},{"$f":"'Fordeling af arbejdsopgaver'!L39*Kalkuler!$K$27","v":0},{"$f":"'Fordeling af arbejdsopgaver'!M39*Kalkuler!$K$27","v":0},{"$f":"'Fordeling af arbejdsopgaver'!N39*Kalkuler!$K$27","v":0},{"$f":"'Fordeling af arbejdsopgaver'!O39*Kalkuler!$K$27","v":0},{"$f":"'Fordeling af arbejdsopgaver'!P39*Kalkuler!$K$27","v":0},{"$f":"'Fordeling af arbejdsopgaver'!Q39*Kalkuler!$K$27","v":0},{"$f":"'Fordeling af arbejdsopgaver'!R39*Kalkuler!$K$27","v":0},{"$f":"'Fordeling af arbejdsopgaver'!S39*Kalkuler!$K$27","v":0},{"$f":"'Fordeling af arbejdsopgaver'!T39*Kalkuler!$K$27","v":-362.5},{"$f":"'Fordeling af arbejdsopgaver'!U39*Kalkuler!$K$27","v":-362.5},{"$f":"'Fordeling af arbejdsopgaver'!V39*Kalkuler!$K$27","v":0},{"$f":"'Fordeling af arbejdsopgaver'!W39*Kalkuler!$K$27","v":0},{"$f":"'Fordeling af arbejdsopgaver'!X39*Kalkuler!$K$27","v":0},{"$f":"'Fordeling af arbejdsopgaver'!Y39*Kalkuler!$K$27","v":0},{"$f":"'Fordeling af arbejdsopgaver'!Z39*Kalkuler!$K$27","v":0},{"$f":"'Fordeling af arbejdsopgaver'!AA39*Kalkuler!$K$27","v":0},{"$f":"'Fordeling af arbejdsopgaver'!AB39*Kalkuler!$K$27","v":0},null,"Pløjning med pakning"]
[null,"Jorbearb. Før såning",null,null,null,null,null,null,null,null,null,null,null,null,null,null,null,null,0.5,0.5]
[null,"Afgrødeetabl. (såning, lægning o.l.)",null,{"$f":"'Fordeling af arbejdsopgaver'!E40*(Kalkuler!$K$15+Kalkuler!$K$29)","v":0},{"$f":"'Fordeling af arbejdsopgaver'!F40*(Kalkuler!$K$15+Kalkuler!$K$29)","v":0},{"$f":"'Fordeling af arbejdsopgaver'!G40*(Kalkuler!$K$15+Kalkuler!$K$29)","v":0},{"$f":"'Fordeling af arbejdsopgaver'!H40*(Kalkuler!$K$15+Kalkuler!$K$29)","v":0},{"$f":"'Fordeling af arbejdsopgaver'!I40*(Kalkuler!$K$15+Kalkuler!$K$29)","v":0},{"$f":"'Fordeling af arbejdsopgaver'!J40*(Kalkuler!$K$15+Kalkuler!$K$29)","v":0},{"$f":"'Fordeling af arbejdsopgaver'!K40*(Kalkuler!$K$15+Kalkuler!$K$29)","v":0},{"$f":"'Fordeling af arbejdsopgaver'!L40*(Kalkuler!$K$15+Kalkuler!$K$29)","v":0},{"$f":"'Fordeling af arbejdsopgaver'!M40*(Kalkuler!$K$15+Kalkuler!$K$29)","v":0},{"$f":"'Fordeling af arbejdsopgaver'!N40*(Kalkuler!$K$15+Kalkuler!$K$29)","v":0},{"$f":"'Fordeling af arbejdsopgaver'!O40*(Kalkuler!$K$15+Kalkuler!$K$29)","v":0},{"$f":"'Fordeling af arbejdsopgaver'!P40*(Kalkuler!$K$15+Kalkuler!$K$29)","v":0},{"$f":"'Fordeling af arbejdsopgaver'!Q40*(Kalkuler!$K$15+Kalkuler!$K$29)","v":0},{"$f":"'Fordeling af arbejdsopgaver'!R40*(Kalkuler!$K$15+Kalkuler!$K$29)","v":0},{"$f":"'Fordeling af arbejdsopgaver'!S40*(Kalkuler!$K$15+Kalkuler!$K$29)","v":0},{"$f":"'Fordeling af arbejdsopgaver'!T40*(Kalkuler!$K$15+Kalkuler!$K$29)","v":-528},{"$f":"'Fordeling af arbejdsopgaver'!U40*(Kalkuler!$K$15+Kalkuler!$K$29)","v":-528},{"$f":"'Fordeling af arbejdsopgaver'!V40*(Kalkuler!$K$15+Kalkuler!$K$29)","v":0},{"$f":"'Fordeling af arbejdsopgaver'!W40*(Kalkuler!$K$15+Kalkuler!$K$29)","v":0},{"$f":"'Fordeling af arbejdsopgaver'!X40*(Kalkuler!$K$15+Kalkuler!$K$29)","v":0},{"$f":"'Fordeling af arbejdsopgaver'!Y40*(Kalkuler!$K$15+Kalkuler!$K$29)","v":0},{"$f":"'Fordeling af arbejdsopgaver'!Z40*(Kalkuler!$K$15+Kalkuler!$K$29)","v":0},{"$f":"'Fordeling af arbejdsopgaver'!AA40*(Kalkuler!$K$15+Kalkuler!$K$29)","v":0},{"$f":"'Fordeling af arbejdsopgaver'!AB40*(Kalkuler!$K$15+Kalkuler!$K$29)","v":0},null,"Udsæd, Komb. harvning og såning"]
[null,"Gødskning (handelsgødning)",null,{"$f":"'Fordeling af arbejdsopgaver'!E42*(Kalkuler!$K$16+Kalkuler!$K$17+Kalkuler!$K$18+Kalkuler!$K$28)","v":0},{"$f":"'Fordeling af arbejdsopgaver'!F42*(Kalkuler!$K$16+Kalkuler!$K$17+Kalkuler!$K$18+Kalkuler!$K$28)","v":0},{"$f":"'Fordeling af arbejdsopgaver'!G42*(Kalkuler!$K$16+Kalkuler!$K$17+Kalkuler!$K$18+Kalkuler!$K$28)","v":0},{"$f":"'Fordeling af arbejdsopgaver'!H42*(Kalkuler!$K$16+Kalkuler!$K$17+Kalkuler!$K$18+Kalkuler!$K$28)","v":0},{"$f":"'Fordeling af arbejdsopgaver'!I42*(Kalkuler!$K$16+Kalkuler!$K$17+Kalkuler!$K$18+Kalkuler!$K$28)","v":0},{"$f":"'Fordeling af arbejdsopgaver'!J42*(Kalkuler!$K$16+Kalkuler!$K$17+Kalkuler!$K$18+Kalkuler!$K$28)","v":-5845},{"$f":"'Fordeling af arbejdsopgaver'!K42*(Kalkuler!$K$16+Kalkuler!$K$17+Kalkuler!$K$18+Kalkuler!$K$28)","v":0},{"$f":"'Fordeling af arbejdsopgaver'!L42*(Kalkuler!$K$16+Kalkuler!$K$17+Kalkuler!$K$18+Kalkuler!$K$28)","v":0},{"$f":"'Fordeling af arbejdsopgaver'!M42*(Kalkuler!$K$16+Kalkuler!$K$17+Kalkuler!$K$18+Kalkuler!$K$28)","v":0},{"$f":"'Fordeling af arbejdsopgaver'!N42*(Kalkuler!$K$16+Kalkuler!$K$17+Kalkuler!$K$18+Kalkuler!$K$28)","v":0},{"$f":"'Fordeling af arbejdsopgaver'!O42*(Kalkuler!$K$16+Kalkuler!$K$17+Kalkuler!$K$18+Kalkuler!$K$28)","v":0},{"$f":"'Fordeling af arbejdsopgaver'!P42*(Kalkuler!$K$16+Kalkuler!$K$17+Kalkuler!$K$18+Kalkuler!$K$28)","v":0},{"$f":"'Fordeling af arbejdsopgaver'!Q42*(Kalkuler!$K$16+Kalkuler!$K$17+Kalkuler!$K$18+Kalkuler!$K$28)","v":0},{"$f":"'Fordeling af arbejdsopgaver'!R42*(Kalkuler!$K$16+Kalkuler!$K$17+Kalkuler!$K$18+Kalkuler!$K$28)","v":0},{"$f":"'Fordeling af arbejdsopgaver'!S42*(Kalkuler!$K$16+Kalkuler!$K$17+Kalkuler!$K$18+Kalkuler!$K$28)","v":0},{"$f":"'Fordeling af arbejdsopgaver'!T42*(Kalkuler!$K$16+Kalkuler!$K$17+Kalkuler!$K$18+Kalkuler!$K$28)","v":0},{"$f":"'Fordeling af arbejdsopgaver'!U42*(Kalkuler!$K$16+Kalkuler!$K$17+Kalkuler!$K$18+Kalkuler!$K$28)","v":0},{"$f":"'Fordeling af arbejdsopgaver'!V42*(Kalkuler!$K$16+Kalkuler!$K$17+Kalkuler!$K$18+Kalkuler!$K$28)","v":0},{"$f":"'Fordeling af arbejdsopgaver'!W42*(Kalkuler!$K$16+Kalkuler!$K$17+Kalkuler!$K$18+Kalkuler!$K$28)","v":0},{"$f":"'Fordeling af arbejdsopgaver'!X42*(Kalkuler!$K$16+Kalkuler!$K$17+Kalkuler!$K$18+Kalkuler!$K$28)","v":0},{"$f":"'Fordeling af arbejdsopgaver'!Y42*(Kalkuler!$K$16+Kalkuler!$K$17+Kalkuler!$K$18+Kalkuler!$K$28)","v":0},{"$f":"'Fordeling af arbejdsopgaver'!Z42*(Kalkuler!$K$16+Kalkuler!$K$17+Kalkuler!$K$18+Kalkuler!$K$28)","v":0},{"$f":"'Fordeling af arbejdsopgaver'!AA42*(Kalkuler!$K$16+Kalkuler!$K$17+Kalkuler!$K$18+Kalkuler!$K$28)","v":0},{"$f":"'Fordeling af arbejdsopgaver'!AB42*(Kalkuler!$K$16+Kalkuler!$K$17+Kalkuler!$K$18+Kalkuler!$K$28)","v":0},null,"Handelsgødning Kvælstof, Handelsgødning Fosfor, Handelsgødning Kalium, Gødningsspredning"]
[null,"Planteværn",null,{"$f":"'Fordeling af arbejdsopgaver'!E43*(Kalkuler!$K$19+Kalkuler!$K$20+Kalkuler!$K$21+Kalkuler!$K$22+Kalkuler!$K$30)","v":0},{"$f":"'Fordeling af arbejdsopgaver'!F43*(Kalkuler!$K$19+Kalkuler!$K$20+Kalkuler!$K$21+Kalkuler!$K$22+Kalkuler!$K$30)","v":0},{"$f":"'Fordeling af arbejdsopgaver'!G43*(Kalkuler!$K$19+Kalkuler!$K$20+Kalkuler!$K$21+Kalkuler!$K$22+Kalkuler!$K$30)","v":0},{"$f":"'Fordeling af arbejdsopgaver'!H43*(Kalkuler!$K$19+Kalkuler!$K$20+Kalkuler!$K$21+Kalkuler!$K$22+Kalkuler!$K$30)","v":0},{"$f":"'Fordeling af arbejdsopgaver'!I43*(Kalkuler!$K$19+Kalkuler!$K$20+Kalkuler!$K$21+Kalkuler!$K$22+Kalkuler!$K$30)","v":0},{"$f":"'Fordeling af arbejdsopgaver'!J43*(Kalkuler!$K$19+Kalkuler!$K$20+Kalkuler!$K$21+Kalkuler!$K$22+Kalkuler!$K$30)","v":0},{"$f":"'Fordeling af arbejdsopgaver'!K43*(Kalkuler!$K$19+Kalkuler!$K$20+Kalkuler!$K$21+Kalkuler!$K$22+Kalkuler!$K$30)","v":-159.125},{"$f":"'Fordeling af arbejdsopgaver'!L43*(Kalkuler!$K$19+Kalkuler!$K$20+Kalkuler!$K$21+Kalkuler!$K$22+Kalkuler!$K$30)","v":-159.125},{"$f":"'Fordeling af arbejdsopgaver'!M43*(Kalkuler!$K$19+Kalkuler!$K$20+Kalkuler!$K$21+Kalkuler!$K$22+Kalkuler!$K$30)","v":-318.25},{"$f":"'Fordeling af arbejdsopgaver'!N43*(Kalkuler!$K$19+Kalkuler!$K$20+Kalkuler!$K$21+Kalkuler!$K$22+Kalkuler!$K$30)","v":-318.25},{"$f":"'Fordeling af arbejdsopgaver'!O43*(Kalkuler!$K$19+Kalkuler!$K$20+Kalkuler!$K$21+Kalkuler!$K$22+Kalkuler!$K$30)","v":0},{"$f":"'Fordeling af arbejdsopgaver'!P43*(Kalkuler!$K$19+Kalkuler!$K$20+Kalkuler!$K$21+Kalkuler!$K$22+Kalkuler!$K$30)","v":0},{"$f":"'Fordeling af arbejdsopgaver'!Q43*(Kalkuler!$K$19+Kalkuler!$K$20+Kalkuler!$K$21+Kalkuler!$K$22+Kalkuler!$K$30)","v":0},{"$f":"'Fordeling af arbejdsopgaver'!R43*(Kalkuler!$K$19+Kalkuler!$K$20+Kalkuler!$K$21+Kalkuler!$K$22+Kalkuler!$K$30)","v":0},{"$f":"'Fordeling af arbejdsopgaver'!S43*(Kalkuler!$K$19+Kalkuler!$K$20+Kalkuler!$K$21+Kalkuler!$K$22+Kalkuler!$K$30)","v":0},{"$f":"'Fordeling af arbejdsopgaver'!T43*(Kalkuler!$K$19+Kalkuler!$K$20+Kalkuler!$K$21+Kalkuler!$K$22+Kalkuler!$K$30)","v":0},{"$f":"'Fordeling af arbejdsopgaver'!U43*(Kalkuler!$K$19+Kalkuler!$K$20+Kalkuler!$K$21+Kalkuler!$K$22+Kalkuler!$K$30)","v":0},{"$f":"'Fordeling af arbejdsopgaver'!V43*(Kalkuler!$K$19+Kalkuler!$K$20+Kalkuler!$K$21+Kalkuler!$K$22+Kalkuler!$K$30)","v":0},{"$f":"'Fordeling af arbejdsopgaver'!W43*(Kalkuler!$K$19+Kalkuler!$K$20+Kalkuler!$K$21+Kalkuler!$K$22+Kalkuler!$K$30)","v":-318.25},{"$f":"'Fordeling af arbejdsopgaver'!X43*(Kalkuler!$K$19+Kalkuler!$K$20+Kalkuler!$K$21+Kalkuler!$K$22+Kalkuler!$K$30)","v":0},{"$f":"'Fordeling af arbejdsopgaver'!Y43*(Kalkuler!$K$19+Kalkuler!$K$20+Kalkuler!$K$21+Kalkuler!$K$22+Kalkuler!$K$30)","v":0},{"$f":"'Fordeling af arbejdsopgaver'!Z43*(Kalkuler!$K$19+Kalkuler!$K$20+Kalkuler!$K$21+Kalkuler!$K$22+Kalkuler!$K$30)","v":0},{"$f":"'Fordeling af arbejdsopgaver'!AA43*(Kalkuler!$K$19+Kalkuler!$K$20+Kalkuler!$K$21+Kalkuler!$K$22+Kalkuler!$K$30)","v":0},{"$f":"'Fordeling af arbejdsopgaver'!AB43*(Kalkuler!$K$19+Kalkuler!$K$20+Kalkuler!$K$21+Kalkuler!$K$22+Kalkuler!$K$30)","v":0},null,"Ukrudt, sygdom, skadedyr, vækstregulering, sprøjtning"]
[null,"I alt",{"$f":"SUM(C45:C49)","v":0},0,0,0,0,0,-5845,-159.125,-159.125,-318.25,-318.25,0,0,0,0,0,-890,-890,0,-318.25,0,0,0,0,0]
[null,"År til dato"]
["Vintersæd (hvede)","Pløjning",null,{"$f":"'Fordeling af arbejdsopgaver'!E45*Kalkuler!$AO$27","v":0},{"$f":"'Fordeling af arbejdsopgaver'!F45*Kalkuler!$AO$27","v":0},{"$f":"'Fordeling af arbejdsopgaver'!G45*Kalkuler!$AO$27","v":0},{"$f":"'Fordeling af arbejdsopgaver'!H45*Kalkuler!$AO$27","v":0},{"$f":"'Fordeling af arbejdsopgaver'!I45*Kalkuler!$AO$27","v":0},{"$f":"'Fordeling af arbejdsopgaver'!J45*Kalkuler!$AO$27","v":0},{"$f":"'Fordeling af arbejdsopgaver'!K45*Kalkuler!$AO$27","v":0},{"$f":"'Fordeling af arbejdsopgaver'!L45*Kalkuler!$AO$27","v":0},{"$f":"'Fordeling af arbejdsopgaver'!M45*Kalkuler!$AO$27","v":0},{"$f":"'Fordeling af arbejdsopgaver'!N45*Kalkuler!$AO$27","v":0},{"$f":"'Fordeling af arbejdsopgaver'!O45*Kalkuler!$AO$27","v":0},{"$f":"'Fordeling af arbejdsopgaver'!P45*Kalkuler!$AO$27","v":0},{"$f":"'Fordeling af arbejdsopgaver'!Q45*Kalkuler!$AO$27","v":0},{"$f":"'Fordeling af arbejdsopgaver'!R45*Kalkuler!$AO$27","v":0},{"$f":"'Fordeling af arbejdsopgaver'!S45*Kalkuler!$AO$27","v":0},{"$f":"'Fordeling af arbejdsopgaver'!T45*Kalkuler!$AO$27","v":-181.25},{"$f":"'Fordeling af arbejdsopgaver'!U45*Kalkuler!$AO$27","v":-362.5},{"$f":"'Fordeling af arbejdsopgaver'!V45*Kalkuler!$AO$27","v":-181.25},{"$f":"'Fordeling af arbejdsopgaver'!W45*Kalkuler!$AO$27","v":0},{"$f":"'Fordeling af arbejdsopgaver'!X45*Kalkuler!$AO$27","v":0},{"$f":"'Fordeling af arbejdsopgaver'!Y45*Kalkuler!$AO$27","v":0},{"$f":"'Fordeling af arbejdsopgaver'!Z45*Kalkuler!$AO$27","v":0},{"$f":"'Fordeling af arbejdsopgaver'!AA45*Kalkuler!$AO$27","v":0},{"$f":"'Fordeling af arbejdsopgaver'!AB45*Kalkuler!$AO$27","v":0}]
[null,"Jorbearb. Før såning"]
[null,"Afgrødeetabl. (såning, lægning o.l.)",null,{"$f":"'Fordeling af arbejdsopgaver'!E47*(Kalkuler!$AO$15+Kalkuler!$AO$29)","v":0},{"$f":"'Fordeling af arbejdsopgaver'!F47*(Kalkuler!$AO$15+Kalkuler!$AO$29)","v":0},{"$f":"'Fordeling af arbejdsopgaver'!G47*(Kalkuler!$AO$15+Kalkuler!$AO$29)","v":0},{"$f":"'Fordeling af arbejdsopgaver'!H47*(Kalkuler!$AO$15+Kalkuler!$AO$29)","v":0},{"$f":"'Fordeling af arbejdsopgaver'!I47*(Kalkuler!$AO$15+Kalkuler!$AO$29)","v":0},{"$f":"'Fordeling af arbejdsopgaver'!J47*(Kalkuler!$AO$15+Kalkuler!$AO$29)","v":0},{"$f":"'Fordeling af arbejdsopgaver'!K47*(Kalkuler!$AO$15+Kalkuler!$AO$29)","v":0},{"$f":"'Fordeling af arbejdsopgaver'!L47*(Kalkuler!$AO$15+Kalkuler!$AO$29)","v":0},{"$f":"'Fordeling af arbejdsopgaver'!M47*(Kalkuler!$AO$15+Kalkuler!$AO$29)","v":0},{"$f":"'Fordeling af arbejdsopgaver'!N47*(Kalkuler!$AO$15+Kalkuler!$AO$29)","v":0},{"$f":"'Fordeling af arbejdsopgaver'!O47*(Kalkuler!$AO$15+Kalkuler!$AO$29)","v":0},{"$f":"'Fordeling af arbejdsopgaver'!P47*(Kalkuler!$AO$15+Kalkuler!$AO$29)","v":0},{"$f":"'Fordeling af arbejdsopgaver'!Q47*(Kalkuler!$AO$15+Kalkuler!$AO$29)","v":0},{"$f":"'Fordeling af arbejdsopgaver'!R47*(Kalkuler!$AO$15+Kalkuler!$AO$29)","v":0},{"$f":"'Fordeling af arbejdsopgaver'!S47*(Kalkuler!$AO$15+Kalkuler!$AO$29)","v":0},{"$f":"'Fordeling af arbejdsopgaver'!T47*(Kalkuler!$AO$15+Kalkuler!$AO$29)","v":0},{"$f":"'Fordeling af arbejdsopgaver'!U47*(Kalkuler!$AO$15+Kalkuler!$AO$29)","v":-515},{"$f":"'Fordeling af arbejdsopgaver'!V47*(Kalkuler!$AO$15+Kalkuler!$AO$29)","v":-515},{"$f":"'Fordeling af arbejdsopgaver'!W47*(Kalkuler!$AO$15+Kalkuler!$AO$29)","v":0},{"$f":"'Fordeling af arbejdsopgaver'!X47*(Kalkuler!$AO$15+Kalkuler!$AO$29)","v":0},{"$f":"'Fordeling af arbejdsopgaver'!Y47*(Kalkuler!$AO$15+Kalkuler!$AO$29)","v":0},{"$f":"'Fordeling af arbejdsopgaver'!Z47*(Kalkuler!$AO$15+Kalkuler!$AO$29)","v":0},{"$f":"'Fordeling af arbejdsopgaver'!AA47*(Kalkuler!$AO$15+Kalkuler!$AO$29)","v":0},{"$f":"'Fordeling af arbejdsopgaver'!AB47*(Kalkuler!$AO$15+Kalkuler!$AO$29)","v":0}]
[null,"Gødskning (handelsgødning)",null,{"$f":"'Fordeling af arbejdsopgaver'!E48*(Kalkuler!$AO$16+Kalkuler!$AO$17+Kalkuler!$AO$18+Kalkuler!$AO$28)","v":0},{"$f":"'Fordeling af arbejdsopgaver'!F48*(Kalkuler!$AO$16+Kalkuler!$AO$17+Kalkuler!$AO$18+Kalkuler!$AO$28)","v":0},{"$f":"'Fordeling af arbejdsopgaver'!G48*(Kalkuler!$AO$16+Kalkuler!$AO$17+Kalkuler!$AO$18+Kalkuler!$AO$28)","v":0},{"$f":"'Fordeling af arbejdsopgaver'!H48*(Kalkuler!$AO$16+Kalkuler!$AO$17+Kalkuler!$AO$18+Kalkuler!$AO$28)","v":0},{"$f":"'Fordeling af arbejdsopgaver'!I48*(Kalkuler!$AO$16+Kalkuler!$AO$17+Kalkuler!$AO$18+Kalkuler!$AO$28)","v":0},{"$f":"'Fordeling af arbejdsopgaver'!J48*(Kalkuler!$AO$16+Kalkuler!$AO$17+Kalkuler!$AO$18+Kalkuler!$AO$28)","v":-3304.5},{"$f":"'Fordeling af arbejdsopgaver'!K48*(Kalkuler!$AO$16+Kalkuler!$AO$17+Kalkuler!$AO$18+Kalkuler!$AO$28)","v":0},{"$f":"'Fordeling af arbejdsopgaver'!L48*(Kalkuler!$AO$16+Kalkuler!$AO$17+Kalkuler!$AO$18+Kalkuler!$AO$28)","v":-3304.5},{"$f":"'Fordeling af arbejdsopgaver'!M48*(Kalkuler!$AO$16+Kalkuler!$AO$17+Kalkuler!$AO$18+Kalkuler!$AO$28)","v":0},{"$f":"'Fordeling af arbejdsopgaver'!N48*(Kalkuler!$AO$16+Kalkuler!$AO$17+Kalkuler!$AO$18+Kalkuler!$AO$28)","v":0},{"$f":"'Fordeling af arbejdsopgaver'!O48*(Kalkuler!$AO$16+Kalkuler!$AO$17+Kalkuler!$AO$18+Kalkuler!$AO$28)","v":0},{"$f":"'Fordeling af arbejdsopgaver'!P48*(Kalkuler!$AO$16+Kalkuler!$AO$17+Kalkuler!$AO$18+Kalkuler!$AO$28)","v":0},{"$f":"'Fordeling af arbejdsopgaver'!Q48*(Kalkuler!$AO$16+Kalkuler!$AO$17+Kalkuler!$AO$18+Kalkuler!$AO$28)","v":0},{"$f":"'Fordeling af arbejdsopgaver'!R48*(Kalkuler!$AO$16+Kalkuler!$AO$17+Kalkuler!$AO$18+Kalkuler!$AO$28)","v":0},{"$f":"'Fordeling af arbejdsopgaver'!S48*(Kalkuler!$AO$16+Kalkuler!$AO$17+Kalkuler!$AO$18+Kalkuler!$AO$28)","v":0},{"$f":"'Fordeling af arbejdsopgaver'!T48*(Kalkuler!$AO$16+Kalkuler!$AO$17+Kalkuler!$AO$18+Kalkuler!$AO$28)","v":0},{"$f":"'Fordeling af arbejdsopgaver'!U48*(Kalkuler!$AO$16+Kalkuler!$AO$17+Kalkuler!$AO$18+Kalkuler!$AO$28)","v":0},{"$f":"'Fordeling af arbejdsopgaver'!V48*(Kalkuler!$AO$16+Kalkuler!$AO$17+Kalkuler!$AO$18+Kalkuler!$AO$28)","v":0},{"$f":"'Fordeling af arbejdsopgaver'!W48*(Kalkuler!$AO$16+Kalkuler!$AO$17+Kalkuler!$AO$18+Kalkuler!$AO$28)","v":0},{"$f":"'Fordeling af arbejdsopgaver'!X48*(Kalkuler!$AO$16+Kalkuler!$AO$17+Kalkuler!$AO$18+Kalkuler!$AO$28)","v":0},{"$f":"'Fordeling af arbejdsopgaver'!Y48*(Kalkuler!$AO$16+Kalkuler!$AO$17+Kalkuler!$AO$18+Kalkuler!$AO$28)","v":0},{"$f":"'Fordeling af arbejdsopgaver'!Z48*(Kalkuler!$AO$16+Kalkuler!$AO$17+Kalkuler!$AO$18+Kalkuler!$AO$28)","v":0},{"$f":"'Fordeling af arbejdsopgaver'!AA48*(Kalkuler!$AO$16+Kalkuler!$AO$17+Kalkuler!$AO$18+Kalkuler!$AO$28)","v":0},{"$f":"'Fordeling af arbejdsopgaver'!AB48*(Kalkuler!$AO$16+Kalkuler!$AO$17+Kalkuler!$AO$18+Kalkuler!$AO$28)","v":0}]
[null,"Planteværn",null,{"$f":"'Fordeling af arbejdsopgaver'!E49*(Kalkuler!$AO$19+Kalkuler!$AO$20+Kalkuler!$AO$21+Kalkuler!$AO$22+Kalkuler!$AO$30)","v":0},{"$f":"'Fordeling af arbejdsopgaver'!F49*(Kalkuler!$AO$19+Kalkuler!$AO$20+Kalkuler!$AO$21+Kalkuler!$AO$22+Kalkuler!$AO$30)","v":0},{"$f":"'Fordeling af arbejdsopgaver'!G49*(Kalkuler!$AO$19+Kalkuler!$AO$20+Kalkuler!$AO$21+Kalkuler!$AO$22+Kalkuler!$AO$30)","v":0},{"$f":"'Fordeling af arbejdsopgaver'!H49*(Kalkuler!$AO$19+Kalkuler!$AO$20+Kalkuler!$AO$21+Kalkuler!$AO$22+Kalkuler!$AO$30)","v":0},{"$f":"'Fordeling af arbejdsopgaver'!I49*(Kalkuler!$AO$19+Kalkuler!$AO$20+Kalkuler!$AO$21+Kalkuler!$AO$22+Kalkuler!$AO$30)","v":0},{"$f":"'Fordeling af arbejdsopgaver'!J49*(Kalkuler!$AO$19+Kalkuler!$AO$20+Kalkuler!$AO$21+Kalkuler!$AO$22+Kalkuler!$AO$30)","v":0},{"$f":"'Fordeling af arbejdsopgaver'!K49*(Kalkuler!$AO$19+Kalkuler!$AO$20+Kalkuler!$AO$21+Kalkuler!$AO$22+Kalkuler!$AO$30)","v":-176.65},{"$f":"'Fordeling af arbejdsopgaver'!L49*(Kalkuler!$AO$19+Kalkuler!$AO$20+Kalkuler!$AO$21+Kalkuler!$AO$22+Kalkuler!$AO$30)","v":-176.65},{"$f":"'Fordeling af arbejdsopgaver'!M49*(Kalkuler!$AO$19+Kalkuler!$AO$20+Kalkuler!$AO$21+Kalkuler!$AO$22+Kalkuler!$AO$30)","v":-176.65},{"$f":"'Fordeling af arbejdsopgaver'!N49*(Kalkuler!$AO$19+Kalkuler!$AO$20+Kalkuler!$AO$21+Kalkuler!$AO$22+Kalkuler!$AO$30)","v":-176.65},{"$f":"'Fordeling af arbejdsopgaver'!O49*(Kalkuler!$AO$19+Kalkuler!$AO$20+Kalkuler!$AO$21+Kalkuler!$AO$22+Kalkuler!$AO$30)","v":-353.3},{"$f":"'Fordeling af arbejdsopgaver'!P49*(Kalkuler!$AO$19+Kalkuler!$AO$20+Kalkuler!$AO$21+Kalkuler!$AO$22+Kalkuler!$AO$30)","v":-353.3},{"$f":"'Fordeling af arbejdsopgaver'!Q49*(Kalkuler!$AO$19+Kalkuler!$AO$20+Kalkuler!$AO$21+Kalkuler!$AO$22+Kalkuler!$AO$30)","v":0},{"$f":"'Fordeling af arbejdsopgaver'!R49*(Kalkuler!$AO$19+Kalkuler!$AO$20+Kalkuler!$AO$21+Kalkuler!$AO$22+Kalkuler!$AO$30)","v":0},{"$f":"'Fordeling af arbejdsopgaver'!S49*(Kalkuler!$AO$19+Kalkuler!$AO$20+Kalkuler!$AO$21+Kalkuler!$AO$22+Kalkuler!$AO$30)","v":0},{"$f":"'Fordeling af arbejdsopgaver'!T49*(Kalkuler!$AO$19+Kalkuler!$AO$20+Kalkuler!$AO$21+Kalkuler!$AO$22+Kalkuler!$AO$30)","v":0},{"$f":"'Fordeling af arbejdsopgaver'!U49*(Kalkuler!$AO$19+Kalkuler!$AO$20+Kalkuler!$AO$21+Kalkuler!$AO$22+Kalkuler!$AO$30)","v":0},{"$f":"'Fordeling af arbejdsopgaver'!V49*(Kalkuler!$AO$19+Kalkuler!$AO$20+Kalkuler!$AO$21+Kalkuler!$AO$22+Kalkuler!$AO$30)","v":0},{"$f":"'Fordeling af arbejdsopgaver'!W49*(Kalkuler!$AO$19+Kalkuler!$AO$20+Kalkuler!$AO$21+Kalkuler!$AO$22+Kalkuler!$AO$30)","v":-353.3},{"$f":"'Fordeling af arbejdsopgaver'!X49*(Kalkuler!$AO$19+Kalkuler!$AO$20+Kalkuler!$AO$21+Kalkuler!$AO$22+Kalkuler!$AO$30)","v":0},{"$f":"'Fordeling af arbejdsopgaver'!Y49*(Kalkuler!$AO$19+Kalkuler!$AO$20+Kalkuler!$AO$21+Kalkuler!$AO$22+Kalkuler!$AO$30)","v":0},{"$f":"'Fordeling af arbejdsopgaver'!Z49*(Kalkuler!$AO$19+Kalkuler!$AO$20+Kalkuler!$AO$21+Kalkuler!$AO$22+Kalkuler!$AO$30)","v":0},{"$f":"'Fordeling af arbejdsopgaver'!AA49*(Kalkuler!$AO$19+Kalkuler!$AO$20+Kalkuler!$AO$21+Kalkuler!$AO$22+Kalkuler!$AO$30)","v":0},{"$f":"'Fordeling af arbejdsopgaver'!AB49*(Kalkuler!$AO$19+Kalkuler!$AO$20+Kalkuler!$AO$21+Kalkuler!$AO$22+Kalkuler!$AO$30)","v":0}]
[null,"I alt",{"$f":"SUM(C52:C56)","v":0},0,0,0,0,0,-3304.5,-176.65,-3481.15,-176.65,-176.65,-353.3,-353.3,0,0,0,-181.25,-877.5,-696.25,-353.3,0,0,0,0,0]
[null,"År til dato"]
["Vårsæd (byg)","Pløjning",null,{"$f":"'Fordeling af arbejdsopgaver'!E51*Kalkuler!$E$27","v":0},{"$f":"'Fordeling af arbejdsopgaver'!F51*Kalkuler!$E$27","v":0},{"$f":"'Fordeling af arbejdsopgaver'!G51*Kalkuler!$E$27","v":0},{"$f":"'Fordeling af arbejdsopgaver'!H51*Kalkuler!$E$27","v":-362.5},{"$f":"'Fordeling af arbejdsopgaver'!I51*Kalkuler!$E$27","v":-362.5},{"$f":"'Fordeling af arbejdsopgaver'!J51*Kalkuler!$E$27","v":0},{"$f":"'Fordeling af arbejdsopgaver'!K51*Kalkuler!$E$27","v":0},{"$f":"'Fordeling af arbejdsopgaver'!L51*Kalkuler!$E$27","v":0},{"$f":"'Fordeling af arbejdsopgaver'!M51*Kalkuler!$E$27","v":0},{"$f":"'Fordeling af arbejdsopgaver'!N51*Kalkuler!$E$27","v":0},{"$f":"'Fordeling af arbejdsopgaver'!O51*Kalkuler!$E$27","v":0},{"$f":"'Fordeling af arbejdsopgaver'!P51*Kalkuler!$E$27","v":0},{"$f":"'Fordeling af arbejdsopgaver'!Q51*Kalkuler!$E$27","v":0},{"$f":"'Fordeling af arbejdsopgaver'!R51*Kalkuler!$E$27","v":0},{"$f":"'Fordeling af arbejdsopgaver'!S51*Kalkuler!$E$27","v":0},{"$f":"'Fordeling af arbejdsopgaver'!T51*Kalkuler!$E$27","v":0},{"$f":"'Fordeling af arbejdsopgaver'!U51*Kalkuler!$E$27","v":0},{"$f":"'Fordeling af arbejdsopgaver'!V51*Kalkuler!$E$27","v":0},{"$f":"'Fordeling af arbejdsopgaver'!W51*Kalkuler!$E$27","v":0},{"$f":"'Fordeling af arbejdsopgaver'!X51*Kalkuler!$E$27","v":0},{"$f":"'Fordeling af arbejdsopgaver'!Y51*Kalkuler!$E$27","v":0},{"$f":"'Fordeling af arbejdsopgaver'!Z51*Kalkuler!$E$27","v":0},{"$f":"'Fordeling af arbejdsopgaver'!AA51*Kalkuler!$E$27","v":0},{"$f":"'Fordeling af arbejdsopgaver'!AB51*Kalkuler!$E$27","v":0}]
[null,"Jorbearb. Før såning",null,null,null,null,null,null,0.5,0.5]
[null,"Afgrødeetabl. (såning, lægning o.l.)",null,{"$f":"'Fordeling af arbejdsopgaver'!E52*(Kalkuler!$E$15+Kalkuler!$E$29)","v":0},{"$f":"'Fordeling af arbejdsopgaver'!F52*(Kalkuler!$E$15+Kalkuler!$E$29)","v":0},{"$f":"'Fordeling af arbejdsopgaver'!G52*(Kalkuler!$E$15+Kalkuler!$E$29)","v":0},{"$f":"'Fordeling af arbejdsopgaver'!H52*(Kalkuler!$E$15+Kalkuler!$E$29)","v":0},{"$f":"'Fordeling af arbejdsopgaver'!I52*(Kalkuler!$E$15+Kalkuler!$E$29)","v":0},{"$f":"'Fordeling af arbejdsopgaver'!J52*(Kalkuler!$E$15+Kalkuler!$E$29)","v":-480},{"$f":"'Fordeling af arbejdsopgaver'!K52*(Kalkuler!$E$15+Kalkuler!$E$29)","v":-480},{"$f":"'Fordeling af arbejdsopgaver'!L52*(Kalkuler!$E$15+Kalkuler!$E$29)","v":0},{"$f":"'Fordeling af arbejdsopgaver'!M52*(Kalkuler!$E$15+Kalkuler!$E$29)","v":0},{"$f":"'Fordeling af arbejdsopgaver'!N52*(Kalkuler!$E$15+Kalkuler!$E$29)","v":0},{"$f":"'Fordeling af arbejdsopgaver'!O52*(Kalkuler!$E$15+Kalkuler!$E$29)","v":0},{"$f":"'Fordeling af arbejdsopgaver'!P52*(Kalkuler!$E$15+Kalkuler!$E$29)","v":0},{"$f":"'Fordeling af arbejdsopgaver'!Q52*(Kalkuler!$E$15+Kalkuler!$E$29)","v":0},{"$f":"'Fordeling af arbejdsopgaver'!R52*(Kalkuler!$E$15+Kalkuler!$E$29)","v":0},{"$f":"'Fordeling af arbejdsopgaver'!S52*(Kalkuler!$E$15+Kalkuler!$E$29)","v":0},{"$f":"'Fordeling af arbejdsopgaver'!T52*(Kalkuler!$E$15+Kalkuler!$E$29)","v":0},{"$f":"'Fordeling af arbejdsopgaver'!U52*(Kalkuler!$E$15+Kalkuler!$E$29)","v":0},{"$f":"'Fordeling af arbejdsopgaver'!V52*(Kalkuler!$E$15+Kalkuler!$E$29)","v":0},{"$f":"'Fordeling af arbejdsopgaver'!W52*(Kalkuler!$E$15+Kalkuler!$E$29)","v":0},{"$f":"'Fordeling af arbejdsopgaver'!X52*(Kalkuler!$E$15+Kalkuler!$E$29)","v":0},{"$f":"'Fordeling af arbejdsopgaver'!Y52*(Kalkuler!$E$15+Kalkuler!$E$29)","v":0},{"$f":"'Fordeling af arbejdsopgaver'!Z52*(Kalkuler!$E$15+Kalkuler!$E$29)","v":0},{"$f":"'Fordeling af arbejdsopgaver'!AA52*(Kalkuler!$E$15+Kalkuler!$E$29)","v":0},{"$f":"'Fordeling af arbejdsopgaver'!AB52*(Kalkuler!$E$15+Kalkuler!$E$29)","v":0}]
[null,"Gødskning (handelsgødning)",null,{"$f":"'Fordeling af arbejdsopgaver'!E54*(Kalkuler!$E$16+Kalkuler!$E$17+Kalkuler!$E$18+Kalkuler!$E$28)","v":0},{"$f":"'Fordeling af arbejdsopgaver'!F54*(Kalkuler!$E$16+Kalkuler!$E$17+Kalkuler!$E$18+Kalkuler!$E$28)","v":0},{"$f":"'Fordeling af arbejdsopgaver'!G54*(Kalkuler!$E$16+Kalkuler!$E$17+Kalkuler!$E$18+Kalkuler!$E$28)","v":0},{"$f":"'Fordeling af arbejdsopgaver'!H54*(Kalkuler!$E$16+Kalkuler!$E$17+Kalkuler!$E$18+Kalkuler!$E$28)","v":0},{"$f":"'Fordeling af arbejdsopgaver'!I54*(Kalkuler!$E$16+Kalkuler!$E$17+Kalkuler!$E$18+Kalkuler!$E$28)","v":0},{"$f":"'Fordeling af arbejdsopgaver'!J54*(Kalkuler!$E$16+Kalkuler!$E$17+Kalkuler!$E$18+Kalkuler!$E$28)","v":0},{"$f":"'Fordeling af arbejdsopgaver'!K54*(Kalkuler!$E$16+Kalkuler!$E$17+Kalkuler!$E$18+Kalkuler!$E$28)","v":-2402},{"$f":"'Fordeling af arbejdsopgaver'!L54*(Kalkuler!$E$16+Kalkuler!$E$17+Kalkuler!$E$18+Kalkuler!$E$28)","v":-2402},{"$f":"'Fordeling af arbejdsopgaver'!M54*(Kalkuler!$E$16+Kalkuler!$E$17+Kalkuler!$E$18+Kalkuler!$E$28)","v":0},{"$f":"'Fordeling af arbejdsopgaver'!N54*(Kalkuler!$E$16+Kalkuler!$E$17+Kalkuler!$E$18+Kalkuler!$E$28)","v":0},{"$f":"'Fordeling af arbejdsopgaver'!O54*(Kalkuler!$E$16+Kalkuler!$E$17+Kalkuler!$E$18+Kalkuler!$E$28)","v":0},{"$f":"'Fordeling af arbejdsopgaver'!P54*(Kalkuler!$E$16+Kalkuler!$E$17+Kalkuler!$E$18+Kalkuler!$E$28)","v":0},{"$f":"'Fordeling af arbejdsopgaver'!Q54*(Kalkuler!$E$16+Kalkuler!$E$17+Kalkuler!$E$18+Kalkuler!$E$28)","v":0},{"$f":"'Fordeling af arbejdsopgaver'!R54*(Kalkuler!$E$16+Kalkuler!$E$17+Kalkuler!$E$18+Kalkuler!$E$28)","v":0},{"$f":"'Fordeling af arbejdsopgaver'!S54*(Kalkuler!$E$16+Kalkuler!$E$17+Kalkuler!$E$18+Kalkuler!$E$28)","v":0},{"$f":"'Fordeling af arbejdsopgaver'!T54*(Kalkuler!$E$16+Kalkuler!$E$17+Kalkuler!$E$18+Kalkuler!$E$28)","v":0},{"$f":"'Fordeling af arbejdsopgaver'!U54*(Kalkuler!$E$16+Kalkuler!$E$17+Kalkuler!$E$18+Kalkuler!$E$28)","v":0},{"$f":"'Fordeling af arbejdsopgaver'!V54*(Kalkuler!$E$16+Kalkuler!$E$17+Kalkuler!$E$18+Kalkuler!$E$28)","v":0},{"$f":"'Fordeling af arbejdsopgaver'!W54*(Kalkuler!$E$16+Kalkuler!$E$17+Kalkuler!$E$18+Kalkuler!$E$28)","v":0},{"$f":"'Fordeling af arbejdsopgaver'!X54*(Kalkuler!$E$16+Kalkuler!$E$17+Kalkuler!$E$18+Kalkuler!$E$28)","v":0},{"$f":"'Fordeling af arbejdsopgaver'!Y54*(Kalkuler!$E$16+Kalkuler!$E$17+Kalkuler!$E$18+Kalkuler!$E$28)","v":0},{"$f":"'Fordeling af arbejdsopgaver'!Z54*(Kalkuler!$E$16+Kalkuler!$E$17+Kalkuler!$E$18+Kalkuler!$E$28)","v":0},{"$f":"'Fordeling af arbejdsopgaver'!AA54*(Kalkuler!$E$16+Kalkuler!$E$17+Kalkuler!$E$18+Kalkuler!$E$28)","v":0},{"$f":"'Fordeling af arbejdsopgaver'!AB54*(Kalkuler!$E$16+Kalkuler!$E$17+Kalkuler!$E$18+Kalkuler!$E$28)","v":0}]
[null,"Planteværn",null,{"$f":"'Fordeling af arbejdsopgaver'!E55*(Kalkuler!$E$19+Kalkuler!$E$20+Kalkuler!$E$21+Kalkuler!$E$22+Kalkuler!$E$30)","v":0},{"$f":"'Fordeling af arbejdsopgaver'!F55*(Kalkuler!$E$19+Kalkuler!$E$20+Kalkuler!$E$21+Kalkuler!$E$22+Kalkuler!$E$30)","v":0},{"$f":"'Fordeling af arbejdsopgaver'!G55*(Kalkuler!$E$19+Kalkuler!$E$20+Kalkuler!$E$21+Kalkuler!$E$22+Kalkuler!$E$30)","v":0},{"$f":"'Fordeling af arbejdsopgaver'!H55*(Kalkuler!$E$19+Kalkuler!$E$20+Kalkuler!$E$21+Kalkuler!$E$22+Kalkuler!$E$30)","v":0},{"$f":"'Fordeling af arbejdsopgaver'!I55*(Kalkuler!$E$19+Kalkuler!$E$20+Kalkuler!$E$21+Kalkuler!$E$22+Kalkuler!$E$30)","v":0},{"$f":"'Fordeling af arbejdsopgaver'!J55*(Kalkuler!$E$19+Kalkuler!$E$20+Kalkuler!$E$21+Kalkuler!$E$22+Kalkuler!$E$30)","v":0},{"$f":"'Fordeling af arbejdsopgaver'!K55*(Kalkuler!$E$19+Kalkuler!$E$20+Kalkuler!$E$21+Kalkuler!$E$22+Kalkuler!$E$30)","v":-126.66666666666666},{"$f":"'Fordeling af arbejdsopgaver'!L55*(Kalkuler!$E$19+Kalkuler!$E$20+Kalkuler!$E$21+Kalkuler!$E$22+Kalkuler!$E$30)","v":-126.66666666666666},{"$f":"'Fordeling af arbejdsopgaver'!M55*(Kalkuler!$E$19+Kalkuler!$E$20+Kalkuler!$E$21+Kalkuler!$E$22+Kalkuler!$E$30)","v":-126.66666666666666},{"$f":"'Fordeling af arbejdsopgaver'!N55*(Kalkuler!$E$19+Kalkuler!$E$20+Kalkuler!$E$21+Kalkuler!$E$22+Kalkuler!$E$30)","v":-126.66666666666666},{"$f":"'Fordeling af arbejdsopgaver'!O55*(Kalkuler!$E$19+Kalkuler!$E$20+Kalkuler!$E$21+Kalkuler!$E$22+Kalkuler!$E$30)","v":-253.33333333333331},{"$f":"'Fordeling af arbejdsopgaver'!P55*(Kalkuler!$E$19+Kalkuler!$E$20+Kalkuler!$E$21+Kalkuler!$E$22+Kalkuler!$E$30)","v":0},{"$f":"'Fordeling af arbejdsopgaver'!Q55*(Kalkuler!$E$19+Kalkuler!$E$20+Kalkuler!$E$21+Kalkuler!$E$22+Kalkuler!$E$30)","v":0},{"$f":"'Fordeling af arbejdsopgaver'!R55*(Kalkuler!$E$19+Kalkuler!$E$20+Kalkuler!$E$21+Kalkuler!$E$22+Kalkuler!$E$30)","v":0},{"$f":"'Fordeling af arbejdsopgaver'!S55*(Kalkuler!$E$19+Kalkuler!$E$20+Kalkuler!$E$21+Kalkuler!$E$22+Kalkuler!$E$30)","v":0},{"$f":"'Fordeling af arbejdsopgaver'!T55*(Kalkuler!$E$19+Kalkuler!$E$20+Kalkuler!$E$21+Kalkuler!$E$22+Kalkuler!$E$30)","v":0},{"$f":"'Fordeling af arbejdsopgaver'!U55*(Kalkuler!$E$19+Kalkuler!$E$20+Kalkuler!$E$21+Kalkuler!$E$22+Kalkuler!$E$30)","v":0},{"$f":"'Fordeling af arbejdsopgaver'!V55*(Kalkuler!$E$19+Kalkuler!$E$20+Kalkuler!$E$21+Kalkuler!$E$22+Kalkuler!$E$30)","v":0},{"$f":"'Fordeling af arbejdsopgaver'!W55*(Kalkuler!$E$19+Kalkuler!$E$20+Kalkuler!$E$21+Kalkuler!$E$22+Kalkuler!$E$30)","v":0},{"$f":"'Fordeling af arbejdsopgaver'!X55*(Kalkuler!$E$19+Kalkuler!$E$20+Kalkuler!$E$21+Kalkuler!$E$22+Kalkuler!$E$30)","v":0},{"$f":"'Fordeling af arbejdsopgaver'!Y55*(Kalkuler!$E$19+Kalkuler!$E$20+Kalkuler!$E$21+Kalkuler!$E$22+Kalkuler!$E$30)","v":0},{"$f":"'Fordeling af arbejdsopgaver'!Z55*(Kalkuler!$E$19+Kalkuler!$E$20+Kalkuler!$E$21+Kalkuler!$E$22+Kalkuler!$E$30)","v":0},{"$f":"'Fordeling af arbejdsopgaver'!AA55*(Kalkuler!$E$19+Kalkuler!$E$20+Kalkuler!$E$21+Kalkuler!$E$22+Kalkuler!$E$30)","v":0},{"$f":"'Fordeling af arbejdsopgaver'!AB55*(Kalkuler!$E$19+Kalkuler!$E$20+Kalkuler!$E$21+Kalkuler!$E$22+Kalkuler!$E$30)","v":0}]
[null,"I alt",{"$f":"SUM(C59:C63)","v":0},0,0,0,-362.5,-362.5,-479.5,-3008.1666666666665,-2528.6666666666665,-126.66666666666666,-126.66666666666666,-253.33333333333331,0,0,0,0,0,0,0,0,0,0,0,0,0]
[null,"År til dato"]

{"sheet":"Vandløbsnære arealer","index":1,"n_rows":21,"n_cols":37,"rows_kept":21,"cut":false,"hidden":false,"merged":[]}
[null,"Foreløbig model for erstatning ved oversvømmelse af vandløbsnære områder"]
[]
[null,"Hvilken afgrøde er etableret på arealet?","Vårsæd (byg)"]
[]
[null,"Hvornår skete oversvømmelsen?","Start maj"]
[]
[null,"Bundet kapital i afgrøden:",{"$f":"INDEX(B12:AK21,MATCH(C3,B12:B21,0),MATCH(C5,B12:AK12,0))","v":-6867.9999999999991},"kr. "]
[]
[]
[]
[]
[null,null,{"$f":"'Fordeling af omkostninger'!C2","v":"Året før"},"0_Start Aug.","0_Slut Aug.","0_Start sep.","0_Slut sep.","0_Start okt.","0_Slut okt.","0_Start nov.","0_Slut nov.","0_Start dec.","0_Slut dec.","Start jan.","Slut jan.","Start feb.","Slut feb.","Start mar.","Slut mar.","Start apr.","Slut apr.","Start maj","Slut maj","Start jun","Slut jun","Start jul.","Slut jul.","Start Aug.","Slut Aug.","Start sep.","Slut sep.","Start okt.","Slut okt.","Start nov.","Slut nov.","Start dec.","Slut dec."]
[null,"Frøgræs (Rajgræs)",{"$f":"SUM('Fordeling af omkostninger'!C8:C8)","v":-1240},{"$f":"SUM('Fordeling af omkostninger'!$R$8:R8)+$C$13","v":-1240},{"$f":"SUM('Fordeling af omkostninger'!$R$8:S8)+$C$13","v":-1463},{"$f":"SUM('Fordeling af omkostninger'!$R$8:T8)+$C$13","v":-1686},{"$f":"SUM('Fordeling af omkostninger'!$R$8:U8)+$C$13","v":-4996.5},{"$f":"SUM('Fordeling af omkostninger'!$R$8:V8)+$C$13","v":-4996.5},{"$f":"SUM('Fordeling af omkostninger'!$R$8:W8)+$C$13","v":-4996.5},{"$f":"SUM('Fordeling af omkostninger'!$R$8:X8)+$C$13","v":-4996.5},{"$f":"SUM('Fordeling af omkostninger'!$R$8:Y8)+$C$13","v":-4996.5},{"$f":"SUM('Fordeling af omkostninger'!$R$8:Z8)+$C$13","v":-4996.5},{"$f":"SUM('Fordeling af omkostninger'!$R$8:AA8)+$C$13","v":-4996.5},{"$f":"SUM('Fordeling af omkostninger'!$D$8:D8)+$M$13","v":-4996.5},{"$f":"SUM('Fordeling af omkostninger'!$D$8:E8)+$M$13","v":-4996.5},{"$f":"SUM('Fordeling af omkostninger'!$D$8:F8)+$M$13","v":-4996.5},{"$f":"SUM('Fordeling af omkostninger'!$D$8:G8)+$M$13","v":-4996.5},{"$f":"SUM('Fordeling af omkostninger'!$D$8:H8)+$M$13","v":-4996.5},{"$f":"SUM('Fordeling af omkostninger'!$D$8:I8)+$M$13","v":-8307},{"$f":"SUM('Fordeling af omkostninger'!$D$8:J8)+$M$13","v":-8530},{"$f":"SUM('Fordeling af omkostninger'!$D$8:K8)+$M$13","v":-8753},{"$f":"SUM('Fordeling af omkostninger'!$D$8:L8)+$M$13","v":-8976},{"$f":"SUM('Fordeling af omkostninger'!$D$8:M8)+$M$13","v":-9199},{"$f":"SUM('Fordeling af omkostninger'!$D$8:N8)+$M$13","v":-9199},{"$f":"SUM('Fordeling af omkostninger'!$D$8:O8)+$M$13","v":-9199},{"$f":"SUM('Fordeling af omkostninger'!$D$8:P8)+$M$13","v":-9199},{"$f":"SUM('Fordeling af omkostninger'!$D$8:Q8)+$M$13","v":-9199},{"$f":"SUM('Fordeling af omkostninger'!$D$8:R8)+$M$13","v":-9199}]
[null,"Stivelseskartofler",{"$f":"SUM('Fordeling af omkostninger'!C15)","v":0},null,null,null,null,null,null,null,null,null,null,{"$f":"SUM('Fordeling af omkostninger'!$D$15:D15)","v":0},{"$f":"SUM('Fordeling af omkostninger'!$D$15:E15)","v":0},{"$f":"SUM('Fordeling af omkostninger'!$D$15:F15)","v":0},{"$f":"SUM('Fordeling af omkostninger'!$D$15:G15)","v":-362.5},{"$f":"SUM('Fordeling af omkostninger'!$D$15:H15)","v":-725},{"$f":"SUM('Fordeling af omkostninger'!$D$15:I15)","v":-725},{"$f":"SUM('Fordeling af omkostninger'!$D$15:J15)","v":-10028.5},{"$f":"SUM('Fordeling af omkostninger'!$D$15:K15)","v":-19332},{"$f":"SUM('Fordeling af omkostninger'!$D$15:L15)","v":-19776.75},{"$f":"SUM('Fordeling af omkostninger'!$D$15:M15)","v":-20221.5},{"$f":"SUM('Fordeling af omkostninger'!$D$15:N15)","v":-21111},{"$f":"SUM('Fordeling af omkostninger'!$D$15:O15)","v":-22000.5},{"$f":"SUM('Fordeling af omkostninger'!$D$15:P15)","v":-22890},{"$f":"SUM('Fordeling af omkostninger'!$D$15:Q15)","v":-23779.5},{"$f":"SUM('Fordeling af omkostninger'!$D$15:R15)","v":-24669},{"$f":"SUM('Fordeling af omkostninger'!$D$15:S15)","v":-25558.5},{"$f":"SUM('Fordeling af omkostninger'!$D$15:T15)","v":-26448},{"$f":"SUM('Fordeling af omkostninger'!$D$15:U15)","v":-26448},{"$f":"SUM('Fordeling af omkostninger'!$D$15:V15)","v":-26448},{"$f":"SUM('Fordeling af omkostninger'!$D$15:W15)","v":-26448},{"$f":"SUM('Fordeling af omkostninger'!$D$15:X15)","v":-26448},{"$f":"SUM('Fordeling af omkostninger'!$D$15:Y15)","v":-26448}]
[null,"Kløvergræs til slæt",{"$f":"SUM('Fordeling af omkostninger'!C22:C22)","v":-1278},{"$f":"C15","v":-1278},{"$f":"D15","v":-1278},-1278,-1278,-1278,-1278,-1278,-1278,-1278,-1278,{"$f":"SUM('Fordeling af omkostninger'!$D$22:D22)+$C$15","v":-1278},{"$f":"SUM('Fordeling af omkostninger'!$D$22:E22)+$C$15","v":-1278},{"$f":"SUM('Fordeling af omkostninger'!$D$22:F22)+$C$15","v":-1278},{"$f":"SUM('Fordeling af omkostninger'!$D$22:G22)+$C$15","v":-1278},{"$f":"SUM('Fordeling af omkostninger'!$D$22:H22)+$C$15","v":-1278},{"$f":"SUM('Fordeling af omkostninger'!$D$22:I22)+$C$15","v":-5092},{"$f":"SUM('Fordeling af omkostninger'!$D$22:J22)+$C$15","v":-5092},{"$f":"SUM('Fordeling af omkostninger'!$D$22:K22)+$C$15","v":-5092},{"$f":"SUM('Fordeling af omkostninger'!$D$22:L22)+$C$15","v":-5092},{"$f":"SUM('Fordeling af omkostninger'!$D$22:M22)+$C$15","v":-8906},{"$f":"SUM('Fordeling af omkostninger'!$D$22:N22)+$C$15","v":-8906},{"$f":"SUM('Fordeling af omkostninger'!$D$22:O22)+$C$15","v":-8906},{"$f":"SUM('Fordeling af omkostninger'!$D$22:P22)+$C$15","v":-12720},{"$f":"SUM('Fordeling af omkostninger'!$D$22:Q22)+$C$15","v":-12720},{"$f":"SUM('Fordeling af omkostninger'!$D$22:R22)+$C$15","v":-13998},{"$f":"SUM('Fordeling af omkostninger'!$D$22:S22)+$C$15","v":-13998},{"$f":"SUM('Fordeling af omkostninger'!$D$22:T22)+$C$15","v":-13998},{"$f":"SUM('Fordeling af omkostninger'!$D$22:U22)+$C$15","v":-13998},{"$f":"SUM('Fordeling af omkostninger'!$D$22:V22)+$C$15","v":-13998}]
[null,"Majs til helsæd",{"$f":"SUM('Fordeling af omkostninger'!C29)","v":0},null,null,null,null,null,null,null,null,null,null,0,{"$f":"SUM('Fordeling af omkostninger'!$D$29:D29)","v":0},{"$f":"SUM('Fordeling af omkostninger'!$D$29:E29)","v":0},{"$f":"SUM('Fordeling af omkostninger'!$D$29:F29)","v":0},{"$f":"SUM('Fordeling af omkostninger'!$D$29:G29)","v":0},{"$f":"SUM('Fordeling af omkostninger'!$D$29:H29)","v":0},{"$f":"SUM('Fordeling af omkostninger'!$D$29:I29)","v":-362.5},{"$f":"SUM('Fordeling af omkostninger'!$D$29:J29)","v":-7549},{"$f":"SUM('Fordeling af omkostninger'!$D$29:K29)","v":-10124},{"$f":"SUM('Fordeling af omkostninger'!$D$29:L29)","v":-10124},{"$f":"SUM('Fordeling af omkostninger'!$D$29:M29)","v":-10584.5},{"$f":"SUM('Fordeling af omkostninger'!$D$29:N29)","v":-11045},{"$f":"SUM('Fordeling af omkostninger'!$D$29:O29)","v":-11045},{"$f":"SUM('Fordeling af omkostninger'!$D$29:P29)","v":-11045},{"$f":"SUM('Fordeling af omkostninger'!$D$29:Q29)","v":-11045},{"$f":"SUM('Fordeling af omkostninger'!$D$29:R29)","v":-11045},{"$f":"SUM('Fordeling af omkostninger'!$D$29:S29)","v":-11045},{"$f":"SUM('Fordeling af omkostninger'!$D$29:T29)","v":-11045},{"$f":"SUM('Fordeling af omkostninger'!$D$29:U29)","v":-11045}]
[null,"Sukkerroer",{"$f":"SUM('Fordeling af omkostninger'!C36)","v":0},null,null,null,null,null,null,{"$f":"SUM('Fordeling af omkostninger'!$X$36:X36)","v":-181.25},{"$f":"SUM('Fordeling af omkostninger'!$X$36:Y36)","v":-362.5},{"$f":"SUM('Fordeling af omkostninger'!$X$36:Z36)","v":-543.75},{"$f":"SUM('Fordeling af omkostninger'!$X$36:AA36)","v":-725},{"$f":"SUM('Fordeling af omkostninger'!$D$36:D36)+$M$17","v":-725},{"$f":"SUM('Fordeling af omkostninger'!$D$36:E36)+$M$17","v":-725},{"$f":"SUM('Fordeling af omkostninger'!$D$36:F36)+$M$17","v":-725},{"$f":"SUM('Fordeling af omkostninger'!$D$36:G36)+$M$17","v":-725},{"$f":"SUM('Fordeling af omkostninger'!$D$36:H36)+$M$17","v":-725},{"$f":"SUM('Fordeling af omkostninger'!$D$36:I36)+$M$17","v":-1125},{"$f":"SUM('Fordeling af omkostninger'!$D$36:J36)+$M$17","v":-9355},{"$f":"SUM('Fordeling af omkostninger'!$D$36:K36)+$M$17","v":-10575.4},{"$f":"SUM('Fordeling af omkostninger'!$D$36:L36)+$M$17","v":-10575.4},{"$f":"SUM('Fordeling af omkostninger'!$D$36:M36)+$M$17","v":-11185.6},{"$f":"SUM('Fordeling af omkostninger'!$D$36:N36)+$M$17","v":-11795.800000000001},{"$f":"SUM('Fordeling af omkostninger'!$D$36:O36)+$M$17","v":-12406.000000000002},{"$f":"SUM('Fordeling af omkostninger'!$D$36:P36)+$M$17","v":-12406.000000000002},{"$f":"SUM('Fordeling af omkostninger'!$D$36:Q36)+$M$17","v":-12406.000000000002},{"$f":"SUM('Fordeling af omkostninger'!$D$36:R36)+$M$17","v":-12406.000000000002},{"$f":"SUM('Fordeling af omkostninger'!$D$36:S36)+$M$17","v":-12406.000000000002},{"$f":"SUM('Fordeling af omkostninger'!$D$36:T36)+$M$17","v":-12406.000000000002},{"$f":"SUM('Fordeling af omkostninger'!$D$36:U36)+$M$17","v":-12406.000000000002},{"$f":"SUM('Fordeling af omkostninger'!$D$36:V36)+$M$17","v":-12406.000000000002},{"$f":"SUM('Fordeling af omkostninger'!$D$36:W36)+$M$17","v":-12406.000000000002}]
[null,"Vinterraps",{"$f":"SUM('Fordeling af omkostninger'!C43:C43)","v":0},{"$f":"SUM('Fordeling af omkostninger'!$R$43:R43)","v":-1255.5},{"$f":"SUM('Fordeling af omkostninger'!$R$43:S43)","v":-1674},{"$f":"SUM('Fordeling af omkostninger'!$R$43:T43)","v":-2011.5},{"$f":"SUM('Fordeling af omkostninger'!$R$43:U43)","v":-4197.833333333333},{"$f":"SUM('Fordeling af omkostninger'!$R$43:V43)","v":-4535.333333333333},{"$f":"SUM('Fordeling af omkostninger'!$R$43:W43)","v":-4535.333333333333},{"$f":"SUM('Fordeling af omkostninger'!$R$43:X43)","v":-4872.833333333333},{"$f":"SUM('Fordeling af omkostninger'!$R$43:Y43)","v":-4872.833333333333},{"$f":"SUM('Fordeling af omkostninger'!$R$43:Z43)","v":-4872.833333333333},{"$f":"SUM('Fordeling af omkostninger'!$R$43:AA43)","v":-4872.833333333333},{"$f":"M18+'Fordeling af omkostninger'!D$43","v":-4872.833333333333},{"$f":"N18+'Fordeling af omkostninger'!E$43","v":-4872.833333333333},{"$f":"O18+'Fordeling af omkostninger'!F$43","v":-4872.833333333333},{"$f":"P18+'Fordeling af omkostninger'!G$43","v":-4872.833333333333},{"$f":"Q18+'Fordeling af omkostninger'!H$43","v":-7059.1666666666661},{"$f":"R18+'Fordeling af omkostninger'!I$43","v":-7059.1666666666661},{"$f":"S18+'Fordeling af omkostninger'!J$43","v":-9414.25},{"$f":"T18+'Fordeling af omkostninger'!K$43","v":-9583},{"$f":"U18+'Fordeling af omkostninger'!L$43","v":-9920.5},{"$f":"V18+'Fordeling af omkostninger'!M$43","v":-10258},{"$f":"W18+'Fordeling af omkostninger'!N$43","v":-10258},{"$f":"X18+'Fordeling af omkostninger'!O$43","v":-10258},{"$f":"Y18+'Fordeling af omkostninger'!P$43","v":-10258},{"$f":"Z18+'Fordeling af omkostninger'!Q$43","v":-10258}]
[null,"Vintersæd (byg)",{"$f":"SUM('Fordeling af omkostninger'!C50:C50)","v":0},null,{"$f":"SUM('Fordeling af omkostninger'!$R$50:S50)","v":-890},{"$f":"SUM('Fordeling af omkostninger'!$R$50:T50)","v":-1780},{"$f":"SUM('Fordeling af omkostninger'!$R$50:U50)","v":-1780},{"$f":"SUM('Fordeling af omkostninger'!$R$50:V50)","v":-2098.25},{"$f":"SUM('Fordeling af omkostninger'!$R$50:W50)","v":-2098.25},{"$f":"SUM('Fordeling af omkostninger'!$R$50:X50)","v":-2098.25},{"$f":"SUM('Fordeling af omkostninger'!$R$50:Y50)","v":-2098.25},{"$f":"SUM('Fordeling af omkostninger'!$R$50:Z50)","v":-2098.25},{"$f":"SUM('Fordeling af omkostninger'!$R$50:AA50)","v":-2098.25},{"$f":"M19+'Fordeling af omkostninger'!D$50","v":-2098.25},{"$f":"N19+'Fordeling af omkostninger'!E$50","v":-2098.25},{"$f":"O19+'Fordeling af omkostninger'!F$50","v":-2098.25},{"$f":"P19+'Fordeling af omkostninger'!G$50","v":-2098.25},{"$f":"Q19+'Fordeling af omkostninger'!H$50","v":-2098.25},{"$f":"R19+'Fordeling af omkostninger'!I$50","v":-7943.25},{"$f":"S19+'Fordeling af omkostninger'!J$50","v":-8102.375},{"$f":"T19+'Fordeling af omkostninger'!K$50","v":-8261.5},{"$f":"U19+'Fordeling af omkostninger'!L$50","v":-8579.75},{"$f":"V19+'Fordeling af omkostninger'!M$50","v":-8898},{"$f":"W19+'Fordeling af omkostninger'!N$50","v":-8898},{"$f":"X19+'Fordeling af omkostninger'!O$50","v":-8898},{"$f":"Y19+'Fordeling af omkostninger'!P$50","v":-8898},{"$f":"Z19+'Fordeling af omkostninger'!Q$50","v":-8898},{"$f":"AA19+'Fordeling af omkostninger'!R$50","v":-8898}]
["                                  ","Vintersæd (hvede)",{"$f":"SUM('Fordeling af omkostninger'!C57:C57)","v":0},null,{"$f":"SUM('Fordeling af omkostninger'!$R$57:S57)","v":-181.25},{"$f":"SUM('Fordeling af omkostninger'!$R$57:T57)","v":-1058.75},{"$f":"SUM('Fordeling af omkostninger'!$R$57:U57)","v":-1755},{"$f":"SUM('Fordeling af omkostninger'!$R$57:V57)","v":-2108.3000000000002},{"$f":"SUM('Fordeling af omkostninger'!$R$57:W57)","v":-2108.3000000000002},{"$f":"SUM('Fordeling af omkostninger'!$R$57:X57)","v":-2108.3000000000002},{"$f":"SUM('Fordeling af omkostninger'!$R$57:Y57)","v":-2108.3000000000002},{"$f":"SUM('Fordeling af omkostninger'!$R$57:Z57)","v":-2108.3000000000002},{"$f":"SUM('Fordeling af omkostninger'!$R$57:AA57)","v":-2108.3000000000002},{"$f":"M20+'Fordeling af omkostninger'!D$57","v":-2108.3000000000002},{"$f":"N20+'Fordeling af omkostninger'!E$57","v":-2108.3000000000002},{"$f":"O20+'Fordeling af omkostninger'!F$57","v":-2108.3000000000002},{"$f":"P20+'Fordeling af omkostninger'!G$57","v":-2108.3000000000002},{"$f":"Q20+'Fordeling af omkostninger'!H$57","v":-2108.3000000000002},{"$f":"R20+'Fordeling af omkostninger'!I$57","v":-5412.8},{"$f":"S20+'Fordeling af omkostninger'!J$57","v":-5589.45},{"$f":"T20+'Fordeling af omkostninger'!K$57","v":-9070.6},{"$f":"U20+'Fordeling af omkostninger'!L$57","v":-9247.25},{"$f":"V20+'Fordeling af omkostninger'!M$57","v":-9423.9},{"$f":"W20+'Fordeling af omkostninger'!N$57","v":-9777.1999999999989},{"$f":"X20+'Fordeling af omkostninger'!O$57","v":-10130.499999999998},{"$f":"Y20+'Fordeling af omkostninger'!P$57","v":-10130.499999999998},{"$f":"Z20+'Fordeling af omkostninger'!Q$57","v":-10130.499999999998},{"$f":"AA20+'Fordeling af omkostninger'!R$57","v":-10130.499999999998}]
[null,"Vårsæd (byg)",{"$f":"SUM('Fordeling af omkostninger'!C64:C64)","v":0},null,null,null,null,null,null,null,null,null,null,{"$f":"SUM('Fordeling af omkostninger'!$D$64:D64)","v":0},{"$f":"SUM('Fordeling af omkostninger'!$D$64:E64)","v":0},{"$f":"SUM('Fordeling af omkostninger'!$D$64:F64)","v":0},{"$f":"SUM('Fordeling af omkostninger'!$D$64:G64)","v":-362.5},{"$f":"SUM('Fordeling af omkostninger'!$D$64:H64)","v":-725},{"$f":"SUM('Fordeling af omkostninger'!$D$64:I64)","v":-1204.5},{"$f":"SUM('Fordeling af omkostninger'!$D$64:J64)","v":-4212.6666666666661},{"$f":"SUM('Fordeling af omkostninger'!$D$64:K64)","v":-6741.3333333333321},{"$f":"SUM('Fordeling af omkostninger'!$D$64:L64)","v":-6867.9999999999991},{"$f":"SUM('Fordeling af omkostninger'!$D$64:M64)","v":-6994.6666666666661},{"$f":"SUM('Fordeling af omkostninger'!$D$64:N64)","v":-7247.9999999999991},{"$f":"SUM('Fordeling af omkostninger'!$D$64:O64)","v":-7247.9999999999991},{"$f":"SUM('Fordeling af omkostninger'!$D$64:P64)","v":-7247.9999999999991},{"$f":"SUM('Fordeling af omkostninger'!$D$64:Q64)","v":-7247.9999999999991},{"$f":"SUM('Fordeling af omkostninger'!$D$64:R64)","v":-7247.9999999999991}]

{"sheet":"Kalkuler","index":2,"n_rows":61,"n_cols":53,"rows_kept":61,"cut":false,"hidden":true,"merged":[]}
["Vårbyg",null,null,null,null,null,"Vinterbyg",null,null,null,null,null,"Rajgræs til frø",null,null,null,null,null,"Vinterraps",null,null,null,null,null,"Stivelseskartofler",null,null,null,null,null,"Sukkerroer",null,null,null,null,null,"Vinterhvede (1.års)",null,null,null,null,null,"Majs til helsæd",null,null,null,null,null,"Sædskiftegræs med 4 slæt"]
["Kalkulebeskrivelse:","Salgsafgrøder",null,null,null,null,"Kalkulebeskrivelse:","Salgsafgrøder",null,null,null,null,"Kalkulebeskrivelse:","Salgsafgrøder",null,null,null,null,"Kalkulebeskrivelse:","Salgsafgrøder",null,null,null,null,"Kalkulebeskrivelse:","Salgsafgrøder",null,null,null,null,"Kalkulebeskrivelse:","Salgsafgrøder",null,null,null,null,"Kalkulebeskrivelse:","Vinterhvede, 1. års",null,null,null,null,"Kalkulebeskrivelse:","Grovfoderafgrøder",null,null,null,null,"Kalkulebeskrivelse:","Grovfoderafgrøder"]
["Kalkulen gælder for:","2023",null,null,null,null,"Kalkulen gælder for:","2023",null,null,null,null,"Kalkulen gælder for:","2023",null,null,null,null,"Kalkulen gælder for:","2023",null,null,null,null,"Kalkulen gælder for:","2023",null,null,null,null,"Kalkulen gælder for:","2023",null,null,null,null,"Kalkulen gælder for:","2023",null,null,null,null,"Kalkulen gælder for:","2023",null,null,null,null,"Kalkulen gælder for:","2023"]
["Produktionsform:","Konventionel",null,null,null,null,"Produktionsform:","Konventionel",null,null,null,null,"Produktionsform:","Konventionel",null,null,null,null,"Produktionsform:","Konventionel",null,null,null,null,"Produktionsform:","Konventionel",null,null,null,null,"Produktionsform:","Konventionel",null,null,null,null,"Produktionsform:","Konventionel",null,null,null,null,"Produktionsform:","Konventionel",null,null,null,null,"Produktionsform:","Konventionel"]
["Jordbonitet:","JB 5-6",null,null,null,null,"Jordbonitet:","JB 5-6",null,null,null,null,"Jordbonitet:","JB 5-6",null,null,null,null,"Jordbonitet:","JB 5-6",null,null,null,null,"Jordbonitet:","JB 5-6",null,null,null,null,"Jordbonitet:","JB 5-6",null,null,null,null,"Jordbonitet:","JB 5-6",null,null,null,null,"Jordbonitet:","JB 5-6",null,null,null,null,"Jordbonitet:","JB 5-6"]
["Gødning:","Uden husdyrgødning",null,null,null,null,"Gødning:","Uden husdyrgødning",null,null,null,null,"Gødning:","Uden husdyrgødning",null,null,null,null,"Gødning:","Uden husdyrgødning",null,null,null,null,"Gødning:","Uden husdyrgødning",null,null,null,null,"Gødning:","Uden husdyrgødning",null,null,null,null,"Gødning:","Uden husdyrgødning",null,null,null,null,"Gødning:","Uden husdyrgødning",null,null,null,null,"Gødning:","Uden husdyrgødning"]
[]
["Emne","Kvantum","","Pris","Beløb",null,"Emne","Kvantum","","Pris","Beløb",null,"Emne","Kvantum","","Pris","Beløb",null,"Emne","Kvantum","","Pris","Beløb",null,"Emne","Kvantum","","Pris","Beløb",null,"Emne","Kvantum","","Pris","Beløb",null,"Emne","Kvantum","","Pris","Beløb",null,"Emne","Kvantum","","Pris","Beløb",null,"Emne","Kvantum","","Pris","Beløb"]
["Udbytte",null,"",null,null,null,"Udbytte",null,"",null,null,null,"Udbytte",null,"",null,null,null,"Udbytte",null,"",null,null,null,"Udbytte",null,"",null,null,null,"Udbytte",null,"",null,null,null,"Udbytte",null,"",null,null,null,"Udbytte",null,"",null,null,null,"Udbytte",null,""]
["Kerne salg",6500,"Kg",1.7,{"$f":"B10*D10","v":11050},null,"Kerne",7900,"Kg",1.7,{"$f":"H10*J10","v":13430},null,"Frøudbytte",1600,"Kg",9,{"$f":"N10*P10","v":14400},null,"Frøudbytte",4400,"Kg",3.75,{"$f":"T10*V10","v":16500},null,"Sorterede kartofler",57700,"Kg",0.72,{"$f":"Z10*AB10","v":41544},null,"Roer kontrakt",65500,"Kg",0.3,{"$f":"AF10*AH10","v":19650},null,"Kerne",9700,"Kg",1.8,{"$f":"AL10*AN10","v":17460},null,"Høstet udbytte",11700,"FEN",null,null,null,"Høstet udbytte",8850,"FEN"]
["Halm salg eller forbrug",3500,"Kg",0.65,{"$f":"B11*D11","v":2275},null,"Halm salg eller forbrug",3900,"Kg",0.65,{"$f":"H11*J11","v":2535},null,"Halm salg",5300,"Kg",0.65,{"$f":"N11*P11","v":3445},null,"Bruttoudbytte",null,"",null,{"$f":"SUM(W10:W10)","v":16500},null,"Støtte stivelseskartofler",null,"Kg",null,633,null,"Roeaffald",26200,"Kg",null,null,null,"Halm salg eller forbrug",4800,"Kg",0.65,{"$f":"AL11*AN11","v":3120},null,"Udfodret/solgt udbytte",11100,"FEN",1.1299999999999999,{"$f":"AR11*AT11","v":12542.999999999998},null,"Udfodret/solgt udbytte",8400,"FEN",1.5,{"$f":"AX11*AZ11","v":12600}]
["Bruttoudbytte",null,"",null,{"$f":"SUM(E10:E11)","v":13325},null,"Bruttoudbytte",null,"",null,{"$f":"SUM(K10:K11)","v":15965},null,"Bruttoudbytte",null,"",null,{"$f":"SUM(Q10:Q11)","v":17845},null,"",null,"",null,null,null,"Bruttoudbytte",null,"",null,{"$f":"SUM(AC10:AC11)","v":42177},null,"Fragtgodgørelse",65500,"Kg",null,null,null,"Udbytte i alt",null,"",null,{"$f":"SUM(AO10:AO11)","v":20580},null,"Bruttoudbytte",null,"",null,{"$f":"SUM(AU10:AU11)","v":12542.999999999998},null,"Bruttoudbytte",null,"",null,{"$f":"SUM(BA10:BA11)","v":12600}]
["",null,"",null,null,null,"",null,"",null,null,null,"",null,"",null,null,null,"Stykomkostninger",null,"",null,null,null,"",null,"",null,null,null,"Bruttoudbytte",null,"",null,{"$f":"SUM(AI10:AI12)","v":19650},null,"",null,"",null,null,null,"",null,"",null,null,null,"",null,""]
["Stykomkostninger",null,"",null,null,null,"Stykomkostninger",null,"",null,null,null,"Stykomkostninger",null,"",null,null,null,"Udsæd",-0.25,"Unit",2200,{"$f":"T14*V14","v":-550},null,"Stykomkostninger",null,"",null,null,null,"",null,"",null,null,null,"Stykomkostninger",null,"",null,null,null,"Stykomkostninger",null,"",null,null,null,"Stykomkostninger",null,""]
["Udsæd",-140,"Kg",4,{"$f":"B15*D15","v":-560},null,"Udsæd",-160,"Kg",4.0999999999999996,{"$f":"H15*J15","v":-656},null,"Udsæd",-7,"Kg",60,{"$f":"N15*P15","v":-420},null,"Handelsgødning Kvælstof",-210,"Kg",23,{"$f":"T15*V15","v":-4830},null,"Læggekartofler indkøbt",-460,"Kg",2.2000000000000002,{"$f":"Z15*AB15","v":-1012.0000000000001},null,"Stykomkostninger",null,"",null,null,null,"Udsæd",-150,"Kg",4.2,{"$f":"AL15*AN15","v":-630},null,"Udsæd",-2,"Enh",950,{"$f":"AR15*AT15","v":-1900},null,"Græsfrø udsæd",-9,"Kg",34.5,{"$f":"AX15*AZ15","v":-310.5}]
["Handelsgødning Kvælstof",-144,"Kg",23,{"$f":"B16*D16","v":-3312},null,"Handelsgødning Kvælstof",-184,"Kg",23,{"$f":"H16*J16","v":-4232},null,"Handelsgødning Kvælstof",-170,"Kg",23,{"$f":"N16*P16","v":-3910},null,"Handelsgødning Fosfor",-33,"Kg",23,{"$f":"T16*V16","v":-759},null,"Læggekartofler egen avl",-1840,"Kg",1.25,{"$f":"Z16*AB16","v":-2300},null,"Roefrø udsæd",-1,"Enh",1900,{"$f":"AF16*AH16","v":-1900},null,"Handelsgødning Kvælstof",-190,"Kg",23,{"$f":"AL16*AN16","v":-4370},null,"Handelsgødning Kvælstof",-157,"Kg",23,{"$f":"AR16*AT16","v":-3611},null,"Handelsgødning Kvælstof",-290,"Kg",23,{"$f":"AX16*AZ16","v":-6670}]
["Handelsgødning Fosfor",-24,"Kg",23,{"$f":"B17*D17","v":-552},null,"Handelsgødning Fosfor",-25,"Kg",23,{"$f":"H17*J17","v":-575},null,"Handelsgødning Fosfor",-21,"Kg",23,{"$f":"N17*P17","v":-483},null,"Handelsgødning Kalium",-55,"Kg",14,{"$f":"T17*V17","v":-770},null,"Handelsgødning Kvælstof",-202,"Kg",23,{"$f":"Z17*AB17","v":-4646},null,"Handelsgødning Kvælstof",-127,"Kg",23,{"$f":"AF17*AH17","v":-2921},null,"Handelsgødning Fosfor",-29,"Kg",23,{"$f":"AL17*AN17","v":-667},null,"Handelsgødning Fosfor",-39,"Kg",23,{"$f":"AR17*AT17","v":-897},null,"Handelsgødning Fosfor",-38,"Kg",23,{"$f":"AX17*AZ17","v":-874}]
["Handelsgødning Kalium",-60,"Kg",14,{"$f":"B18*D18","v":-840},null,"Handelsgødning Kalium",-67,"Kg",14,{"$f":"H18*J18","v":-938},null,"Handelsgødning Kalium",-122,"Kg",14,{"$f":"N18*P18","v":-1708},null,"Ukrudt",null,"Enh",null,-668,null,"Handelsgødning Fosfor",-32,"Kg",23,{"$f":"Z18*AB18","v":-736},null,"Handelsgødning Fosfor",-33,"Kg",23,{"$f":"AF18*AH18","v":-759},null,"Handelsgødning Kalium",-98,"Kg",14,{"$f":"AL18*AN18","v":-1372},null,"Handelsgødning Kalium",-144,"Kg",14,{"$f":"AR18*AT18","v":-2016},null,"Handelsgødning Kalium",-257,"Kg",14,{"$f":"AX18*AZ18","v":-3598}]
["Ukrudt",null,"Enh",null,-103,null,"Ukrudt",null,"Enh",null,-304,null,"Ukrudt",null,"Enh",null,-195,null,"Sygdom",null,"Enh",null,-238,null,"Handelsgødning Kalium",-217,"Kg",14,{"$f":"Z19*AB19","v":-3038},null,"Handelsgødning Kalium",-150,"Kg",14,{"$f":"AF19*AH19","v":-2100},null,"Ukrudt",null,"Enh",null,-458.5,null,"Ukrudt",null,"Enh",null,-592,null,"Plastik",-185,"Enh",2.8,{"$f":"AX19*AZ19","v":-518}]
["Sygdom",null,"Enh",null,-173,null,"Sygdom",null,"Enh",null,-223,null,"Sygdom",null,"Enh",null,-277,null,"Skadedyr",null,"Enh",null,-238,null,"Ukrudt",null,"Enh",null,-750,null,"Ukrudt",null,"Enh",null,-1357,null,"Sygdom",null,"Enh",null,-465,null,"Sygdom",null,"Enh",null,-49,null,"Stykomkostninger i alt",null,"",null,{"$f":"SUM(BA14:BA19)","v":-11970.5}]
["Skadedyr",null,"Enh",null,-26,null,"Skadedyr",null,"Enh",null,-46,null,"Vækstregulering",null,"Enh",null,-306,null,"Vækstregulering",null,"Enh",null,-41,null,"Sygdom",null,"Enh",null,-3468,null,"Sygdom",null,"Enh",null,-279,null,"Skadedyr",null,"Enh",null,-92,null,"Plastik",-168,"Enh",2.8,{"$f":"AR21*AT21","v":-470.4},null,"Dækningsbidrag pr ha",null,"",null,{"$f":"SUM(BA12,BA20)","v":629.5}]
["Vækstregulering",null,"Enh",null,-38,null,"Vækstregulering",null,"Enh",null,-140,null,"Analyser",null,"Enh",null,-175,null,"Analyser",null,"Enh",null,-125,null,"Skadedyr",null,"Enh",null,-423,null,"Fragt",-65500,"Enh",null,null,null,"Vækstregulering",null,"Enh",null,-51,null,"Stykomkostninger i alt",null,"",null,{"$f":"SUM(AU14:AU21)","v":-9535.4},null,"",null,""]
["Stykomkostninger i alt",null,"",null,{"$f":"SUM(E14:E22)","v":-5604},null,"Stykomkostninger i alt",null,"",null,{"$f":"SUM(K14:K22)","v":-7114},null,"Rensning",-1880,"Enh",0.5,{"$f":"N23*P23","v":-940},null,"Rensning",-4400,"Enh",7.0000000000000007E-2,{"$f":"T23*V23","v":-308.00000000000006},null,"Nedvisning",null,"Enh",null,-91,null,"Stykomkostninger i alt",null,"",null,{"$f":"SUM(AI15:AI22)","v":-9316},null,"Stykomkostninger i alt",null,"",null,{"$f":"SUM(AO14:AO22)","v":-8105.5},null,"Dækningsbidrag pr ha",null,"",null,{"$f":"SUM(AU12,AU22)","v":3007.5999999999985},null,"Maskin- og arbejdsomkostninger",null,""]
["Dækningsbidrag pr ha",null,"",null,{"$f":"SUM(E12,E23)","v":7721},null,"Dækningsbidrag pr ha",null,"",null,{"$f":"SUM(K12,K23)","v":8851},null,"Stykomkostninger i alt",null,"",null,{"$f":"SUM(Q15:Q23)","v":-8414},null,"Stykomkostninger i alt",null,"",null,{"$f":"SUM(W13:W23)","v":-8527},null,"Bejdsning v. lægning",null,"Enh",null,-240,null,"Dækningsbidrag pr ha",null,"",null,{"$f":"SUM(AI13,AI23)","v":10334},null,"Dækningsbidrag pr ha",null,"",null,{"$f":"SUM(AO12,AO23)","v":12474.5},null,"",null,"",null,null,null,"Gødningsspredning",-3,"",100,{"$f":"AX24*AZ24","v":-300}]
["",null,"",null,null,null,"",null,"",null,null,null,"Dækningsbidrag",null,"",null,{"$f":"SUM(Q12,Q24)","v":9431},null,"Dækningsbidrag pr ha",null,"",null,{"$f":"SUM(W11,W24)","v":7973},null,"Opbevaring i kule",null,"Enh",null,-1000,null,"",null,"",null,null,null,"",null,"",null,null,null,"Maskin- og arbejdsomkostninger",null,"",null,null,null,"Såning",-0.33,"",350,{"$f":"AX25*AZ25","v":-115.5}]
["Maskin- og arbejdsomkostninger",null,"",null,null,null,"Maskin- og arbejdsomkostninger",null,"",null,null,null,"",null,"",null,null,null,"",null,"",null,null,null,"Fragt",-57700,"Enh",0.04,{"$f":"Z26*AB26","v":-2308},null,"Maskin- og arbejdsomkostninger",null,"",null,null,null,"Maskin- og arbejdsomkostninger",null,"",null,null,null,"Pløjning med pakning",-1,"",725,{"$f":"AR26*AT26","v":-725},null,"Skårlægning",-4,"",225,{"$f":"AX26*AZ26","v":-900}]
["Pløjning med pakning",-1,"",725,{"$f":"B27*D27","v":-725},null,"Pløjning med pakning",-1,"",725,{"$f":"H27*J27","v":-725},null,"Maskin- og arbejdsomkostninger",null,"",null,null,null,"Maskin- og arbejdsomkostninger",null,"",null,null,null,"Stykomkostninger i alt",null,"",null,{"$f":"SUM(AC14:AC26)","v":-20012},null,"Pløjning med pakning",-1,"",725,{"$f":"AF27*AH27","v":-725},null,"Pløjning med pakning",-1,"",725,{"$f":"AL27*AN27","v":-725},null,"Gødningsspredning",-1,"",100,-100,null,"Sammenrivning",-4,"",170,{"$f":"AX27*AZ27","v":-680}]
["Gødningsspredning",-1,"",100,-100,null,"Gødningsspredning",-1,"",100,-100,null,"Gødningsspredning",-1,"",100,{"$f":"N28*P28","v":-100},null,"Pløjning med pakning",-1,"",725,{"$f":"T28*V28","v":-725},null,"Dækningsbidrag pr ha",null,"",null,{"$f":"SUM(AC12,AC27)","v":22165},null,"Gødningsspredning",-1,"",100,-100,null,"Gødningsspredning",-2,"",100,-200,null,"Såbedsharvning",-1,"",200,-200,"jordbearbejdning","Snitning, hjemkørsel og indlægn.",-4,"",737,{"$f":"AX28*AZ28","v":-2948}]
["Komb. harvning og såning",-1,"",400,-400,null,"Komb. harvning og såning",-1,"",400,-400,null,"Såning",-0.5,"",400,-200,null,"Gødningsspredning",-2,"",100,-200,null,"",null,"",null,null,null,"Såbedsharvning",-2,"",200,-400,"jordbarbejdning","Komb. harvning og såning",-1,"",400,-400,null,"Såning med gødningsplacering",-1,"",500,-500,null,"Øvrige opgaver m.v.",null,"",null,-800]
["Sprøjtning",-3,"",140,-420,null,"Sprøjtning",-4,"",140,-560,null,"Sprøjtning",-4,"",140,-560,null,"Komb. harvning og såning",-1,"",400,-400,null,"Maskin- og arbejdsomkostninger",null,"",null,null,null,"Roesåning",-1,"",450,-450,null,"Sprøjtning",-5,"",140,-700,null,"Tromling",-1,"",175,-175,"såning","I alt maskin- og arbejdsomkostninger",null,"",null,{"$f":"SUM(BA24:BA29)","v":-5743.5}]
["Mejetærskning",-1,"",866,-866,null,"Mejetærskning",-1,"",963,-963,null,"Mejetærskning",-1,"",1517,-1517,null,"Sprøjtning",-6,"",140,-840,null,"Pløjning med pakning",-1,"",725,{"$f":"Z31*AB31","v":-725},null,"Sprøjtning",-6,"",165,-990,null,"Mejetærskning",-1,"",1093,-1093,null,"Sprøjtning",-2,"",140,-280,null,"DB efter maskin- og arbejdsomkostninger",null,"",null,{"$f":"SUM(BA21,BA30)","v":-5114}]
["Hjemkørsel, korn",-1,"",394,-394,null,"Hjemkørsel, korn",-1,"",438,-438,null,"Hjemkørsel, frø",-1,"",418,-418,null,"Mejetærskning",-1,"",980,-980,null,"Efterharvning",-1,"",225,-225,"jordbearbejdning","Radrensning",-1,"",425,-425,"planteværn","Hjemkørsel, korn",-1,"",497,-497,null,"Snitning, hjemkørsel og indlægning",-1,"",1754,-1754]
["Tørring, korn",-6500,"",0.12,-780,null,"Tørring, korn",-7900,"",0.12,-948,null,"Tørring, frø",-2130,"",0.34,-724.2,null,"Hjemkørsel, raps",-1,"",445,-445,null,"Gødningsspredning",-1,"",100,-100,null,"Optagning af roer inkl. aftopning",-1,"",2118,-2118,null,"Tørring, korn",-9700,"",0.12,-1164,null,"Øvrige opgaver m.v.",null,"",null,-800]
["Halmpresning",-7,"",90,-630,null,"Halmpresning",-7.8,"",90,-702,null,"Halmpresning",-10.6,"",90,-954,null,"Tørring, raps",-4400,"",0.23,-1012,null,"Stenstrenglægning",-1,"",2550,-2550,"jordbearbejdning","Øvrige opgaver m.v.",null,"",null,-800,null,"Halmpresning",-9.6,"",90,-864,null,"I alt Maskin- og arbejdsomkostninger",null,"",null,{"$f":"SUM(AU26:AU33)","v":-4534}]
["Hjemkørsel, halm",-1,"",244,-244,null,"Hjemkørsel, halm",-1,"",259,-259,null,"Hjemkørsel, halm",-1,"",311,-311,null,"Øvrige opgaver m.v.",null,"",null,-800,null,"Lægning m. gødn. placering",-1,"",1450,-1450,null,"I alt maskin- og arbejdsomkostninger",null,"",null,{"$f":"SUM(AI27:AI34)","v":-6008},null,"Hjemkørsel, halm",-1,"",293,-293,null,"DB efter maskin- og arbejdsomkostninger",null,"",null,{"$f":"SUM(AU23,AU34)","v":-1526.4000000000015}]
["Øvrige opgaver m.v.",null,"",null,-800,null,"Øvrige opgaver m.v.",null,"",null,-800,null,"Øvrige opgaver m.v.",null,"",null,-800,null,"I alt maskin- og arbejdsomkostninger",null,"",null,{"$f":"SUM(W28:W35)","v":-5402},null,"Sprøjtning",-15,"",165,-2475,null,"DB efter maskin- og arbejdsomkostninger",null,"",null,{"$f":"SUM(AI24,AI35)","v":4326},null,"Øvrige opgaver m.v.",null,"",null,-800]
["I alt maskin- og arbejdsomkostninger",null,"",null,{"$f":"SUM(E27:E36)","v":-5359},null,"I alt maskin- og arbejdsomkostninger",null,"",null,{"$f":"SUM(K27:K36)","v":-5895},null,"I alt maskin- og arbejdsomkostninger",null,"",null,{"$f":"SUM(Q28:Q36)","v":-5584.2},null,"DB efter maskin- og arbejdsomkostninger",null,"",null,{"$f":"SUM(W25,W36)","v":2571},null,"Optagning",-1,"",3153,-3153,null,null,null,null,null,null,null,"I alt maskin- og arbejdsomkostninger",null,"",null,{"$f":"SUM(AO27:AO36)","v":-6736}]
["DB efter maskin- og arbejdsomkostninger",null,"",null,{"$f":"SUM(E24,E37)","v":2362},null,"DB efter maskin- og arbejdsomkostninger",null,"",null,{"$f":"SUM(K24,K37)","v":2956},null,"DB efter maskin- og arbejdsomkostninger",null,"",null,{"$f":"SUM(Q25,Q37)","v":3846.8},null,null,null,null,null,null,null,"Øvrige opgaver m.v.",null,"",null,-800,null,null,null,null,null,null,null,"DB efter maskin- og arbejdsomkostninger",null,"",null,{"$f":"SUM(AO24,AO37)","v":5738.5}]
[null,null,null,null,null,null,null,null,null,null,null,null,null,null,null,null,null,null,null,null,null,null,null,null,"I alt maskin- og arbejdsomkostninger",null,"",null,{"$f":"SUM(AC31:AC38)","v":-11478}]
[null,null,null,null,null,null,null,null,null,null,null,null,null,null,null,null,null,null,null,null,null,null,null,null,"DB efter maskin- og arbejdsomkostninger",null,"",null,{"$f":"SUM(AC28,AC39)","v":10687}]
[]
[]
[]
[]
[]
[]
[]
[]
[]
[]
[]
[]
["Frøgræs (Rajgræs)"]
["Stivelseskartofler"]
["Kløvergræs til slæt"]
["Majs til helsæd"]
["Sukkerroer"]
["Vinterraps"]
["Vintersæd (byg)"]
["Vintersæd (hvede)"]
["Vårsæd (byg)"]

{"sheet":"Fordeling af arbejdsopgaver","index":3,"n_rows":56,"n_cols":28,"rows_kept":56,"cut":false,"hidden":true,"merged":[]}
["Aktivitet","Afgrøde","Aktivitet","Antal","Start jan.","Slut jan.","Start feb.","Slut feb.","Start mar.","Slut mar.","Start apr.","Slut apr.","Start maj","Slut maj","Start jun","Slut jun","Start jul.","Slut jul.","Start Aug.","Slut Aug.","Start sep.","Slut sep.","Start okt.","Slut okt.","Start nov.","Slut nov.","Start dec.","Slut dec."]
[null,"Frøgræs (Rajgræs)","Pløjning",0]
[null,"Frøgræs (Rajgræs)","Jorbearb. Før såning",0]
[null,"Frøgræs (Rajgræs)","Afgrødeetabl. (såning, lægning o.l.)",1,null,null,null,null,null,null,null,null,null,null,null,null,null,null,1]
[null,"Frøgræs (Rajgræs)","Gødskning (handelsgødning)",2,null,null,null,null,null,{"$f":"1/D5","v":0.5},null,null,null,null,null,null,null,null,null,null,null,{"$f":"1/D5","v":0.5}]
[null,"Frøgræs (Rajgræs)","Planteværn",3,null,null,null,null,null,null,{"$f":"0.5/D6","v":0.16666666666666666},{"$f":"0.5/D6","v":0.16666666666666666},{"$f":"0.5/D6","v":0.16666666666666666},{"$f":"0.5/D6","v":0.16666666666666666},null,null,null,null,null,{"$f":"0.5/D6","v":0.16666666666666666},{"$f":"0.5/D6","v":0.16666666666666666}]
[null,"Frøgræs (Rajgræs)","Høst",1,null,null,null,null,null,null,null,null,null,null,null,null,{"$f":"0.5/D7","v":0.5},{"$f":"0.5/D7","v":0.5}]
[null,"Frøgræs (Rajgræs)","Hjemkørsel",1,null,null,null,null,null,null,null,null,null,null,null,null,{"$f":"0.5/D8","v":0.5},{"$f":"0.5/D8","v":0.5}]
[null,"Kartofler","Pløjning",1,null,null,null,{"$f":"0.5/D9","v":0.5},{"$f":"0.5/D9","v":0.5}]
[null,"Kartofler","Jorbearb. Før såning",1,null,null,null,null,null,null,{"$f":"0.5/D10","v":0.5},{"$f":"0.5/D10","v":0.5}]
[null,"Kartofler","Afgrødeetabl. (såning, lægning o.l.)",1,null,null,null,null,null,null,{"$f":"0.5/D11","v":0.5},{"$f":"0.5/D11","v":0.5}]
[null,"Kartofler","Gødskning (handelsgødning)",1,null,null,null,null,null,null,{"$f":"0.5/D12","v":0.5},{"$f":"0.5/D12","v":0.5}]
[null,"Kartofler","Planteværn",16,null,null,null,null,null,null,null,null,{"$f":"1/D13","v":6.25E-2},{"$f":"1/D13","v":6.25E-2},{"$f":"2/D13","v":0.125},{"$f":"2/D13","v":0.125},{"$f":"2/D13","v":0.125},{"$f":"2/D13","v":0.125},{"$f":"2/D13","v":0.125},{"$f":"2/D13","v":0.125},{"$f":"2/D13","v":0.125}]
[null,"Kartofler","Høst og hjemkørsel",1,null,null,null,null,null,0,null,null,null,null,null,null,null,null,null,null,{"$f":"0.25/D14","v":0.25},{"$f":"0.25/D14","v":0.25},{"$f":"0.25/D14","v":0.25},{"$f":"0.25/D14","v":0.25}]
[null,"Kløvergræs til slæt","Pløjning",0]
[null,"Kløvergræs til slæt","Jorbearb. Før såning",0]
[null,"Kløvergræs til slæt","Afgrødeetabl. (såning, lægning o.l.)",1,null,null,null,null,null,null,null,null,null,null,null,null,null,null,1]
[null,"Kløvergræs til slæt","Gødskning (handelsgødning)",3,null,null,null,null,null,{"$f":"1/D18","v":0.33333333333333331},null,null,null,{"$f":"1/D18","v":0.33333333333333331},null,null,{"$f":"1/D18","v":0.33333333333333331}]
[null,"Kløvergræs til slæt","Planteværn",0]
[null,"Kløvergræs til slæt","Høst og hjemkørsel",4,null,null,null,null,null,null,null,null,null,{"$f":"1/D20","v":0.25},null,null,{"$f":"1/D20","v":0.25},null,{"$f":"0.5/D20","v":0.125},{"$f":"0.5/D20","v":0.125},null,{"$f":"1/D20","v":0.25}]
[null,"Majs til helsæd","Pløjning",1,null,null,null,null,null,{"$f":"0.5/D21","v":0.5},{"$f":"0.5/D21","v":0.5}]
[null,"Majs til helsæd","Jorbearb. Før såning",1,null,null,null,null,null,null,{"$f":"1/D22","v":1}]
[null,"Majs til helsæd","Afgrødeetabl. (såning, lægning o.l.)",1,null,null,null,null,null,null,null,{"$f":"1/D23","v":1}]
[null,"Majs til helsæd","Gødskning (handelsgødning)",1,null,null,null,null,null,null,{"$f":"1/D24","v":1}]
[null,"Majs til helsæd","Planteværn",2,null,null,null,null,null,null,null,null,null,{"$f":"1/D25","v":0.5},{"$f":"1/D25","v":0.5}]
[null,"Majs til helsæd","Høst og hjemkørsel",1,null,null,null,null,null,null,null,null,null,null,null,null,null,null,null,null,null,{"$f":"0.5/D26","v":0.5},{"$f":"0.5/D26","v":0.5}]
[null,"Roer","Pløjning",1,null,null,null,null,null,null,null,null,null,null,null,null,null,null,null,null,null,null,null,null,{"$f":"0.25/D27","v":0.25},{"$f":"0.25/D27","v":0.25},{"$f":"0.25/D27","v":0.25},{"$f":"0.25/D27","v":0.25}]
[null,"Roer","Jorbearb. Før såning",1,null,null,null,null,null,{"$f":"1/D28","v":1}]
[null,"Roer","Afgrødeetabl. (såning, lægning o.l.)",1,null,null,null,null,null,null,{"$f":"1/D29","v":1}]
[null,"Roer","Gødskning (handelsgødning)",1,null,null,null,null,null,null,{"$f":"1/D30","v":1}]
[null,"Roer","Planteværn",5,null,null,null,null,null,null,null,{"$f":"2/D31","v":0.4},null,{"$f":"1/D31","v":0.2},{"$f":"1/D31","v":0.2},{"$f":"1/D31","v":0.2}]
[null,"Roer","Høst og hjemkørsel",1,null,null,null,null,null,null,null,null,null,null,null,null,null,null,null,null,null,null,{"$f":"0.2/D32","v":0.2},{"$f":"0.2/D32","v":0.2},{"$f":"0.2/D32","v":0.2},{"$f":"0.2/D32","v":0.2},{"$f":"0.2/D32","v":0.2}]
[null,"Vinterraps","Pløjning",1,null,null,null,null,null,null,null,null,null,null,null,null,null,null,{"$f":"0.75/D33","v":0.75},{"$f":"0.25/D33","v":0.25}]
[null,"Vinterraps","Jorbearb. Før såning",1,null,null,null,null,null,null,null,null,null,null,null,null,null,null,{"$f":"0.75/D34","v":0.75},{"$f":"0.25/D34","v":0.25}]
[null,"Vinterraps","Afgrødeetabl. (såning, lægning o.l.)",1,null,null,null,null,null,null,null,null,null,null,null,null,null,null,{"$f":"0.75/D35","v":0.75},{"$f":"0.25/D35","v":0.25}]
[null,"Vinterraps","Gødskning (handelsgødning)",3,null,null,null,null,{"$f":"1/D36","v":0.33333333333333331},null,{"$f":"1/D36","v":0.33333333333333331},null,null,null,null,null,null,null,null,null,null,{"$f":"1/D36","v":0.33333333333333331}]
[null,"Vinterraps","Planteværn",6,null,null,null,null,null,null,{"$f":"0.5/D37","v":8.3333333333333329E-2},{"$f":"0.5/D37","v":8.3333333333333329E-2},{"$f":"1/D37","v":0.16666666666666666},{"$f":"1/D37","v":0.16666666666666666},null,null,null,null,null,null,{"$f":"1/D37","v":0.16666666666666666},null,{"$f":"1/D37","v":0.16666666666666666},null,{"$f":"1/D37","v":0.16666666666666666}]
[null,"Vinterraps","Høst og hjemkørsel",1,null,null,null,null,null,null,null,null,null,null,null,null,null,{"$f":"0.5/D38","v":0.5},{"$f":"0.5/D38","v":0.5}]
[null,"Vintersæd (byg)","Pløjning",1,null,null,null,null,null,null,null,null,null,null,null,null,null,null,null,{"$f":"0.5/D39","v":0.5},{"$f":"0.5/D39","v":0.5}]
[null,"Vintersæd (byg)","Jorbearb. Før såning",1,null,null,null,null,null,null,null,null,null,null,null,null,null,null,null,{"$f":"0.5/D40","v":0.5},{"$f":"0.5/D40","v":0.5}]
[null,"Vintersæd (byg)","Afgrødeetabl. (såning, lægning o.l.)",1,null,null,null,null,null,null,null,null,null,null,null,null,null,null,null,null,{"$f":"1/D41","v":1}]
[null,"Vintersæd (byg)","Gødskning (handelsgødning)",1,null,null,null,null,null,{"$f":"1/D42","v":1}]
[null,"Vintersæd (byg)","Planteværn",4,null,null,null,null,null,null,{"$f":"0.5/D43","v":0.125},{"$f":"0.5/D43","v":0.125},{"$f":"1/D43","v":0.25},{"$f":"1/D43","v":0.25},null,null,null,null,null,null,null,null,{"$f":"1/D43","v":0.25}]
[null,"Vintersæd (byg)","Høst og hjemkørsel",1,null,null,null,null,null,null,null,null,null,null,null,null,null,{"$f":"0.5/D44","v":0.5},{"$f":"0.5/D44","v":0.5}]
[null,"Vintersæd (hvede)","Pløjning",1,null,null,null,null,null,null,null,null,null,null,null,null,null,null,null,{"$f":"0.25/D45","v":0.25},{"$f":"0.5/D45","v":0.5},{"$f":"0.25/D45","v":0.25}]
[null,"Vintersæd (hvede)","Jorbearb. Før såning",1,null,null,null,null,null,null,null,null,null,null,null,null,null,null,null,{"$f":"0.25/D46","v":0.25},{"$f":"0.5/D46","v":0.5},{"$f":"0.25/D46","v":0.25}]
[null,"Vintersæd (hvede)","Afgrødeetabl. (såning, lægning o.l.)",1,null,null,null,null,null,null,null,null,null,null,null,null,null,null,null,null,{"$f":"0.5/D47","v":0.5},{"$f":"0.5/D47","v":0.5}]
[null,"Vintersæd (hvede)","Gødskning (handelsgødning)",2,null,null,null,null,null,{"$f":"1/D48","v":0.5},null,{"$f":"1/D48","v":0.5}]
[null,"Vintersæd (hvede)","Planteværn",5,null,null,null,null,null,null,{"$f":"0.5/D49","v":0.1},{"$f":"0.5/D49","v":0.1},{"$f":"0.5/D49","v":0.1},{"$f":"0.5/D49","v":0.1},{"$f":"1/D49","v":0.2},{"$f":"1/D49","v":0.2},null,null,null,null,null,null,{"$f":"1/D49","v":0.2}]
[null,"Vintersæd (hvede)","Høst og hjemkørsel",1,null,null,null,null,null,null,null,null,null,null,null,null,null,null,{"$f":"0.5/D50","v":0.5},{"$f":"0.5/D50","v":0.5}]
[null,"Vårsæd (byg)","Pløjning",1,null,null,null,{"$f":"0.5/D51","v":0.5},{"$f":"0.5/D51","v":0.5}]
[null,"Vårsæd (byg)","Jorbearb. Før såning",1,null,null,null,null,null,{"$f":"0.5/D52","v":0.5},{"$f":"0.5/D52","v":0.5}]
[null,"Vårsæd (byg)","Afgrødeetabl. (såning, lægning o.l.)",1,null,null,null,null,null,{"$f":"0.5/D53","v":0.5},{"$f":"0.5/D53","v":0.5}]
[null,"Vårsæd (byg)","Gødskning (handelsgødning)",1,null,null,null,null,null,null,{"$f":"0.5/D54","v":0.5},{"$f":"0.5/D54","v":0.5}]
[null,"Vårsæd (byg)","Planteværn",3,null,null,null,null,null,null,{"$f":"0.5/D55","v":0.16666666666666666},{"$f":"0.5/D55","v":0.16666666666666666},{"$f":"0.5/D55","v":0.16666666666666666},{"$f":"0.5/D55","v":0.16666666666666666},{"$f":"1/D55","v":0.33333333333333331}]
[null,"Vårsæd (byg)","Høst og hjemkørsel",1,null,null,null,null,null,null,null,null,null,null,null,null,null,null,{"$f":"0.5/D56","v":0.5},{"$f":"0.5/D56","v":0.5}]

{"sheet":"Ark4","index":4,"n_rows":0,"n_cols":0,"rows_kept":0,"cut":false,"hidden":true,"merged":[]}